extractdate,publisheruri,publisherlabel,serviceyypeuri,servicetypelabel,DATE OF TRANSACTION,LA DEPARTMENT INCURRING SPEND,BENEFICIARY,GROSS AMOUNT,SUMMARY OF PURPOSEOF SPEND,MERCHANT CATEGORY
04/05/2017,http://opendatacommunities.org/id/county-council/surrey,Surrey,http://id.esd.org.uk/service/1465,Council expenditure,09/12/2016,LEGAL EXPENSES - CORPORATE GROUP,STL GROUP PLC,90,LEGAL EXPENSES,BUSINESS SERVICES-NOT ELSEWHERE CLASSIFIED
04/05/2017,http://opendatacommunities.org/id/county-council/surrey,Surrey,http://id.esd.org.uk/service/1465,Council expenditure,27/12/2016,LIBERTAS COMMUNITY HOME,PANTILES SERVICE STATI,4.6,REFRESHMENT COSTS,SERVICE STATIONS WITH OR WITHOUT ANCILLARY SERVICE
04/05/2017,http://opendatacommunities.org/id/county-council/surrey,Surrey,http://id.esd.org.uk/service/1465,Council expenditure,28/12/2016,ARUNDEL,SEINE RIGGER LTD,61.75,REFRESHMENT COSTS,"EATING PLACES, RESTAURANTS"
04/05/2017,http://opendatacommunities.org/id/county-council/surrey,Surrey,http://id.esd.org.uk/service/1465,Council expenditure,28/12/2016,TARGETED INTERVENTION,POST OFFICE COUNTER,64,STATIONERY,POSTAL SERVICES-GOVERNMENT ONLY
04/05/2017,http://opendatacommunities.org/id/county-council/surrey,Surrey,http://id.esd.org.uk/service/1465,Council expenditure,28/12/2016,LOCAL DELIVERY GROUP,AMAZON UK MARKETPLACE,20.32,EQUIPMENT,BOOK STORES
04/05/2017,http://opendatacommunities.org/id/county-council/surrey,Surrey,http://id.esd.org.uk/service/1465,Council expenditure,28/12/2016,HOLLAND CLOSE RESIDENTIAL HOME,"BOOTS,REDHILL",9.2,EQUIPMENT,"DRUG STORES, PHARMACIES"
04/05/2017,http://opendatacommunities.org/id/county-council/surrey,Surrey,http://id.esd.org.uk/service/1465,Council expenditure,28/12/2016,CHILDREN'S CENTRAL REFERRAL UNIT,MILK & MORE OFFLINE,106.2,PURCHASE OF FOOD (RAW MATERIALS),"MISC FOOD STORE-CONVENIENCE,MRKT,SPLTY,VENDNG MACS"
04/05/2017,http://opendatacommunities.org/id/county-council/surrey,Surrey,http://id.esd.org.uk/service/1465,Council expenditure,28/12/2016,NW CARE - LAC,WWW.AIRHOPTRAMPELINEOA,84,EDUC VISITS/HOLS/CAMPS/TOYS,RECREATIONAL AND SPORTING CAMPS
04/05/2017,http://opendatacommunities.org/id/county-council/surrey,Surrey,http://id.esd.org.uk/service/1465,Council expenditure,28/12/2016,DEPUTYSHIP TEAM,GRO HM PASSPORT OFFICE,23.4,3RD PARTY PAYMENTS PRIVATE INDIV,GOVERNMENT SERVICES-NOT ELSEWHERE CLASSIFIED
04/05/2017,http://opendatacommunities.org/id/county-council/surrey,Surrey,http://id.esd.org.uk/service/1465,Council expenditure,28/12/2016,HILLSIDE,SAINSBURYS 0675,47.84,PURCHASE OF FOOD (RAW MATERIALS),"GROCERY STORES, SUPERMARKETS"
04/05/2017,http://opendatacommunities.org/id/county-council/surrey,Surrey,http://id.esd.org.uk/service/1465,Council expenditure,28/12/2016,DOWNLANDS COUNTRYSIDE PROJECT,DVLA VEHICLE TAX,232.5,VEHICLE RUNNING COSTS,GOVERNMENT SERVICES-NOT ELSEWHERE CLASSIFIED
04/05/2017,http://opendatacommunities.org/id/county-council/surrey,Surrey,http://id.esd.org.uk/service/1465,Council expenditure,28/12/2016,SURREY ARTS OPEN STUDIOS,ADOBE  ID CREATIVE CLD,124.87,FEES,COMPUTER SOFTWARE STORES
04/05/2017,http://opendatacommunities.org/id/county-council/surrey,Surrey,http://id.esd.org.uk/service/1465,Council expenditure,28/12/2016,CHEYNE WALK COMMUNITY HOME,SAINSBURYS TO YOU 0026,163.81,PURCHASE OF FOOD (RAW MATERIALS),"GROCERY STORES, SUPERMARKETS"
04/05/2017,http://opendatacommunities.org/id/county-council/surrey,Surrey,http://id.esd.org.uk/service/1465,Council expenditure,28/12/2016,HILLSIDE,SAINSBURYS TO YOU 0675,162.33,PURCHASE OF FOOD (RAW MATERIALS),"GROCERY STORES, SUPERMARKETS"
04/05/2017,http://opendatacommunities.org/id/county-council/surrey,Surrey,http://id.esd.org.uk/service/1465,Council expenditure,28/12/2016,MALLOW CRESCENT,SAINSBURYS TO YOU 0652,10.65,PURCHASE OF FOOD (RAW MATERIALS),"GROCERY STORES, SUPERMARKETS"
04/05/2017,http://opendatacommunities.org/id/county-council/surrey,Surrey,http://id.esd.org.uk/service/1465,Council expenditure,28/12/2016,MALLOW CRESCENT,SAINSBURYS TO YOU 0652,64.13,PURCHASE OF FOOD (RAW MATERIALS),"GROCERY STORES, SUPERMARKETS"
04/05/2017,http://opendatacommunities.org/id/county-council/surrey,Surrey,http://id.esd.org.uk/service/1465,Council expenditure,28/12/2016,FAIRCROFT COMMUNITY HOME,TESCO STORE 2160,84.67,PURCHASE OF FOOD (RAW MATERIALS),"GROCERY STORES, SUPERMARKETS"
04/05/2017,http://opendatacommunities.org/id/county-council/surrey,Surrey,http://id.esd.org.uk/service/1465,Council expenditure,28/12/2016,APPLEWOOD,ASDA HOME SHOPPING,89.44,PURCHASE OF FOOD (RAW MATERIALS),"GROCERY STORES, SUPERMARKETS"
04/05/2017,http://opendatacommunities.org/id/county-council/surrey,Surrey,http://id.esd.org.uk/service/1465,Council expenditure,28/12/2016,MALLOW CRESCENT,SAINSBURYS TO YOU 0652,-0.9,PURCHASE OF FOOD (RAW MATERIALS),"GROCERY STORES, SUPERMARKETS"
04/05/2017,http://opendatacommunities.org/id/county-council/surrey,Surrey,http://id.esd.org.uk/service/1465,Council expenditure,28/12/2016,CS BUSINESS SUPPORT SAFEGUARDING,AMAZON UK MARKETPLACE,131.7,EQUIPMENT,BOOK STORES
04/05/2017,http://opendatacommunities.org/id/county-council/surrey,Surrey,http://id.esd.org.uk/service/1465,Council expenditure,28/12/2016,APPLEWOOD,ASDA HOME SHOPPING,-2.07,PURCHASE OF FOOD (RAW MATERIALS),"GROCERY STORES, SUPERMARKETS"
04/05/2017,http://opendatacommunities.org/id/county-council/surrey,Surrey,http://id.esd.org.uk/service/1465,Council expenditure,29/12/2016,TARGETED INTERVENTION,THE ATRIUM CAMBERLEY,1.5,MISCELLANEOUS STAFF TRAVEL,PROFESSIONAL SERVICES-NOT ELSEWHERE CLASSIFIED
04/05/2017,http://opendatacommunities.org/id/county-council/surrey,Surrey,http://id.esd.org.uk/service/1465,Council expenditure,29/12/2016,WOODLANDS COMMUNITY HOME,SAINSBURYS SACAT 0686,14,"CLOTHING, UNIFORM AND LAUNDRY","GROCERY STORES, SUPERMARKETS"
04/05/2017,http://opendatacommunities.org/id/county-council/surrey,Surrey,http://id.esd.org.uk/service/1465,Council expenditure,29/12/2016,WOODLANDS COMMUNITY HOME,SAINSBURYS SACAT 0686,20,COMPUTER CONSUMABLES,"GROCERY STORES, SUPERMARKETS"
04/05/2017,http://opendatacommunities.org/id/county-council/surrey,Surrey,http://id.esd.org.uk/service/1465,Council expenditure,29/12/2016,WOODLANDS COMMUNITY HOME,HOMEBASE LTD 084,9.99,FIXTURES AND FITTINGS,"BUILDING MATERIALS, LUMBER STORES"
04/05/2017,http://opendatacommunities.org/id/county-council/surrey,Surrey,http://id.esd.org.uk/service/1465,Council expenditure,29/12/2016,IMT PRODUCTION APPLICATIONS TEAM,RACKSPACE EMAIL & APPS,151.45,COMPUTER SERVICES,COMPUTER NETWORK/INFORMATION SERVICES
04/05/2017,http://opendatacommunities.org/id/county-council/surrey,Surrey,http://id.esd.org.uk/service/1465,Council expenditure,29/12/2016,LOCAL DELIVERY GROUP,AMAZON UK MARKETPLACE,23.95,STATIONERY,BOOK STORES
04/05/2017,http://opendatacommunities.org/id/county-council/surrey,Surrey,http://id.esd.org.uk/service/1465,Council expenditure,29/12/2016,TARGETED INTERVENTION,STARBUCKS,8.4,EDUC VISITS/HOLS/CAMPS/TOYS,"EATING PLACES, RESTAURANTS"
04/05/2017,http://opendatacommunities.org/id/county-council/surrey,Surrey,http://id.esd.org.uk/service/1465,Council expenditure,29/12/2016,TARGETED INTERVENTION,BEARS PACKHOUSE LTD,8.65,EDUC VISITS/HOLS/CAMPS/TOYS,FAST FOOD RESTAURANTS
04/05/2017,http://opendatacommunities.org/id/county-council/surrey,Surrey,http://id.esd.org.uk/service/1465,Council expenditure,29/12/2016,CONSORT HOUSE REDHILL,WILKO RETAIL LIMIT,9.99,EQUIPMENT,HOUSEHOLD APPLIANCE STORES
04/05/2017,http://opendatacommunities.org/id/county-council/surrey,Surrey,http://id.esd.org.uk/service/1465,Council expenditure,29/12/2016,COVEHAM,SAINSBURYS SACAT 0687,4.44,REFRESHMENT COSTS,"GROCERY STORES, SUPERMARKETS"
04/05/2017,http://opendatacommunities.org/id/county-council/surrey,Surrey,http://id.esd.org.uk/service/1465,Council expenditure,29/12/2016,NW CARE - LAC,TRAVELODGE,110,CHILDREN ACT SEC 17 PAYMENTS,TRAVELODGE
04/05/2017,http://opendatacommunities.org/id/county-council/surrey,Surrey,http://id.esd.org.uk/service/1465,Council expenditure,29/12/2016,SW NIL RECOURSE TO PUBLIC FUNDS CARE,SURREY CC CARD PAY,11,FEES,COMPUTER NETWORK/INFORMATION SERVICES
04/05/2017,http://opendatacommunities.org/id/county-council/surrey,Surrey,http://id.esd.org.uk/service/1465,Council expenditure,29/12/2016,HILLSIDE,SAINSBURYS SACAT 0675,115,EQUIPMENT,"GROCERY STORES, SUPERMARKETS"
04/05/2017,http://opendatacommunities.org/id/county-council/surrey,Surrey,http://id.esd.org.uk/service/1465,Council expenditure,29/12/2016,WOODLANDS COMMUNITY HOME,SAINSBURYS 0686,16.74,PURCHASE OF FOOD (RAW MATERIALS),"GROCERY STORES, SUPERMARKETS"
04/05/2017,http://opendatacommunities.org/id/county-council/surrey,Surrey,http://id.esd.org.uk/service/1465,Council expenditure,29/12/2016,WOODLANDS COMMUNITY HOME,SAINSBURYS 0686,157.48,PURCHASE OF FOOD (RAW MATERIALS),"GROCERY STORES, SUPERMARKETS"
04/05/2017,http://opendatacommunities.org/id/county-council/surrey,Surrey,http://id.esd.org.uk/service/1465,Council expenditure,29/12/2016,EXTENDED HOPE,SAINSBURYS TO YOU 0652,83.79,PURCHASE OF FOOD (RAW MATERIALS),"GROCERY STORES, SUPERMARKETS"
04/05/2017,http://opendatacommunities.org/id/county-council/surrey,Surrey,http://id.esd.org.uk/service/1465,Council expenditure,29/12/2016,HORLEY YC,AMAZON UK MARKETPLACE,-23.88,EQUIPMENT,MISCELLANEOUS AND SPECIALTY RETAIL STORES
04/05/2017,http://opendatacommunities.org/id/county-council/surrey,Surrey,http://id.esd.org.uk/service/1465,Council expenditure,30/12/2016,WOODLANDS COMMUNITY HOME,VUE BSL-ATM,51.16,EDUC VISITS/HOLS/CAMPS/TOYS,MOTION PICTURE THEATERS
04/05/2017,http://opendatacommunities.org/id/county-council/surrey,Surrey,http://id.esd.org.uk/service/1465,Council expenditure,30/12/2016,NW CARE - NON-LAC CP & COURT,WWW.,949.39,CHILDREN ACT SEC 17 PAYMENTS,"LODGING-HOTELS,MOTELS,RESORTS-NOT CLASSIFIED"
04/05/2017,http://opendatacommunities.org/id/county-council/surrey,Surrey,http://id.esd.org.uk/service/1465,Council expenditure,30/12/2016,LEAVING CARE PACKAGES,ARRIVA PASSENGER,80,EDUCATION SEASON TICKETS,AUTOMOTIVE SERVICE SHOPS
04/05/2017,http://opendatacommunities.org/id/county-council/surrey,Surrey,http://id.esd.org.uk/service/1465,Council expenditure,30/12/2016,WOODLANDS COMMUNITY HOME,ASDA STORES 4823,18.89,PURCHASE OF FOOD (RAW MATERIALS),"GROCERY STORES, SUPERMARKETS"
04/05/2017,http://opendatacommunities.org/id/county-council/surrey,Surrey,http://id.esd.org.uk/service/1465,Council expenditure,30/12/2016,HOPE SERVICE - EAST,MCDONALDS,4.68,REFRESHMENT COSTS,"EATING PLACES, RESTAURANTS"
04/05/2017,http://opendatacommunities.org/id/county-council/surrey,Surrey,http://id.esd.org.uk/service/1465,Council expenditure,30/12/2016,WOODLANDS COMMUNITY HOME,SAINSBURYS 0686,70.5,EQUIPMENT,"GROCERY STORES, SUPERMARKETS"
04/05/2017,http://opendatacommunities.org/id/county-council/surrey,Surrey,http://id.esd.org.uk/service/1465,Council expenditure,30/12/2016,COUNTY HALL,MAPLIN KINGSTON KT1,13.98,DAY TO DAY MAINTENANCE,TELECOMMUNICATION EQUIPMENT INCL TELEPHONE SALES
04/05/2017,http://opendatacommunities.org/id/county-council/surrey,Surrey,http://id.esd.org.uk/service/1465,Council expenditure,30/12/2016,NW SECTION 17 CARE,TRAVELODGE,"1,368.00",CHILDREN ACT SEC 17 PAYMENTS,TRAVELODGE
04/05/2017,http://opendatacommunities.org/id/county-council/surrey,Surrey,http://id.esd.org.uk/service/1465,Council expenditure,30/12/2016,WOODLANDS COMMUNITY HOME,POST OFFICE COUNTER,1.74,POSTAGE AND COURIER CHARGES,POSTAL SERVICES-GOVERNMENT ONLY
04/05/2017,http://opendatacommunities.org/id/county-council/surrey,Surrey,http://id.esd.org.uk/service/1465,Council expenditure,30/12/2016,COMMUNICATIONS TEAM,ITUNES.COM/BILL,14.98,SUBSCRIPTIONS,RECORD SHOPS
04/05/2017,http://opendatacommunities.org/id/county-council/surrey,Surrey,http://id.esd.org.uk/service/1465,Council expenditure,30/12/2016,ARUNDEL,TESCO STORES 5999,64.82,REFRESHMENT COSTS,"GROCERY STORES, SUPERMARKETS"
04/05/2017,http://opendatacommunities.org/id/county-council/surrey,Surrey,http://id.esd.org.uk/service/1465,Council expenditure,30/12/2016,NW CARE - LAC,FREEDOM LEISURE,46.1,CHILDREN ACT SEC 17 PAYMENTS,GOVERNMENT SERVICES-NOT ELSEWHERE CLASSIFIED
04/05/2017,http://opendatacommunities.org/id/county-council/surrey,Surrey,http://id.esd.org.uk/service/1465,Council expenditure,30/12/2016,MALLOW CRESCENT,ARGOS RETAIL GROUP,23.97,EQUIPMENT,DISCOUNT STORES
04/05/2017,http://opendatacommunities.org/id/county-council/surrey,Surrey,http://id.esd.org.uk/service/1465,Council expenditure,30/12/2016,CORPORATE GROUP - LEGAL SERVICES,RINGGO PARKING,1.59,EXPENSES,AUTOMOBILE PARKING LOTS AND GARAGES
04/05/2017,http://opendatacommunities.org/id/county-council/surrey,Surrey,http://id.esd.org.uk/service/1465,Council expenditure,30/12/2016,RUTH HOUSE,SAINSBURYS TO YOU 0686,20.15,PURCHASE OF FOOD (RAW MATERIALS),"GROCERY STORES, SUPERMARKETS"
04/05/2017,http://opendatacommunities.org/id/county-council/surrey,Surrey,http://id.esd.org.uk/service/1465,Council expenditure,30/12/2016,RUTH HOUSE,SAINSBURYS TO YOU 0686,293.6,PURCHASE OF FOOD (RAW MATERIALS),"GROCERY STORES, SUPERMARKETS"
04/05/2017,http://opendatacommunities.org/id/county-council/surrey,Surrey,http://id.esd.org.uk/service/1465,Council expenditure,31/12/2016,ACL CENTRAL EXPENDITURE,FACEBK A7TSGANCB2,5.89,PUBLICITY,ADVERTISING SERVICES
04/05/2017,http://opendatacommunities.org/id/county-council/surrey,Surrey,http://id.esd.org.uk/service/1465,Council expenditure,31/12/2016,ACL CENTRAL EXPENDITURE,FACEBK 97TSGANCB2,331.61,PUBLICITY,ADVERTISING SERVICES
04/05/2017,http://opendatacommunities.org/id/county-council/surrey,Surrey,http://id.esd.org.uk/service/1465,Council expenditure,31/12/2016,FAIRCROFT COMMUNITY HOME,CHINA CHEF,74.2,REFRESHMENT COSTS,"EATING PLACES, RESTAURANTS"
04/05/2017,http://opendatacommunities.org/id/county-council/surrey,Surrey,http://id.esd.org.uk/service/1465,Council expenditure,31/12/2016,WOODLANDS COMMUNITY HOME,GODALMING SERVICE,30,VEHICLE RUNNING COSTS,SERVICE STATIONS WITH OR WITHOUT ANCILLARY SERVICE
04/05/2017,http://opendatacommunities.org/id/county-council/surrey,Surrey,http://id.esd.org.uk/service/1465,Council expenditure,31/12/2016,LOCAL DELIVERY GROUP,AMAZON EU,23.3,STATIONERY,DIRECT MARKETING-OTHER DIRECT MARKETERS/NOT ELSEW.
04/05/2017,http://opendatacommunities.org/id/county-council/surrey,Surrey,http://id.esd.org.uk/service/1465,Council expenditure,31/12/2016,LOCAL DELIVERY GROUP,AMAZON EU,23.3,STATIONERY,DIRECT MARKETING-OTHER DIRECT MARKETERS/NOT ELSEW.
04/05/2017,http://opendatacommunities.org/id/county-council/surrey,Surrey,http://id.esd.org.uk/service/1465,Council expenditure,31/12/2016,E&I - COUNTRYSIDE                       ,FACEBK W57ZMBAAK2,65.44,PUBLICITY,ADVERTISING SERVICES
04/05/2017,http://opendatacommunities.org/id/county-council/surrey,Surrey,http://id.esd.org.uk/service/1465,Council expenditure,31/12/2016,E&I - COUNTRYSIDE                       ,FACEBK U57ZMBAAK2,489.22,PUBLICITY,ADVERTISING SERVICES
04/05/2017,http://opendatacommunities.org/id/county-council/surrey,Surrey,http://id.esd.org.uk/service/1465,Council expenditure,31/12/2016,KARIBU COMMUNITY HOME,SMITH & WESTERN,70.05,PURCHASE OF FOOD (RAW MATERIALS),"EATING PLACES, RESTAURANTS"
04/05/2017,http://opendatacommunities.org/id/county-council/surrey,Surrey,http://id.esd.org.uk/service/1465,Council expenditure,31/12/2016,LIBERTAS COMMUNITY HOME,BP MERROW CONVENIENCE,22.97,UPKEEP OF GROUNDS,SERVICE STATIONS WITH OR WITHOUT ANCILLARY SERVICE
04/05/2017,http://opendatacommunities.org/id/county-council/surrey,Surrey,http://id.esd.org.uk/service/1465,Council expenditure,31/12/2016,LIBERTAS COMMUNITY HOME,WAITROSE 216,108.71,PURCHASE OF FOOD (RAW MATERIALS),"GROCERY STORES, SUPERMARKETS"
04/05/2017,http://opendatacommunities.org/id/county-council/surrey,Surrey,http://id.esd.org.uk/service/1465,Council expenditure,31/12/2016,ARUNDEL,SUPERDRUG STORES PLC,39.82,EQUIPMENT,"DRUG STORES, PHARMACIES"
04/05/2017,http://opendatacommunities.org/id/county-council/surrey,Surrey,http://id.esd.org.uk/service/1465,Council expenditure,31/12/2016,HILLSIDE,SAINSBURYS 0686,47.26,PURCHASE OF FOOD (RAW MATERIALS),"GROCERY STORES, SUPERMARKETS"
04/05/2017,http://opendatacommunities.org/id/county-council/surrey,Surrey,http://id.esd.org.uk/service/1465,Council expenditure,31/12/2016,DEVELOPMENT TEAM,"CLOUD9 IDE, INC",24.3,COMPUTER SERVICES,"COMPUTERS, COMPUTER PERIPHERAL EQUIPMENT, SOFTWARE"
04/05/2017,http://opendatacommunities.org/id/county-council/surrey,Surrey,http://id.esd.org.uk/service/1465,Council expenditure,31/12/2016,COVEHAM,WWW.JOHNLEWIS.COM,276.5,EQUIPMENT,DEPARTMENT STORES
04/05/2017,http://opendatacommunities.org/id/county-council/surrey,Surrey,http://id.esd.org.uk/service/1465,Council expenditure,31/12/2016,FOOD PURCHASE DEC                       ,TESCO-STORES 6647,173.5,PURCHASE OF FOOD (RAW MATERIALS),"GROCERY STORES, SUPERMARKETS"
04/05/2017,http://opendatacommunities.org/id/county-council/surrey,Surrey,http://id.esd.org.uk/service/1465,Council expenditure,01/01/2017,FAIRCROFT COMMUNITY HOME,SMITH & WESTERN,172.75,REFRESHMENT COSTS,"EATING PLACES, RESTAURANTS"
04/05/2017,http://opendatacommunities.org/id/county-council/surrey,Surrey,http://id.esd.org.uk/service/1465,Council expenditure,01/01/2017,EXTENDED HOPE,ODEON,10.35,REFRESHMENT COSTS,MOTION PICTURE THEATERS
04/05/2017,http://opendatacommunities.org/id/county-council/surrey,Surrey,http://id.esd.org.uk/service/1465,Council expenditure,01/01/2017,EXTENDED HOPE,ODEON,17.5,EDUC VISITS/HOLS/CAMPS/TOYS,MOTION PICTURE THEATERS
04/05/2017,http://opendatacommunities.org/id/county-council/surrey,Surrey,http://id.esd.org.uk/service/1465,Council expenditure,01/01/2017,HOLLAND CLOSE RESIDENTIAL HOME,AMZ UK DIGITAL DWNLOAD,7.99,SUBSCRIPTIONS,RECORD SHOPS
04/05/2017,http://opendatacommunities.org/id/county-council/surrey,Surrey,http://id.esd.org.uk/service/1465,Council expenditure,01/01/2017,KARIBU COMMUNITY HOME,BROOK LANDS MUSEUM TRU,30,EDUC VISITS/HOLS/CAMPS/TOYS,RECREATION SERVICES (NOT ELSEWHERE CLASSIFIED)
04/05/2017,http://opendatacommunities.org/id/county-council/surrey,Surrey,http://id.esd.org.uk/service/1465,Council expenditure,01/01/2017,KARIBU COMMUNITY HOME,MB WORLD,90,EDUC VISITS/HOLS/CAMPS/TOYS,AUTOMOTIVE SERVICE SHOPS
04/05/2017,http://opendatacommunities.org/id/county-council/surrey,Surrey,http://id.esd.org.uk/service/1465,Council expenditure,01/01/2017,ARUNDEL,ASDA SUPERSTORE,55.5,REFRESHMENT COSTS,"GROCERY STORES, SUPERMARKETS"
04/05/2017,http://opendatacommunities.org/id/county-council/surrey,Surrey,http://id.esd.org.uk/service/1465,Council expenditure,01/01/2017,BURBANK COMMUNITY HOME,WWW.UKFLAIR.COM,56.97,EDUC VISITS/HOLS/CAMPS/TOYS,"SPORTS APPAREL, RIDING APPAREL STORES"
04/05/2017,http://opendatacommunities.org/id/county-council/surrey,Surrey,http://id.esd.org.uk/service/1465,Council expenditure,01/01/2017,IMT SUPPORT FOR FIRE & RESCUE,ASHBURY,115.2,TELECOMMUNICATION CHARGES,TELECOMMUNICATION EQUIPMENT INCL TELEPHONE SALES
04/05/2017,http://opendatacommunities.org/id/county-council/surrey,Surrey,http://id.esd.org.uk/service/1465,Council expenditure,02/01/2017,LIBERTAS COMMUNITY HOME,BP WISLEY SOUTH,2.64,REFRESHMENT COSTS,SERVICE STATIONS WITH OR WITHOUT ANCILLARY SERVICE
04/05/2017,http://opendatacommunities.org/id/county-council/surrey,Surrey,http://id.esd.org.uk/service/1465,Council expenditure,02/01/2017,COMMUNICATIONS TEAM,TIMES NEWSPAPERS LTD,34.67,SUBSCRIPTIONS,"BOOKS,PERIODICALS AND NEWSPAPERS"
04/05/2017,http://opendatacommunities.org/id/county-council/surrey,Surrey,http://id.esd.org.uk/service/1465,Council expenditure,02/01/2017,LIBERTAS COMMUNITY HOME,SHELL UK LTD,5.2,REFRESHMENT COSTS,SERVICE STATIONS WITH OR WITHOUT ANCILLARY SERVICE
04/05/2017,http://opendatacommunities.org/id/county-council/surrey,Surrey,http://id.esd.org.uk/service/1465,Council expenditure,02/01/2017,CHEYNE WALK COMMUNITY HOME,CO-OP GROUP PETROL,15,3RD PARTY PAYMENTS PRIVATE INDIV,SERVICE STATIONS WITH OR WITHOUT ANCILLARY SERVICE
04/05/2017,http://opendatacommunities.org/id/county-council/surrey,Surrey,http://id.esd.org.uk/service/1465,Council expenditure,02/01/2017,CHEYNE WALK COMMUNITY HOME,SMITH & WESTERN,106.4,PURCHASE OF FOOD (RAW MATERIALS),"EATING PLACES, RESTAURANTS"
04/05/2017,http://opendatacommunities.org/id/county-council/surrey,Surrey,http://id.esd.org.uk/service/1465,Council expenditure,02/01/2017,FAIRCROFT COMMUNITY HOME,SAINSBURYS 0687,8.15,PURCHASE OF FOOD (RAW MATERIALS),"GROCERY STORES, SUPERMARKETS"
04/05/2017,http://opendatacommunities.org/id/county-council/surrey,Surrey,http://id.esd.org.uk/service/1465,Council expenditure,02/01/2017,LIBERTAS COMMUNITY HOME,SAINSBURYS SACAT 0652,19,EQUIPMENT,"GROCERY STORES, SUPERMARKETS"
04/05/2017,http://opendatacommunities.org/id/county-council/surrey,Surrey,http://id.esd.org.uk/service/1465,Council expenditure,02/01/2017,LIBERTAS COMMUNITY HOME,"BOOTS,GUILDFORD",14.8,EQUIPMENT,"DRUG STORES, PHARMACIES"
04/05/2017,http://opendatacommunities.org/id/county-council/surrey,Surrey,http://id.esd.org.uk/service/1465,Council expenditure,02/01/2017,LIBERTAS COMMUNITY HOME,NEW LOOK 1720,68.98,"CLOTHING, UNIFORM AND LAUNDRY",WOMEN'S READY TO WEAR STORES
04/05/2017,http://opendatacommunities.org/id/county-council/surrey,Surrey,http://id.esd.org.uk/service/1465,Council expenditure,02/01/2017,CHEYNE WALK COMMUNITY HOME,COUNTY MALL CAR PARK,2.5,NON-STAFF RELATED TRANSPORT COSTS,AUTOMOBILE PARKING LOTS AND GARAGES
04/05/2017,http://opendatacommunities.org/id/county-council/surrey,Surrey,http://id.esd.org.uk/service/1465,Council expenditure,02/01/2017,CHEYNE WALK COMMUNITY HOME,J D SPORTS PLC,75.05,"CLOTHING, UNIFORM AND LAUNDRY",SPORTING GOODS STORES
04/05/2017,http://opendatacommunities.org/id/county-council/surrey,Surrey,http://id.esd.org.uk/service/1465,Council expenditure,02/01/2017,HILLSIDE,BOOTS/0906,44.99,EQUIPMENT,"DRUG STORES, PHARMACIES"
04/05/2017,http://opendatacommunities.org/id/county-council/surrey,Surrey,http://id.esd.org.uk/service/1465,Council expenditure,02/01/2017,FAIRCROFT COMMUNITY HOME,SAINSBURYS SACAT 0687,12.2,PURCHASE OF FOOD (RAW MATERIALS),"GROCERY STORES, SUPERMARKETS"
04/05/2017,http://opendatacommunities.org/id/county-council/surrey,Surrey,http://id.esd.org.uk/service/1465,Council expenditure,02/01/2017,HILLSIDE,MATALAN,54,EQUIPMENT,MEN'S AND WOMEN'S CLOTHING STORES
04/05/2017,http://opendatacommunities.org/id/county-council/surrey,Surrey,http://id.esd.org.uk/service/1465,Council expenditure,02/01/2017,HILLSIDE,SAINSBURYS 0784,6.44,PURCHASE OF FOOD (RAW MATERIALS),"GROCERY STORES, SUPERMARKETS"
04/05/2017,http://opendatacommunities.org/id/county-council/surrey,Surrey,http://id.esd.org.uk/service/1465,Council expenditure,02/01/2017,HILLSIDE,SAINSBURYS 0784,32.56,PURCHASE OF FOOD (RAW MATERIALS),"GROCERY STORES, SUPERMARKETS"
04/05/2017,http://opendatacommunities.org/id/county-council/surrey,Surrey,http://id.esd.org.uk/service/1465,Council expenditure,02/01/2017,HILLSIDE,SAINSBURYS 0784,5.25,PURCHASE OF FOOD (RAW MATERIALS),"GROCERY STORES, SUPERMARKETS"
04/05/2017,http://opendatacommunities.org/id/county-council/surrey,Surrey,http://id.esd.org.uk/service/1465,Council expenditure,02/01/2017,HILLSIDE,LIDL UK,0.89,PURCHASE OF FOOD (RAW MATERIALS),"GROCERY STORES, SUPERMARKETS"
04/05/2017,http://opendatacommunities.org/id/county-council/surrey,Surrey,http://id.esd.org.uk/service/1465,Council expenditure,02/01/2017,HILLSIDE,LIDL UK,25.22,PURCHASE OF FOOD (RAW MATERIALS),"GROCERY STORES, SUPERMARKETS"
04/05/2017,http://opendatacommunities.org/id/county-council/surrey,Surrey,http://id.esd.org.uk/service/1465,Council expenditure,02/01/2017,MALLOW CRESCENT,SAINSBURYS TO YOU 0652,3.6,PURCHASE OF FOOD (RAW MATERIALS),"GROCERY STORES, SUPERMARKETS"
04/05/2017,http://opendatacommunities.org/id/county-council/surrey,Surrey,http://id.esd.org.uk/service/1465,Council expenditure,02/01/2017,MALLOW CRESCENT,SAINSBURYS TO YOU 0652,99.25,PURCHASE OF FOOD (RAW MATERIALS),"GROCERY STORES, SUPERMARKETS"
04/05/2017,http://opendatacommunities.org/id/county-council/surrey,Surrey,http://id.esd.org.uk/service/1465,Council expenditure,02/01/2017,MALLOW CRESCENT,SAINSBURYS TO YOU 0652,18.95,PURCHASE OF FOOD (RAW MATERIALS),"GROCERY STORES, SUPERMARKETS"
04/05/2017,http://opendatacommunities.org/id/county-council/surrey,Surrey,http://id.esd.org.uk/service/1465,Council expenditure,02/01/2017,MALLOW CRESCENT,SAINSBURYS TO YOU 0652,83.42,PURCHASE OF FOOD (RAW MATERIALS),"GROCERY STORES, SUPERMARKETS"
04/05/2017,http://opendatacommunities.org/id/county-council/surrey,Surrey,http://id.esd.org.uk/service/1465,Council expenditure,02/01/2017,MALLOW CRESCENT,TESCO STORE 2590,3.75,PURCHASE OF FOOD (RAW MATERIALS),"GROCERY STORES, SUPERMARKETS"
04/05/2017,http://opendatacommunities.org/id/county-council/surrey,Surrey,http://id.esd.org.uk/service/1465,Council expenditure,02/01/2017,MALLOW CRESCENT,TESCO STORE 2590,74.63,PURCHASE OF FOOD (RAW MATERIALS),"GROCERY STORES, SUPERMARKETS"
04/05/2017,http://opendatacommunities.org/id/county-council/surrey,Surrey,http://id.esd.org.uk/service/1465,Council expenditure,02/01/2017,SUPERFAST BROADBAND ECONOMIC DEVELOPMENT,GOOGLE  SVCSAPPS_SUPER,13.75,COMPUTER SERVICES,DIRECT MARKETING-CONTINUITY/SUBSCRIPTION MERCHANTS
04/05/2017,http://opendatacommunities.org/id/county-council/surrey,Surrey,http://id.esd.org.uk/service/1465,Council expenditure,03/01/2017,ACL CENTRAL EXPENDITURE,CPC,114.74,COMPUTER HARDWARE,ELECTRICAL PARTS AND EQUIPMENT
04/05/2017,http://opendatacommunities.org/id/county-council/surrey,Surrey,http://id.esd.org.uk/service/1465,Council expenditure,03/01/2017,ORBIS HR BUSINESS SERVICES & TRAINING,AMAZON UK RETAIL AMAZO,12.28,EQUIPMENT,MISCELLANEOUS AND SPECIALTY RETAIL STORES
04/05/2017,http://opendatacommunities.org/id/county-council/surrey,Surrey,http://id.esd.org.uk/service/1465,Council expenditure,03/01/2017,YSS YOUTH CENTRE IMPROVEMENTS,TVLICENSING.CO.UK,145.5,FEES,"CONSULTING, MANAGEMENT, AND PUBLIC RELATIONS SVCS"
04/05/2017,http://opendatacommunities.org/id/county-council/surrey,Surrey,http://id.esd.org.uk/service/1465,Council expenditure,03/01/2017,YSS YOUTH CENTRE IMPROVEMENTS,TVLICENSING.CO.UK,145.5,FEES,"CONSULTING, MANAGEMENT, AND PUBLIC RELATIONS SVCS"
04/05/2017,http://opendatacommunities.org/id/county-council/surrey,Surrey,http://id.esd.org.uk/service/1465,Council expenditure,03/01/2017,NW CARE - LAC,DOUBLETREE,53.1,EXPENSES,DOUBLETREE
04/05/2017,http://opendatacommunities.org/id/county-council/surrey,Surrey,http://id.esd.org.uk/service/1465,Council expenditure,03/01/2017,EXTENDED HOPE,MCDONALDS,16.17,REFRESHMENT COSTS,"EATING PLACES, RESTAURANTS"
04/05/2017,http://opendatacommunities.org/id/county-council/surrey,Surrey,http://id.esd.org.uk/service/1465,Council expenditure,03/01/2017,PHOENIX YC,DOMINOS PIZZA - BANSTE,27.98,REFRESHMENT COSTS,"EATING PLACES, RESTAURANTS"
04/05/2017,http://opendatacommunities.org/id/county-council/surrey,Surrey,http://id.esd.org.uk/service/1465,Council expenditure,03/01/2017,HILLSIDE,TESCO STORES 3149,13.5,"CLOTHING, UNIFORM AND LAUNDRY","GROCERY STORES, SUPERMARKETS"
04/05/2017,http://opendatacommunities.org/id/county-council/surrey,Surrey,http://id.esd.org.uk/service/1465,Council expenditure,03/01/2017,WOODLANDS COMMUNITY HOME,AMAZON PRIME,7.99,SUBSCRIPTIONS,DIRECT MARKETING-CONTINUITY/SUBSCRIPTION MERCHANTS
04/05/2017,http://opendatacommunities.org/id/county-council/surrey,Surrey,http://id.esd.org.uk/service/1465,Council expenditure,03/01/2017,ACL CENTRAL EXPENDITURE,COOKSON PRECIOUS M,30.58,EQUIPMENT,"PRECIOUS STONES AND METALS, WATCHES AND JEWELRY"
04/05/2017,http://opendatacommunities.org/id/county-council/surrey,Surrey,http://id.esd.org.uk/service/1465,Council expenditure,03/01/2017,YOUTH ENGAGEMENT                        ,WWW.VIKING-DIRECT.CO.U,167.76,STATIONERY,STATIONERY/OFFICE SUPPLIES/PRINTING & WRITING PAP.
04/05/2017,http://opendatacommunities.org/id/county-council/surrey,Surrey,http://id.esd.org.uk/service/1465,Council expenditure,03/01/2017,CHAIRMAN,ELSA BROWN FLOWER STYL,775,EQUIPMENT,FLORISTS
04/05/2017,http://opendatacommunities.org/id/county-council/surrey,Surrey,http://id.esd.org.uk/service/1465,Council expenditure,03/01/2017,HOPE SERVICE - WEST,SAINSBURYS 0683,101.35,PURCHASE OF FOOD (RAW MATERIALS),"GROCERY STORES, SUPERMARKETS"
04/05/2017,http://opendatacommunities.org/id/county-council/surrey,Surrey,http://id.esd.org.uk/service/1465,Council expenditure,03/01/2017,CHAIRMAN,SODEXO-BSS,172,REFRESHMENT COSTS,"EATING PLACES, RESTAURANTS"
04/05/2017,http://opendatacommunities.org/id/county-council/surrey,Surrey,http://id.esd.org.uk/service/1465,Council expenditure,03/01/2017,ACL CENTRAL EXPENDITURE,WWW.HSWALSH.COM,31.66,EQUIPMENT,"CLOCK, JEWELRY, WATCH, AND SILVERWARE STORE"
04/05/2017,http://opendatacommunities.org/id/county-council/surrey,Surrey,http://id.esd.org.uk/service/1465,Council expenditure,03/01/2017,YSS YOUTH CENTRE IMPROVEMENTS,ARGOS RETAIL GROUP,39.98,EQUIPMENT,DISCOUNT STORES
04/05/2017,http://opendatacommunities.org/id/county-council/surrey,Surrey,http://id.esd.org.uk/service/1465,Council expenditure,03/01/2017,LOWER MOLE COUNTRYSIDE PROJECT,TESCO STORES 6320,6.6,POSTAGE AND COURIER CHARGES,"GROCERY STORES, SUPERMARKETS"
04/05/2017,http://opendatacommunities.org/id/county-council/surrey,Surrey,http://id.esd.org.uk/service/1465,Council expenditure,03/01/2017,ROW VOLUNTEERS EAST                     ,TOP GIFT,8,EQUIPMENT,"GIFT, CARD, NOVELTY AND SOUVENIR SHOPS"
04/05/2017,http://opendatacommunities.org/id/county-council/surrey,Surrey,http://id.esd.org.uk/service/1465,Council expenditure,03/01/2017,ENSEMBLES & TOURS,BOOSEY  HAWKES,254.17,EQUIPMENT,"MUSIC STORES-INSTRUMENTS, PIANOS, SHEET MUSIC"
04/05/2017,http://opendatacommunities.org/id/county-council/surrey,Surrey,http://id.esd.org.uk/service/1465,Council expenditure,03/01/2017,QUADRANT COURT WOKING,HORACE SMITH LOCKSMITH,29,DAY TO DAY MAINTENANCE,HARDWARE STORES
04/05/2017,http://opendatacommunities.org/id/county-council/surrey,Surrey,http://id.esd.org.uk/service/1465,Council expenditure,03/01/2017,FACILITIES - WEST,B I F M,197,SUBSCRIPTIONS,"ASSOCIATIONS-CIVIC, SOCIAL, AND FRATERNAL"
04/05/2017,http://opendatacommunities.org/id/county-council/surrey,Surrey,http://id.esd.org.uk/service/1465,Council expenditure,03/01/2017,LIBERTAS COMMUNITY HOME,SAINSBURYS 0652,21.4,PURCHASE OF FOOD (RAW MATERIALS),"GROCERY STORES, SUPERMARKETS"
04/05/2017,http://opendatacommunities.org/id/county-council/surrey,Surrey,http://id.esd.org.uk/service/1465,Council expenditure,03/01/2017,LIBERTAS COMMUNITY HOME,SAINSBURYS 0652,17.45,EQUIPMENT,"GROCERY STORES, SUPERMARKETS"
04/05/2017,http://opendatacommunities.org/id/county-council/surrey,Surrey,http://id.esd.org.uk/service/1465,Council expenditure,03/01/2017,LIBERTAS COMMUNITY HOME,SAINSBURYS 0652,156.73,PURCHASE OF FOOD (RAW MATERIALS),"GROCERY STORES, SUPERMARKETS"
04/05/2017,http://opendatacommunities.org/id/county-council/surrey,Surrey,http://id.esd.org.uk/service/1465,Council expenditure,03/01/2017,PHOENIX YC,TESCO STORE 3235,23.34,REFRESHMENT COSTS,"GROCERY STORES, SUPERMARKETS"
04/05/2017,http://opendatacommunities.org/id/county-council/surrey,Surrey,http://id.esd.org.uk/service/1465,Council expenditure,03/01/2017,TRANSPORT,GEOGRAPHERS A-Z,25.25,OPERATIONAL FIRE EQUIPMENT,BOOK STORES
04/05/2017,http://opendatacommunities.org/id/county-council/surrey,Surrey,http://id.esd.org.uk/service/1465,Council expenditure,03/01/2017,TRANSPORT,SP SERVICES,954,OPERATIONAL FIRE EQUIPMENT,DENTAL/LAB/MED/OPHTHALMIC HOSP EQUIP & SUPPLIES
04/05/2017,http://opendatacommunities.org/id/county-council/surrey,Surrey,http://id.esd.org.uk/service/1465,Council expenditure,03/01/2017,YOUTH ENGAGEMENT                        ,WWW.VIKING-DIRECT.CO.U,335.52,STATIONERY,STATIONERY/OFFICE SUPPLIES/PRINTING & WRITING PAP.
04/05/2017,http://opendatacommunities.org/id/county-council/surrey,Surrey,http://id.esd.org.uk/service/1465,Council expenditure,03/01/2017,WOODLANDS COMMUNITY HOME,PHOTOBOX LIMITED,25.29,EQUIPMENT,MISCELLANEOUS PUBLISHING AND PRINTING
04/05/2017,http://opendatacommunities.org/id/county-council/surrey,Surrey,http://id.esd.org.uk/service/1465,Council expenditure,03/01/2017,SAP COMPETENCY CENTRE,AMAZON MKTPLACE PMTS,"1,337.96",COMPUTER SERVICES,MISCELLANEOUS AND SPECIALTY RETAIL STORES
04/05/2017,http://opendatacommunities.org/id/county-council/surrey,Surrey,http://id.esd.org.uk/service/1465,Council expenditure,03/01/2017,IMT CRITICAL ENVIRONMENTS,TALKTALK BUSINESS,"2,206.52",TELECOMMUNICATION CHARGES,TELECOM INCL PREPAID/RECURRING PHONE SVCS
04/05/2017,http://opendatacommunities.org/id/county-council/surrey,Surrey,http://id.esd.org.uk/service/1465,Council expenditure,03/01/2017,TARGETED INTERVENTION,TRAINING-EXPERTISE,312,EDUC VISITS/HOLS/CAMPS/TOYS,"SCHOOLS, TRADE AND VOCATIONAL"
04/05/2017,http://opendatacommunities.org/id/county-council/surrey,Surrey,http://id.esd.org.uk/service/1465,Council expenditure,03/01/2017,SUPERFAST BROADBAND ECONOMIC DEVELOPMENT,LAYERSHIFT,60,COMPUTER SERVICES,COMPUTER NETWORK/INFORMATION SERVICES
04/05/2017,http://opendatacommunities.org/id/county-council/surrey,Surrey,http://id.esd.org.uk/service/1465,Council expenditure,03/01/2017,HOPE SERVICE - WEST,SAINSBURYS SACAT(4409),3.15,PURCHASE OF FOOD (RAW MATERIALS),"GROCERY STORES, SUPERMARKETS"
04/05/2017,http://opendatacommunities.org/id/county-council/surrey,Surrey,http://id.esd.org.uk/service/1465,Council expenditure,03/01/2017,HILLSIDE,TESCO STORE 3149,30.98,PURCHASE OF FOOD (RAW MATERIALS),"GROCERY STORES, SUPERMARKETS"
04/05/2017,http://opendatacommunities.org/id/county-council/surrey,Surrey,http://id.esd.org.uk/service/1465,Council expenditure,03/01/2017,HILLSIDE,TESCO STORE 3149,106.35,PURCHASE OF FOOD (RAW MATERIALS),"GROCERY STORES, SUPERMARKETS"
04/05/2017,http://opendatacommunities.org/id/county-council/surrey,Surrey,http://id.esd.org.uk/service/1465,Council expenditure,03/01/2017,FAIRCROFT COMMUNITY HOME,TESCO STORE 2160,194.54,PURCHASE OF FOOD (RAW MATERIALS),"GROCERY STORES, SUPERMARKETS"
04/05/2017,http://opendatacommunities.org/id/county-council/surrey,Surrey,http://id.esd.org.uk/service/1465,Council expenditure,03/01/2017,APPLEWOOD,ASDA HOME SHOPPING,149.37,PURCHASE OF FOOD (RAW MATERIALS),"GROCERY STORES, SUPERMARKETS"
04/05/2017,http://opendatacommunities.org/id/county-council/surrey,Surrey,http://id.esd.org.uk/service/1465,Council expenditure,03/01/2017,APPLEWOOD,ASDA HOME SHOPPING,-7.68,PURCHASE OF FOOD (RAW MATERIALS),"GROCERY STORES, SUPERMARKETS"
04/05/2017,http://opendatacommunities.org/id/county-council/surrey,Surrey,http://id.esd.org.uk/service/1465,Council expenditure,03/01/2017,CEO - PUBLIC HEALTH CAMPAIGNS           ,GOOGLE  ADWS2060179426,500,PUBLICITY,DIRECT MARKETING-CONTINUITY/SUBSCRIPTION MERCHANTS
04/05/2017,http://opendatacommunities.org/id/county-council/surrey,Surrey,http://id.esd.org.uk/service/1465,Council expenditure,04/01/2017,TARGETED INTERVENTION,THE ATRIUM CAMBERLEY,1.5,MISCELLANEOUS STAFF TRAVEL,PROFESSIONAL SERVICES-NOT ELSEWHERE CLASSIFIED
04/05/2017,http://opendatacommunities.org/id/county-council/surrey,Surrey,http://id.esd.org.uk/service/1465,Council expenditure,04/01/2017,NE CARE - LAC,WP-SIMPLYISLAM.COM,10.99,BOOKS,MISCELLANEOUS AND SPECIALTY RETAIL STORES
04/05/2017,http://opendatacommunities.org/id/county-council/surrey,Surrey,http://id.esd.org.uk/service/1465,Council expenditure,04/01/2017,NE CARE - LAC,WP-SIMPLYISLAM.COM,7.99,BOOKS,MISCELLANEOUS AND SPECIALTY RETAIL STORES
04/05/2017,http://opendatacommunities.org/id/county-council/surrey,Surrey,http://id.esd.org.uk/service/1465,Council expenditure,04/01/2017,NE CARE - LAC,WP-SIMPLYISLAM.COM,5.99,BOOKS,MISCELLANEOUS AND SPECIALTY RETAIL STORES
04/05/2017,http://opendatacommunities.org/id/county-council/surrey,Surrey,http://id.esd.org.uk/service/1465,Council expenditure,04/01/2017,COMMUNICATIONS TEAM,AMAZON UK RETAIL AMAZO,70.53,STATIONERY,MISCELLANEOUS AND SPECIALTY RETAIL STORES
04/05/2017,http://opendatacommunities.org/id/county-council/surrey,Surrey,http://id.esd.org.uk/service/1465,Council expenditure,04/01/2017,FAIRCROFT COMMUNITY HOME,PARENTPAY E-COM R,100,REFRESHMENT COSTS,"COLLEGES, UNIV, PRO SCHOOLS, JUNIOR COLLEGES"
04/05/2017,http://opendatacommunities.org/id/county-council/surrey,Surrey,http://id.esd.org.uk/service/1465,Council expenditure,04/01/2017,NW EDUCATION PSYCHOLOGISTS,AMAZON EU,45,BOOKS,DIRECT MARKETING-OTHER DIRECT MARKETERS/NOT ELSEW.
04/05/2017,http://opendatacommunities.org/id/county-council/surrey,Surrey,http://id.esd.org.uk/service/1465,Council expenditure,04/01/2017,WOODLANDS COMMUNITY HOME,AMAZON EU,35.98,EQUIPMENT,DIRECT MARKETING-OTHER DIRECT MARKETERS/NOT ELSEW.
04/05/2017,http://opendatacommunities.org/id/county-council/surrey,Surrey,http://id.esd.org.uk/service/1465,Council expenditure,04/01/2017,CRANLEIGH YC,CO-OP GROUP 500340,3.49,PURCHASE OF FOOD (RAW MATERIALS),"GROCERY STORES, SUPERMARKETS"
04/05/2017,http://opendatacommunities.org/id/county-council/surrey,Surrey,http://id.esd.org.uk/service/1465,Council expenditure,04/01/2017,ACL CENTRAL EXPENDITURE,SAINSBURYS 0686,21.3,REFRESHMENT COSTS,"GROCERY STORES, SUPERMARKETS"
04/05/2017,http://opendatacommunities.org/id/county-council/surrey,Surrey,http://id.esd.org.uk/service/1465,Council expenditure,04/01/2017,ARUNDEL,TESCO STORES 5999,86.97,REFRESHMENT COSTS,"GROCERY STORES, SUPERMARKETS"
04/05/2017,http://opendatacommunities.org/id/county-council/surrey,Surrey,http://id.esd.org.uk/service/1465,Council expenditure,04/01/2017,S28A MENTAL HEALTH,HMCTS-SURREY125,75,FEES,FINES
04/05/2017,http://opendatacommunities.org/id/county-council/surrey,Surrey,http://id.esd.org.uk/service/1465,Council expenditure,04/01/2017,SOLD ESTATES MANAGEMENT,B & Q 1029,42.12,DAY TO DAY MAINTENANCE,"BUILDING MATERIALS, LUMBER STORES"
04/05/2017,http://opendatacommunities.org/id/county-council/surrey,Surrey,http://id.esd.org.uk/service/1465,Council expenditure,04/01/2017,ACL CENTRAL EXPENDITURE,AMAZON UK MARKETPLACE,29.3,EQUIPMENT,BOOK STORES
04/05/2017,http://opendatacommunities.org/id/county-council/surrey,Surrey,http://id.esd.org.uk/service/1465,Council expenditure,04/01/2017,COUNTY HALL,WWW.AKRO.CO.UK,97.8,DAY TO DAY MAINTENANCE,HARDWARE EQUIPMENT AND SUPPLIES
04/05/2017,http://opendatacommunities.org/id/county-council/surrey,Surrey,http://id.esd.org.uk/service/1465,Council expenditure,04/01/2017,THAMESIDE CENTRE,AMAZON UK MARKETPLACE,26.93,STATIONERY,BOOK STORES
04/05/2017,http://opendatacommunities.org/id/county-council/surrey,Surrey,http://id.esd.org.uk/service/1465,Council expenditure,04/01/2017,YSS YOUTH CENTRE IMPROVEMENTS,AMAZON UK MARKETPLACE,24.7,EQUIPMENT,BOOK STORES
04/05/2017,http://opendatacommunities.org/id/county-council/surrey,Surrey,http://id.esd.org.uk/service/1465,Council expenditure,04/01/2017,EXTENDED HOPE,SAINSBURYS SACAT 0652,29.05,PURCHASE OF FOOD (RAW MATERIALS),"GROCERY STORES, SUPERMARKETS"
04/05/2017,http://opendatacommunities.org/id/county-council/surrey,Surrey,http://id.esd.org.uk/service/1465,Council expenditure,04/01/2017,CHEYNE WALK COMMUNITY HOME,TESCO STORE 2560,38.4,PURCHASE OF FOOD (RAW MATERIALS),"GROCERY STORES, SUPERMARKETS"
04/05/2017,http://opendatacommunities.org/id/county-council/surrey,Surrey,http://id.esd.org.uk/service/1465,Council expenditure,04/01/2017,ORBIS TRAINING PROPERTY,WWW.QA.COM,186,TRAINING EXPENSES EXTERNAL GENERAL,SCHOOLS & EDUCATIONAL SVC-NOT ELSEWHERE CLASSIFIED
04/05/2017,http://opendatacommunities.org/id/county-council/surrey,Surrey,http://id.esd.org.uk/service/1465,Council expenditure,04/01/2017,COUNTY HALL,SCREWFIX DIRECT,314.78,DAY TO DAY MAINTENANCE,"BUILDING MATERIALS, LUMBER STORES"
04/05/2017,http://opendatacommunities.org/id/county-council/surrey,Surrey,http://id.esd.org.uk/service/1465,Council expenditure,04/01/2017,HERITAGE PUBLIC SERVICE,BOOKER LIMITED ALDERSH,61.01,REFRESHMENT COSTS,CATERERS
04/05/2017,http://opendatacommunities.org/id/county-council/surrey,Surrey,http://id.esd.org.uk/service/1465,Council expenditure,04/01/2017,TS SERVICE MANAGEMENT,VIRTUAL TERMINAL,7.29,FEES,ACCESSORY AND APPAREL STORES-MISCELLANEOUS
04/05/2017,http://opendatacommunities.org/id/county-council/surrey,Surrey,http://id.esd.org.uk/service/1465,Council expenditure,04/01/2017,BURBANK COMMUNITY HOME,WWW.SURREYCC.GOV.UK,25,REFRESHMENT COSTS,GOVERNMENT SERVICES-NOT ELSEWHERE CLASSIFIED
04/05/2017,http://opendatacommunities.org/id/county-council/surrey,Surrey,http://id.esd.org.uk/service/1465,Council expenditure,04/01/2017,BURBANK COMMUNITY HOME,WICKES,19.99,DAY TO DAY MAINTENANCE,HOME SUPPLY WAREHOUSE STORES
04/05/2017,http://opendatacommunities.org/id/county-council/surrey,Surrey,http://id.esd.org.uk/service/1465,Council expenditure,04/01/2017,PROPERTY OPERATIONS TEAM,SCREWFIX DIRECT,8.79,PURCHASE OF BUILDING MATERIALS,"BUILDING MATERIALS, LUMBER STORES"
04/05/2017,http://opendatacommunities.org/id/county-council/surrey,Surrey,http://id.esd.org.uk/service/1465,Council expenditure,04/01/2017,TARGETED INTERVENTION,SAINSBURYS 0686,3.85,EDUC VISITS/HOLS/CAMPS/TOYS,"GROCERY STORES, SUPERMARKETS"
04/05/2017,http://opendatacommunities.org/id/county-council/surrey,Surrey,http://id.esd.org.uk/service/1465,Council expenditure,04/01/2017,ACL CENTRAL EXPENDITURE,SHOECARE,44,DAY TO DAY MAINTENANCE,"HAT CLEANING SHOPS, SHOE REPAIR SHOPS, SHOE SHINE"
04/05/2017,http://opendatacommunities.org/id/county-council/surrey,Surrey,http://id.esd.org.uk/service/1465,Council expenditure,04/01/2017,DOWNLANDS COUNTRYSIDE PROJECT,MOLE COUNTRY STORES,37.54,EQUIPMENT,AGRICULTURAL COOPERATIVES
04/05/2017,http://opendatacommunities.org/id/county-council/surrey,Surrey,http://id.esd.org.uk/service/1465,Council expenditure,04/01/2017,TRAVEL AND TRANSPORT GROUP,POUNDLAND,2,CLEANING AND DOMESTIC SUPPLIES,DISCOUNT STORES
04/05/2017,http://opendatacommunities.org/id/county-council/surrey,Surrey,http://id.esd.org.uk/service/1465,Council expenditure,04/01/2017,TARGETED INTERVENTION,STARBUCKS,6.05,EDUC VISITS/HOLS/CAMPS/TOYS,"EATING PLACES, RESTAURANTS"
04/05/2017,http://opendatacommunities.org/id/county-council/surrey,Surrey,http://id.esd.org.uk/service/1465,Council expenditure,04/01/2017,TARGETED INTERVENTION,STARBUCKS,6,EDUC VISITS/HOLS/CAMPS/TOYS,FAST FOOD RESTAURANTS
04/05/2017,http://opendatacommunities.org/id/county-council/surrey,Surrey,http://id.esd.org.uk/service/1465,Council expenditure,04/01/2017,SOLD ESTATES MANAGEMENT,CAR-COMM COACHWORKS,"1,061.47",VEHICLE REPAIRS AND MAINTENANCE,AUTOMOTIVE SERVICE SHOPS
04/05/2017,http://opendatacommunities.org/id/county-council/surrey,Surrey,http://id.esd.org.uk/service/1465,Council expenditure,04/01/2017,PROPERTY OPERATIONS TEAM,TOOLSTATION LTD,65.97,PURCHASE OF BUILDING MATERIALS,HARDWARE STORES
04/05/2017,http://opendatacommunities.org/id/county-council/surrey,Surrey,http://id.esd.org.uk/service/1465,Council expenditure,04/01/2017,INSTRUMENT HIRE SHOP,SOUTHWEST SHOPFITTINGS,54.54,EQUIPMENT,HARDWARE EQUIPMENT AND SUPPLIES
04/05/2017,http://opendatacommunities.org/id/county-council/surrey,Surrey,http://id.esd.org.uk/service/1465,Council expenditure,04/01/2017,COMMUNICATIONS - SURREY MATTERS,HOOTSUITE MEDIA INC.,6.04,SUBSCRIPTIONS,BUSINESS SERVICES-NOT ELSEWHERE CLASSIFIED
04/05/2017,http://opendatacommunities.org/id/county-council/surrey,Surrey,http://id.esd.org.uk/service/1465,Council expenditure,04/01/2017,PE/CDT MAINTENANCE OVERHEADS,SCREWFIX DIRECT,39.99,EQUIPMENT,"BUILDING MATERIALS, LUMBER STORES"
04/05/2017,http://opendatacommunities.org/id/county-council/surrey,Surrey,http://id.esd.org.uk/service/1465,Council expenditure,04/01/2017,APPLEWOOD,CARE IN BATHING LTD,61.35,EQUIPMENT,MISCELLANEOUS AND SPECIALTY RETAIL STORES
04/05/2017,http://opendatacommunities.org/id/county-council/surrey,Surrey,http://id.esd.org.uk/service/1465,Council expenditure,04/01/2017,LOWER MOLE COUNTRYSIDE PROJECT,WWW.HSDONLINE.CO.UK,52.39,EQUIPMENT,MISCELLANEOUS AND SPECIALTY RETAIL STORES
04/05/2017,http://opendatacommunities.org/id/county-council/surrey,Surrey,http://id.esd.org.uk/service/1465,Council expenditure,04/01/2017,APPLEWOOD,AMAZON UK MARKETPLACE,13.98,"CLOTHING, UNIFORM AND LAUNDRY",BOOK STORES
04/05/2017,http://opendatacommunities.org/id/county-council/surrey,Surrey,http://id.esd.org.uk/service/1465,Council expenditure,04/01/2017,RUTH HOUSE,G J HONOUR,289.84,PURCHASE OF FOOD (RAW MATERIALS),"MISC FOOD STORE-CONVENIENCE,MRKT,SPLTY,VENDNG MACS"
04/05/2017,http://opendatacommunities.org/id/county-council/surrey,Surrey,http://id.esd.org.uk/service/1465,Council expenditure,04/01/2017,APPLEWOOD,AMAZON UK MARKETPLACE,8.2,"CLOTHING, UNIFORM AND LAUNDRY",BOOK STORES
04/05/2017,http://opendatacommunities.org/id/county-council/surrey,Surrey,http://id.esd.org.uk/service/1465,Council expenditure,04/01/2017,COVEHAM,SAINSBURYS TO YOU 0687,8.1,PURCHASE OF FOOD (RAW MATERIALS),"GROCERY STORES, SUPERMARKETS"
04/05/2017,http://opendatacommunities.org/id/county-council/surrey,Surrey,http://id.esd.org.uk/service/1465,Council expenditure,04/01/2017,COVEHAM,SAINSBURYS TO YOU 0687,99.86,REFRESHMENT COSTS,"GROCERY STORES, SUPERMARKETS"
04/05/2017,http://opendatacommunities.org/id/county-council/surrey,Surrey,http://id.esd.org.uk/service/1465,Council expenditure,04/01/2017,TARGETED INTERVENTION,STARBUCKS,5.8,EDUC VISITS/HOLS/CAMPS/TOYS,"EATING PLACES, RESTAURANTS"
04/05/2017,http://opendatacommunities.org/id/county-council/surrey,Surrey,http://id.esd.org.uk/service/1465,Council expenditure,04/01/2017,TRANSPORT,AMAZON UK MARKETPLACE,23.59,STATIONERY,BOOK STORES
04/05/2017,http://opendatacommunities.org/id/county-council/surrey,Surrey,http://id.esd.org.uk/service/1465,Council expenditure,04/01/2017,HOPE SERVICE - WEST,AMAZON UK MARKETPLACE,14.49,CURRICULUM CONSUMABLES,BOOK STORES
04/05/2017,http://opendatacommunities.org/id/county-council/surrey,Surrey,http://id.esd.org.uk/service/1465,Council expenditure,04/01/2017,ASSISTED PURCHASE SCHEME,PROZONE MUSIC LTD,"3,010.00",EQUIPMENT,"MUSIC STORES-INSTRUMENTS, PIANOS, SHEET MUSIC"
04/05/2017,http://opendatacommunities.org/id/county-council/surrey,Surrey,http://id.esd.org.uk/service/1465,Council expenditure,04/01/2017,TARGETED INTERVENTION,FREEDOM LEISURE,2.25,EDUC VISITS/HOLS/CAMPS/TOYS,GOVERNMENT SERVICES-NOT ELSEWHERE CLASSIFIED
04/05/2017,http://opendatacommunities.org/id/county-council/surrey,Surrey,http://id.esd.org.uk/service/1465,Council expenditure,04/01/2017,TARGETED INTERVENTION,TOP GOLF,10.5,EDUC VISITS/HOLS/CAMPS/TOYS,"CLUBS-CNTRY,MBRSHIP(ATHLET,REC,SPRTS,PRIVATE GOLF"
04/05/2017,http://opendatacommunities.org/id/county-council/surrey,Surrey,http://id.esd.org.uk/service/1465,Council expenditure,04/01/2017,TARGETED INTERVENTION,GODALMING LEISURE CENT,4.2,EDUC VISITS/HOLS/CAMPS/TOYS,"CLUBS-CNTRY,MBRSHIP(ATHLET,REC,SPRTS,PRIVATE GOLF"
04/05/2017,http://opendatacommunities.org/id/county-council/surrey,Surrey,http://id.esd.org.uk/service/1465,Council expenditure,04/01/2017,RESOURCES FUND,AMAZON UK MARKETPLACE,14.09,LIBRARY RESOURCES,BOOK STORES
04/05/2017,http://opendatacommunities.org/id/county-council/surrey,Surrey,http://id.esd.org.uk/service/1465,Council expenditure,04/01/2017,RESOURCES FUND,AMAZON UK MARKETPLACE,27.79,LIBRARY RESOURCES,BOOK STORES
04/05/2017,http://opendatacommunities.org/id/county-council/surrey,Surrey,http://id.esd.org.uk/service/1465,Council expenditure,04/01/2017,RESOURCES FUND,AMAZON UK RETAIL AMAZO,25.93,LIBRARY RESOURCES,MISCELLANEOUS AND SPECIALTY RETAIL STORES
04/05/2017,http://opendatacommunities.org/id/county-council/surrey,Surrey,http://id.esd.org.uk/service/1465,Council expenditure,04/01/2017,HILLSIDE,SAINSBURYS 0675,17.35,PURCHASE OF FOOD (RAW MATERIALS),"GROCERY STORES, SUPERMARKETS"
04/05/2017,http://opendatacommunities.org/id/county-council/surrey,Surrey,http://id.esd.org.uk/service/1465,Council expenditure,04/01/2017,HOPE SERVICE - WEST,SAINSBURYS SACAT(4409),1.7,NEWSPAPER AND PERIODICALS,"GROCERY STORES, SUPERMARKETS"
04/05/2017,http://opendatacommunities.org/id/county-council/surrey,Surrey,http://id.esd.org.uk/service/1465,Council expenditure,04/01/2017,NW TEACHERS,AMAZON UK MARKETPLACE,7.98,EQUIPMENT,BOOK STORES
04/05/2017,http://opendatacommunities.org/id/county-council/surrey,Surrey,http://id.esd.org.uk/service/1465,Council expenditure,04/01/2017,BURBANK COMMUNITY HOME,W M MORRISONS,35,EQUIPMENT,"GROCERY STORES, SUPERMARKETS"
04/05/2017,http://opendatacommunities.org/id/county-council/surrey,Surrey,http://id.esd.org.uk/service/1465,Council expenditure,04/01/2017,EXTENDED HOPE,SAINSBURYS TO YOU 0652,85.8,PURCHASE OF FOOD (RAW MATERIALS),"GROCERY STORES, SUPERMARKETS"
04/05/2017,http://opendatacommunities.org/id/county-council/surrey,Surrey,http://id.esd.org.uk/service/1465,Council expenditure,04/01/2017,LEAVING CARE PACKAGES,ARGOS RETAIL GROUP,55.93,EQUIPMENT,DISCOUNT STORES
04/05/2017,http://opendatacommunities.org/id/county-council/surrey,Surrey,http://id.esd.org.uk/service/1465,Council expenditure,04/01/2017,QUADRANT COURT WOKING,AO RETAIL LIMITED,133.99,EQUIPMENT,HOUSEHOLD APPLIANCE STORES
04/05/2017,http://opendatacommunities.org/id/county-council/surrey,Surrey,http://id.esd.org.uk/service/1465,Council expenditure,04/01/2017,QUADRANT COURT WOKING,CITY ELECTRICAL FA,208.68,DAY TO DAY MAINTENANCE,"BUILDING MATERIALS, LUMBER STORES"
04/05/2017,http://opendatacommunities.org/id/county-council/surrey,Surrey,http://id.esd.org.uk/service/1465,Council expenditure,04/01/2017,ASSET PLANNING - OPERATIONS,SAINSBURYS SACAT 0652,14,EQUIPMENT,"GROCERY STORES, SUPERMARKETS"
04/05/2017,http://opendatacommunities.org/id/county-council/surrey,Surrey,http://id.esd.org.uk/service/1465,Council expenditure,04/01/2017,BURBANK COMMUNITY HOME,SAINSBURYS TO YOU 0686,304.74,PURCHASE OF FOOD (RAW MATERIALS),"GROCERY STORES, SUPERMARKETS"
04/05/2017,http://opendatacommunities.org/id/county-council/surrey,Surrey,http://id.esd.org.uk/service/1465,Council expenditure,04/01/2017,HOPE SERVICE - WEST,SAINSBURYS TO YOU 0686,149.1,PURCHASE OF FOOD (RAW MATERIALS),"GROCERY STORES, SUPERMARKETS"
04/05/2017,http://opendatacommunities.org/id/county-council/surrey,Surrey,http://id.esd.org.uk/service/1465,Council expenditure,04/01/2017,FAIRCROFT COMMUNITY HOME,TESCO STORE 2160,133.92,PURCHASE OF FOOD (RAW MATERIALS),"GROCERY STORES, SUPERMARKETS"
04/05/2017,http://opendatacommunities.org/id/county-council/surrey,Surrey,http://id.esd.org.uk/service/1465,Council expenditure,05/01/2017,RESOURCES FUND,AMAZON UK RETAIL AMAZO,80.36,LIBRARY RESOURCES,MISCELLANEOUS AND SPECIALTY RETAIL STORES
04/05/2017,http://opendatacommunities.org/id/county-council/surrey,Surrey,http://id.esd.org.uk/service/1465,Council expenditure,05/01/2017,CLOSED LANDFILL,RS COMPONENTS,492.17,EQUIPMENT,ELECTRICAL PARTS AND EQUIPMENT
04/05/2017,http://opendatacommunities.org/id/county-council/surrey,Surrey,http://id.esd.org.uk/service/1465,Council expenditure,05/01/2017,TARGETED INTERVENTION,WOKING SNOOKER CENTRE,18.75,EDUC VISITS/HOLS/CAMPS/TOYS,RECREATIONAL AND SPORTING CAMPS
04/05/2017,http://opendatacommunities.org/id/county-council/surrey,Surrey,http://id.esd.org.uk/service/1465,Council expenditure,05/01/2017,TARGETED INTERVENTION,THE ATRIUM CAMBERLEY,3,EDUC VISITS/HOLS/CAMPS/TOYS,PROFESSIONAL SERVICES-NOT ELSEWHERE CLASSIFIED
04/05/2017,http://opendatacommunities.org/id/county-council/surrey,Surrey,http://id.esd.org.uk/service/1465,Council expenditure,05/01/2017,CORPORATE GROUP - LEGAL SERVICES,BHCC-PAYPHONEPARKING,4.1,EXPENSES,GOVERNMENT SERVICES-NOT ELSEWHERE CLASSIFIED
04/05/2017,http://opendatacommunities.org/id/county-council/surrey,Surrey,http://id.esd.org.uk/service/1465,Council expenditure,05/01/2017,TARGETED INTERVENTION,CERAMICS CAFE HERSHAM,44.25,EDUC VISITS/HOLS/CAMPS/TOYS,MISCELLANEOUS HOUSE FURNISHING SPECIALTY SHOPS
04/05/2017,http://opendatacommunities.org/id/county-council/surrey,Surrey,http://id.esd.org.uk/service/1465,Council expenditure,05/01/2017,LEAVING CARE PACKAGES,TVLICENSING.CO.UK,145.5,OTHER COMMUNITY CARE VOL,"CONSULTING, MANAGEMENT, AND PUBLIC RELATIONS SVCS"
04/05/2017,http://opendatacommunities.org/id/county-council/surrey,Surrey,http://id.esd.org.uk/service/1465,Council expenditure,05/01/2017,CHEYNE WALK COMMUNITY HOME,ASDA STORES,23.3,PURCHASE OF FOOD (RAW MATERIALS),"GROCERY STORES, SUPERMARKETS"
04/05/2017,http://opendatacommunities.org/id/county-council/surrey,Surrey,http://id.esd.org.uk/service/1465,Council expenditure,05/01/2017,CHEYNE WALK COMMUNITY HOME,43035640 COSTA COFFEE,10.25,EDUC VISITS/HOLS/CAMPS/TOYS,FAST FOOD RESTAURANTS
04/05/2017,http://opendatacommunities.org/id/county-council/surrey,Surrey,http://id.esd.org.uk/service/1465,Council expenditure,05/01/2017,CHEYNE WALK COMMUNITY HOME,MONSOON ACCZ LTD,7.5,"CLOTHING, UNIFORM AND LAUNDRY",FAMILY CLOTHING STORES
04/05/2017,http://opendatacommunities.org/id/county-council/surrey,Surrey,http://id.esd.org.uk/service/1465,Council expenditure,05/01/2017,CHEYNE WALK COMMUNITY HOME,CALENDAR CLUB LTD,5.39,EQUIPMENT,"GIFT, CARD, NOVELTY AND SOUVENIR SHOPS"
04/05/2017,http://opendatacommunities.org/id/county-council/surrey,Surrey,http://id.esd.org.uk/service/1465,Council expenditure,05/01/2017,CHEYNE WALK COMMUNITY HOME,DEBENHAMS,35,"CLOTHING, UNIFORM AND LAUNDRY",DEPARTMENT STORES
04/05/2017,http://opendatacommunities.org/id/county-council/surrey,Surrey,http://id.esd.org.uk/service/1465,Council expenditure,05/01/2017,CHEYNE WALK COMMUNITY HOME,DEBENHAMS,85.35,"CLOTHING, UNIFORM AND LAUNDRY",DEPARTMENT STORES
04/05/2017,http://opendatacommunities.org/id/county-council/surrey,Surrey,http://id.esd.org.uk/service/1465,Council expenditure,05/01/2017,ARUNDEL,TESCO STORES 5999,86.51,REFRESHMENT COSTS,"GROCERY STORES, SUPERMARKETS"
04/05/2017,http://opendatacommunities.org/id/county-council/surrey,Surrey,http://id.esd.org.uk/service/1465,Council expenditure,05/01/2017,ARUNDEL,TESCO STORES 5999,2.59,REFRESHMENT COSTS,"GROCERY STORES, SUPERMARKETS"
04/05/2017,http://opendatacommunities.org/id/county-council/surrey,Surrey,http://id.esd.org.uk/service/1465,Council expenditure,05/01/2017,THE STREET YC,WAITROSE 838,5.15,REFRESHMENT COSTS,"GROCERY STORES, SUPERMARKETS"
04/05/2017,http://opendatacommunities.org/id/county-council/surrey,Surrey,http://id.esd.org.uk/service/1465,Council expenditure,05/01/2017,KARIBU COMMUNITY HOME,AMAZON EU,8,BOOKS,DIRECT MARKETING-OTHER DIRECT MARKETERS/NOT ELSEW.
04/05/2017,http://opendatacommunities.org/id/county-council/surrey,Surrey,http://id.esd.org.uk/service/1465,Council expenditure,05/01/2017,KARIBU COMMUNITY HOME,AMAZON UK RETAIL AMAZO,12.99,EDUC VISITS/HOLS/CAMPS/TOYS,MISCELLANEOUS AND SPECIALTY RETAIL STORES
04/05/2017,http://opendatacommunities.org/id/county-council/surrey,Surrey,http://id.esd.org.uk/service/1465,Council expenditure,05/01/2017,FAIRCROFT COMMUNITY HOME,NEW LOOK,55.04,"CLOTHING, UNIFORM AND LAUNDRY",WOMEN'S READY TO WEAR STORES
04/05/2017,http://opendatacommunities.org/id/county-council/surrey,Surrey,http://id.esd.org.uk/service/1465,Council expenditure,05/01/2017,SOLD DAY TO DAY OPERATIONS,COTSWOLD OUTDOOR,19.18,EQUIPMENT,MEN'S AND WOMEN'S CLOTHING STORES
04/05/2017,http://opendatacommunities.org/id/county-council/surrey,Surrey,http://id.esd.org.uk/service/1465,Council expenditure,05/01/2017,CHEYNE WALK COMMUNITY HOME,TESCO STORES 2560,4.3,PURCHASE OF FOOD (RAW MATERIALS),"GROCERY STORES, SUPERMARKETS"
04/05/2017,http://opendatacommunities.org/id/county-council/surrey,Surrey,http://id.esd.org.uk/service/1465,Council expenditure,05/01/2017,FOSTERING SERVICE CENTRAL COSTS,WWW.TTS-GROUPS.CO.UK,7.19,EQUIPMENT,"OFFICE, SCHOOL SUPPLY, AND STATIONERY STORES"
04/05/2017,http://opendatacommunities.org/id/county-council/surrey,Surrey,http://id.esd.org.uk/service/1465,Council expenditure,05/01/2017,SOVEREIGNS YC,POST OFFICE COUNTER,13.75,POSTAGE AND COURIER CHARGES,POSTAL SERVICES-GOVERNMENT ONLY
04/05/2017,http://opendatacommunities.org/id/county-council/surrey,Surrey,http://id.esd.org.uk/service/1465,Council expenditure,05/01/2017,ACL CENTRAL EXPENDITURE,FARNHAM CASTLE NEWSPAP,180,PUBLICITY,ADVERTISING SERVICES
04/05/2017,http://opendatacommunities.org/id/county-council/surrey,Surrey,http://id.esd.org.uk/service/1465,Council expenditure,05/01/2017,SOLD MANAGEMENT AND OVERHEADS,THE INSTITUTE FOR OUTD,90,SUBSCRIPTIONS,"ORGANIZATIONS, CHARITABLE AND SOCIAL SERVICES"
04/05/2017,http://opendatacommunities.org/id/county-council/surrey,Surrey,http://id.esd.org.uk/service/1465,Council expenditure,05/01/2017,DEVOLUTION FUND,ELIOR@WEST SUSSEX COUN,27.6,REFRESHMENT COSTS,CATERERS
04/05/2017,http://opendatacommunities.org/id/county-council/surrey,Surrey,http://id.esd.org.uk/service/1465,Council expenditure,05/01/2017,ACL CENTRAL EXPENDITURE,AMAZON EU,102.34,COMPUTER CONSUMABLES,DIRECT MARKETING-OTHER DIRECT MARKETERS/NOT ELSEW.
04/05/2017,http://opendatacommunities.org/id/county-council/surrey,Surrey,http://id.esd.org.uk/service/1465,Council expenditure,05/01/2017,TARGETED INTERVENTION,FREEDOM LEISURE,7.3,EDUC VISITS/HOLS/CAMPS/TOYS,GOVERNMENT SERVICES-NOT ELSEWHERE CLASSIFIED
04/05/2017,http://opendatacommunities.org/id/county-council/surrey,Surrey,http://id.esd.org.uk/service/1465,Council expenditure,05/01/2017,TARGETED INTERVENTION,TESCO STORES 2017,4.29,EDUC VISITS/HOLS/CAMPS/TOYS,"GROCERY STORES, SUPERMARKETS"
04/05/2017,http://opendatacommunities.org/id/county-council/surrey,Surrey,http://id.esd.org.uk/service/1465,Council expenditure,05/01/2017,SOLD DAY TO DAY OPERATIONS,AMAZON UK MARKETPLACE,84.55,EQUIPMENT,BOOK STORES
04/05/2017,http://opendatacommunities.org/id/county-council/surrey,Surrey,http://id.esd.org.uk/service/1465,Council expenditure,05/01/2017,SOLD DAY TO DAY OPERATIONS,AMAZON UK MARKETPLACE,22.95,EQUIPMENT,BOOK STORES
04/05/2017,http://opendatacommunities.org/id/county-council/surrey,Surrey,http://id.esd.org.uk/service/1465,Council expenditure,05/01/2017,TARGETED INTERVENTION,STARBUCKS,9.9,EDUC VISITS/HOLS/CAMPS/TOYS,"EATING PLACES, RESTAURANTS"
04/05/2017,http://opendatacommunities.org/id/county-council/surrey,Surrey,http://id.esd.org.uk/service/1465,Council expenditure,05/01/2017,SOLD DAY TO DAY OPERATIONS,AMAZON UK MARKETPLACE,12.97,EQUIPMENT,BOOK STORES
04/05/2017,http://opendatacommunities.org/id/county-council/surrey,Surrey,http://id.esd.org.uk/service/1465,Council expenditure,05/01/2017,SOLD DAY TO DAY OPERATIONS,AMAZON UK MARKETPLACE,24.99,EQUIPMENT,BOOK STORES
04/05/2017,http://opendatacommunities.org/id/county-council/surrey,Surrey,http://id.esd.org.uk/service/1465,Council expenditure,05/01/2017,YSS MANAGEMENT PRACTICE AND SUPPORT,AMAZON UK MARKETPLACE,20.54,EQUIPMENT,BOOK STORES
04/05/2017,http://opendatacommunities.org/id/county-council/surrey,Surrey,http://id.esd.org.uk/service/1465,Council expenditure,05/01/2017,FRIMLEY YC,BAKER ROSS LTD,232.46,CURRICULUM CONSUMABLES,"ARTIST SUPPLY STORES, CRAFT SHOPS"
04/05/2017,http://opendatacommunities.org/id/county-council/surrey,Surrey,http://id.esd.org.uk/service/1465,Council expenditure,05/01/2017,ROW VOLUNTEERS EAST                     ,AMAZON UK MARKETPLACE,15.68,EQUIPMENT,BOOK STORES
04/05/2017,http://opendatacommunities.org/id/county-council/surrey,Surrey,http://id.esd.org.uk/service/1465,Council expenditure,05/01/2017,ROW VOLUNTEERS EAST                     ,AMAZON UK MARKETPLACE,11.98,EQUIPMENT,BOOK STORES
04/05/2017,http://opendatacommunities.org/id/county-council/surrey,Surrey,http://id.esd.org.uk/service/1465,Council expenditure,05/01/2017,PROPERTY OPERATIONS TEAM,SCREWFIX DIRECT,26.82,PURCHASE OF BUILDING MATERIALS,"BUILDING MATERIALS, LUMBER STORES"
04/05/2017,http://opendatacommunities.org/id/county-council/surrey,Surrey,http://id.esd.org.uk/service/1465,Council expenditure,05/01/2017,IMT CRITICAL ENVIRONMENTS,AMAZON UK RETAIL AMAZO,96.38,REFRESHMENT COSTS,MISCELLANEOUS AND SPECIALTY RETAIL STORES
04/05/2017,http://opendatacommunities.org/id/county-council/surrey,Surrey,http://id.esd.org.uk/service/1465,Council expenditure,05/01/2017,EXTENDED HOPE,SLEEPWELL,318,FURNITURE,"EQUIP, FURNITURE, HOME FURNSHNGS STRS (EXCPT APPL)"
04/05/2017,http://opendatacommunities.org/id/county-council/surrey,Surrey,http://id.esd.org.uk/service/1465,Council expenditure,05/01/2017,TARGETED INTERVENTION,FREEDOM LEISURE,16.4,EDUC VISITS/HOLS/CAMPS/TOYS,GOVERNMENT SERVICES-NOT ELSEWHERE CLASSIFIED
04/05/2017,http://opendatacommunities.org/id/county-council/surrey,Surrey,http://id.esd.org.uk/service/1465,Council expenditure,05/01/2017,TARGETED INTERVENTION,TENPIN,33.1,EDUC VISITS/HOLS/CAMPS/TOYS,"CLUBS-CNTRY,MBRSHIP(ATHLET,REC,SPRTS,PRIVATE GOLF"
04/05/2017,http://opendatacommunities.org/id/county-council/surrey,Surrey,http://id.esd.org.uk/service/1465,Council expenditure,05/01/2017,LIBERTAS COMMUNITY HOME,SIR & MADAM,252.45,REFRESHMENT COSTS,"EATING PLACES, RESTAURANTS"
04/05/2017,http://opendatacommunities.org/id/county-council/surrey,Surrey,http://id.esd.org.uk/service/1465,Council expenditure,05/01/2017,EXTENDED HOPE,SAINSBURYS 0652,100,PURCHASE OF FOOD (RAW MATERIALS),"GROCERY STORES, SUPERMARKETS"
04/05/2017,http://opendatacommunities.org/id/county-council/surrey,Surrey,http://id.esd.org.uk/service/1465,Council expenditure,05/01/2017,APPLEWOOD,AMAZON UK MARKETPLACE,3.98,"CLOTHING, UNIFORM AND LAUNDRY",BOOK STORES
04/05/2017,http://opendatacommunities.org/id/county-council/surrey,Surrey,http://id.esd.org.uk/service/1465,Council expenditure,05/01/2017,EXTENDED HOPE,ALDI,10.27,PURCHASE OF FOOD (RAW MATERIALS),"GROCERY STORES, SUPERMARKETS"
04/05/2017,http://opendatacommunities.org/id/county-council/surrey,Surrey,http://id.esd.org.uk/service/1465,Council expenditure,05/01/2017,LIBERTAS COMMUNITY HOME,WWW.PARENTMAIL.CO.,20,EDUC VISITS/HOLS/CAMPS/TOYS,SCHOOLS & EDUCATIONAL SVC-NOT ELSEWHERE CLASSIFIED
04/05/2017,http://opendatacommunities.org/id/county-council/surrey,Surrey,http://id.esd.org.uk/service/1465,Council expenditure,05/01/2017,BURBANK COMMUNITY HOME,FAST KEY SERVICES LIMI,19.18,EQUIPMENT,BUSINESS SERVICES-NOT ELSEWHERE CLASSIFIED
04/05/2017,http://opendatacommunities.org/id/county-council/surrey,Surrey,http://id.esd.org.uk/service/1465,Council expenditure,05/01/2017,TARGETED INTERVENTION,FREEDOM LEISURE,4.4,EDUC VISITS/HOLS/CAMPS/TOYS,GOVERNMENT SERVICES-NOT ELSEWHERE CLASSIFIED
04/05/2017,http://opendatacommunities.org/id/county-council/surrey,Surrey,http://id.esd.org.uk/service/1465,Council expenditure,05/01/2017,PROPERTY OPERATIONS TEAM,HOMEBASE LTD 247,10.35,PURCHASE OF BUILDING MATERIALS,"BUILDING MATERIALS, LUMBER STORES"
04/05/2017,http://opendatacommunities.org/id/county-council/surrey,Surrey,http://id.esd.org.uk/service/1465,Council expenditure,05/01/2017,TARGETED INTERVENTION,STARBUCKS,8.7,EDUC VISITS/HOLS/CAMPS/TOYS,"EATING PLACES, RESTAURANTS"
04/05/2017,http://opendatacommunities.org/id/county-council/surrey,Surrey,http://id.esd.org.uk/service/1465,Council expenditure,05/01/2017,TARGETED INTERVENTION,SAINSBURYS 0686,6.1,EDUC VISITS/HOLS/CAMPS/TOYS,"GROCERY STORES, SUPERMARKETS"
04/05/2017,http://opendatacommunities.org/id/county-council/surrey,Surrey,http://id.esd.org.uk/service/1465,Council expenditure,05/01/2017,BURBANK COMMUNITY HOME,BT BILL PAYMENT 1,100.44,EQUIPMENT,TELECOMMUNICATION EQUIPMENT INCL TELEPHONE SALES
04/05/2017,http://opendatacommunities.org/id/county-council/surrey,Surrey,http://id.esd.org.uk/service/1465,Council expenditure,05/01/2017,GUILDFORD BOROUGH TEAM                  ,SAFEGUARD COACHES,26,NON-STAFF RELATED TRANSPORT COSTS,LIMOUSINES AND TAXICABS
04/05/2017,http://opendatacommunities.org/id/county-council/surrey,Surrey,http://id.esd.org.uk/service/1465,Council expenditure,05/01/2017,SOLD DAY TO DAY OPERATIONS,TESCO-STORES 2590,12,EQUIPMENT,"GROCERY STORES, SUPERMARKETS"
04/05/2017,http://opendatacommunities.org/id/county-council/surrey,Surrey,http://id.esd.org.uk/service/1465,Council expenditure,05/01/2017,ASSET PLANNING - OPERATIONS,SCREWFIX GUILDFORD,71.98,EQUIPMENT,"BUILDING MATERIALS, LUMBER STORES"
04/05/2017,http://opendatacommunities.org/id/county-council/surrey,Surrey,http://id.esd.org.uk/service/1465,Council expenditure,05/01/2017,TARGETED INTERVENTION,STARBUCKS,5.4,EDUC VISITS/HOLS/CAMPS/TOYS,"EATING PLACES, RESTAURANTS"
04/05/2017,http://opendatacommunities.org/id/county-council/surrey,Surrey,http://id.esd.org.uk/service/1465,Council expenditure,05/01/2017,RESOURCES FUND,AMAZON UK MARKETPLACE,60.49,LIBRARY RESOURCES,BOOK STORES
04/05/2017,http://opendatacommunities.org/id/county-council/surrey,Surrey,http://id.esd.org.uk/service/1465,Council expenditure,05/01/2017,RESOURCES FUND,AMAZON UK MARKETPLACE,13.75,LIBRARY RESOURCES,BOOK STORES
04/05/2017,http://opendatacommunities.org/id/county-council/surrey,Surrey,http://id.esd.org.uk/service/1465,Council expenditure,05/01/2017,ASHTEAD YC,THETICKETFACTORY,208,EDUC VISITS/HOLS/CAMPS/TOYS,"THEATRICAL PRODUCERS(EXCL MOTION PIX),TICKET AGNCY"
04/05/2017,http://opendatacommunities.org/id/county-council/surrey,Surrey,http://id.esd.org.uk/service/1465,Council expenditure,05/01/2017,HILLSIDE,SAINSBURYS 0675,48.73,PURCHASE OF FOOD (RAW MATERIALS),"GROCERY STORES, SUPERMARKETS"
04/05/2017,http://opendatacommunities.org/id/county-council/surrey,Surrey,http://id.esd.org.uk/service/1465,Council expenditure,05/01/2017,ENSEMBLES & TOURS,MAECENAS MUSIC LTD,123.85,EQUIPMENT,SCHOOLS & EDUCATIONAL SVC-NOT ELSEWHERE CLASSIFIED
04/05/2017,http://opendatacommunities.org/id/county-council/surrey,Surrey,http://id.esd.org.uk/service/1465,Council expenditure,05/01/2017,CONSORT HOUSE REDHILL,WICKES,37.98,EQUIPMENT,HOME SUPPLY WAREHOUSE STORES
04/05/2017,http://opendatacommunities.org/id/county-council/surrey,Surrey,http://id.esd.org.uk/service/1465,Council expenditure,05/01/2017,WOODLANDS COMMUNITY HOME,SAINSBURYS 0686,23.75,PURCHASE OF FOOD (RAW MATERIALS),"GROCERY STORES, SUPERMARKETS"
04/05/2017,http://opendatacommunities.org/id/county-council/surrey,Surrey,http://id.esd.org.uk/service/1465,Council expenditure,05/01/2017,SOLD CATERING,WAITROSE 202,21.04,PURCHASE OF FOOD (RAW MATERIALS),"GROCERY STORES, SUPERMARKETS"
04/05/2017,http://opendatacommunities.org/id/county-council/surrey,Surrey,http://id.esd.org.uk/service/1465,Council expenditure,05/01/2017,SE CARE - LAC,GRO HM PASSPORT OFFICE,18.5,CHILDREN ACT SEC 17 PAYMENTS,GOVERNMENT SERVICES-NOT ELSEWHERE CLASSIFIED
04/05/2017,http://opendatacommunities.org/id/county-council/surrey,Surrey,http://id.esd.org.uk/service/1465,Council expenditure,05/01/2017,CHEYNE WALK COMMUNITY HOME,TESCO-STORES 6647,128.84,PURCHASE OF FOOD (RAW MATERIALS),"GROCERY STORES, SUPERMARKETS"
04/05/2017,http://opendatacommunities.org/id/county-council/surrey,Surrey,http://id.esd.org.uk/service/1465,Council expenditure,05/01/2017,RESOURCES FUND,AMAZON EU,17.34,LIBRARY RESOURCES,DIRECT MARKETING-OTHER DIRECT MARKETERS/NOT ELSEW.
04/05/2017,http://opendatacommunities.org/id/county-council/surrey,Surrey,http://id.esd.org.uk/service/1465,Council expenditure,06/01/2017,HOPE SERVICE - WEST,WWW.CASSART.CO.UK,57.2,CURRICULUM EQUIPMENT AND FURNITURE,"ARTIST SUPPLY STORES, CRAFT SHOPS"
04/05/2017,http://opendatacommunities.org/id/county-council/surrey,Surrey,http://id.esd.org.uk/service/1465,Council expenditure,06/01/2017,TARGETED INTERVENTION,THE ATRIUM CAMBERLEY,1.8,MISCELLANEOUS STAFF TRAVEL,PROFESSIONAL SERVICES-NOT ELSEWHERE CLASSIFIED
04/05/2017,http://opendatacommunities.org/id/county-council/surrey,Surrey,http://id.esd.org.uk/service/1465,Council expenditure,06/01/2017,LIBERTAS COMMUNITY HOME,ETSY.COM - CHIKATPRINT,4.21,3RD PARTY PAYMENTS PRIVATE INDIV,ACCESSORY AND APPAREL STORES-MISCELLANEOUS
04/05/2017,http://opendatacommunities.org/id/county-council/surrey,Surrey,http://id.esd.org.uk/service/1465,Council expenditure,06/01/2017,LIBERTAS COMMUNITY HOME,ETSY.COM - WARMTAGS,26.5,3RD PARTY PAYMENTS PRIVATE INDIV,ACCESSORY AND APPAREL STORES-MISCELLANEOUS
04/05/2017,http://opendatacommunities.org/id/county-council/surrey,Surrey,http://id.esd.org.uk/service/1465,Council expenditure,06/01/2017,LIBERTAS COMMUNITY HOME,PAYPAL  RIVERSIDERE,2.25,3RD PARTY PAYMENTS PRIVATE INDIV,DISCOUNT STORES
04/05/2017,http://opendatacommunities.org/id/county-council/surrey,Surrey,http://id.esd.org.uk/service/1465,Council expenditure,06/01/2017,PAMS IMPLEMENTATION COSTS,AMAZON UK MARKETPLACE,764.99,EQUIPMENT,BOOK STORES
04/05/2017,http://opendatacommunities.org/id/county-council/surrey,Surrey,http://id.esd.org.uk/service/1465,Council expenditure,06/01/2017,WOODLANDS COMMUNITY HOME,VUE BSL-SITE,64.16,EDUC VISITS/HOLS/CAMPS/TOYS,MOTION PICTURE THEATERS
04/05/2017,http://opendatacommunities.org/id/county-council/surrey,Surrey,http://id.esd.org.uk/service/1465,Council expenditure,06/01/2017,NW SECTION 17 CARE,TRAVELODGE,154.05,OTHER COMMUNITY CARE PRIV,TRAVELODGE
04/05/2017,http://opendatacommunities.org/id/county-council/surrey,Surrey,http://id.esd.org.uk/service/1465,Council expenditure,06/01/2017,HERITAGE ENTERPRISE (SCAU),AMAZON UK MARKETPLACE,24.73,STATIONERY,BOOK STORES
04/05/2017,http://opendatacommunities.org/id/county-council/surrey,Surrey,http://id.esd.org.uk/service/1465,Council expenditure,06/01/2017,ARUNDEL,TESCO STORES 5999,155.79,REFRESHMENT COSTS,"GROCERY STORES, SUPERMARKETS"
04/05/2017,http://opendatacommunities.org/id/county-council/surrey,Surrey,http://id.esd.org.uk/service/1465,Council expenditure,06/01/2017,WOODLANDS COMMUNITY HOME,DUNELM LTD,22.99,FURNITURE,"DRAPERY, UPOLSTERY, AND WINDOW COVERINGS STORES"
04/05/2017,http://opendatacommunities.org/id/county-council/surrey,Surrey,http://id.esd.org.uk/service/1465,Council expenditure,06/01/2017,WOODLANDS COMMUNITY HOME,DUNELM LTD,90.66,FURNITURE,"DRAPERY, UPOLSTERY, AND WINDOW COVERINGS STORES"
04/05/2017,http://opendatacommunities.org/id/county-council/surrey,Surrey,http://id.esd.org.uk/service/1465,Council expenditure,06/01/2017,WOODLANDS COMMUNITY HOME,DUNELM LTD,146.99,FURNITURE,"DRAPERY, UPOLSTERY, AND WINDOW COVERINGS STORES"
04/05/2017,http://opendatacommunities.org/id/county-council/surrey,Surrey,http://id.esd.org.uk/service/1465,Council expenditure,06/01/2017,CS BUSINESS SUPPORT EAST,AMAZON UK MARKETPLACE,14.38,STATIONERY,BOOK STORES
04/05/2017,http://opendatacommunities.org/id/county-council/surrey,Surrey,http://id.esd.org.uk/service/1465,Council expenditure,06/01/2017,OTHER NON CWD HOME COSTS,OFSTED INTERNET,722,SUBSCRIPTIONS,GOVERNMENT SERVICES-NOT ELSEWHERE CLASSIFIED
04/05/2017,http://opendatacommunities.org/id/county-council/surrey,Surrey,http://id.esd.org.uk/service/1465,Council expenditure,06/01/2017,WOODLANDS COMMUNITY HOME,IKEA LIMITED,39.4,EQUIPMENT,"EQUIP, FURNITURE, HOME FURNSHNGS STRS (EXCPT APPL)"
04/05/2017,http://opendatacommunities.org/id/county-council/surrey,Surrey,http://id.esd.org.uk/service/1465,Council expenditure,06/01/2017,LEAP WOKING,AMAZON UK RETAIL AMAZO,12.55,EDUC VISITS/HOLS/CAMPS/TOYS,MISCELLANEOUS AND SPECIALTY RETAIL STORES
04/05/2017,http://opendatacommunities.org/id/county-council/surrey,Surrey,http://id.esd.org.uk/service/1465,Council expenditure,06/01/2017,WOODLANDS COMMUNITY HOME,SAINSBURYS 0559,6,EQUIPMENT,"GROCERY STORES, SUPERMARKETS"
04/05/2017,http://opendatacommunities.org/id/county-council/surrey,Surrey,http://id.esd.org.uk/service/1465,Council expenditure,06/01/2017,WOODLANDS COMMUNITY HOME,SAINSBURYS 0559,13.4,PURCHASE OF FOOD (RAW MATERIALS),"GROCERY STORES, SUPERMARKETS"
04/05/2017,http://opendatacommunities.org/id/county-council/surrey,Surrey,http://id.esd.org.uk/service/1465,Council expenditure,06/01/2017,WOODLANDS COMMUNITY HOME,SAINSBURYS 0559,159.53,PURCHASE OF FOOD (RAW MATERIALS),"GROCERY STORES, SUPERMARKETS"
04/05/2017,http://opendatacommunities.org/id/county-council/surrey,Surrey,http://id.esd.org.uk/service/1465,Council expenditure,06/01/2017,QUADRANT COURT WOKING,AMAZON EU,3.99,STATIONERY,DIRECT MARKETING-OTHER DIRECT MARKETERS/NOT ELSEW.
04/05/2017,http://opendatacommunities.org/id/county-council/surrey,Surrey,http://id.esd.org.uk/service/1465,Council expenditure,06/01/2017,ACL CENTRAL EXPENDITURE,BOOKER LIMITED BYFLEET,25.5,REFRESHMENT COSTS,CATERERS
04/05/2017,http://opendatacommunities.org/id/county-council/surrey,Surrey,http://id.esd.org.uk/service/1465,Council expenditure,06/01/2017,LAKERS YC,SAINSBURYS 0686,19.3,REFRESHMENT COSTS,"GROCERY STORES, SUPERMARKETS"
04/05/2017,http://opendatacommunities.org/id/county-council/surrey,Surrey,http://id.esd.org.uk/service/1465,Council expenditure,06/01/2017,TRANSPORT,AMAZON UK RETAIL AMAZO,81.5,OPERATIONAL FIRE EQUIPMENT,MISCELLANEOUS AND SPECIALTY RETAIL STORES
04/05/2017,http://opendatacommunities.org/id/county-council/surrey,Surrey,http://id.esd.org.uk/service/1465,Council expenditure,06/01/2017,ESTATES TEAM,AMAZON UK MARKETPLACE,139.99,EQUIPMENT,BOOK STORES
04/05/2017,http://opendatacommunities.org/id/county-council/surrey,Surrey,http://id.esd.org.uk/service/1465,Council expenditure,06/01/2017,SW CARE - CP & COURT LAC,HM PASSPORT,90,LEGAL EXPENSES,GOVERNMENT SERVICES-NOT ELSEWHERE CLASSIFIED
04/05/2017,http://opendatacommunities.org/id/county-council/surrey,Surrey,http://id.esd.org.uk/service/1465,Council expenditure,06/01/2017,WOODLANDS COMMUNITY HOME,SPORTSDIRECT 238,76.02,"CLOTHING, UNIFORM AND LAUNDRY",SPORTING GOODS STORES
04/05/2017,http://opendatacommunities.org/id/county-council/surrey,Surrey,http://id.esd.org.uk/service/1465,Council expenditure,06/01/2017,TRANSITION TEAM,PREMIER INN,370,VENUE COSTS (INCLUDING HIRE OF ROOMS),PREMIER INN
04/05/2017,http://opendatacommunities.org/id/county-council/surrey,Surrey,http://id.esd.org.uk/service/1465,Council expenditure,06/01/2017,WOODLANDS COMMUNITY HOME,HOMEBASE LTD 084,12.33,EQUIPMENT,"BUILDING MATERIALS, LUMBER STORES"
04/05/2017,http://opendatacommunities.org/id/county-council/surrey,Surrey,http://id.esd.org.uk/service/1465,Council expenditure,06/01/2017,LEAP WOKING,"AMAZON SVCS EUROPE,SAR",22.3,EDUC VISITS/HOLS/CAMPS/TOYS,BOOK STORES
04/05/2017,http://opendatacommunities.org/id/county-council/surrey,Surrey,http://id.esd.org.uk/service/1465,Council expenditure,06/01/2017,DEVELOPMENT TEAM,WWW.TXTLOCAL.COM,"1,260.00",TELECOMMUNICATION CHARGES,"CONSULTING, MANAGEMENT, AND PUBLIC RELATIONS SVCS"
04/05/2017,http://opendatacommunities.org/id/county-council/surrey,Surrey,http://id.esd.org.uk/service/1465,Council expenditure,06/01/2017,MALLOW CRESCENT,FAST KEY SERVICES LIMI,7.77,EQUIPMENT,BUSINESS SERVICES-NOT ELSEWHERE CLASSIFIED
04/05/2017,http://opendatacommunities.org/id/county-council/surrey,Surrey,http://id.esd.org.uk/service/1465,Council expenditure,06/01/2017,TARGETED INTERVENTION,WOKING BOROUGH COUNCIL,5.2,EDUC VISITS/HOLS/CAMPS/TOYS,AUTOMOBILE PARKING LOTS AND GARAGES
04/05/2017,http://opendatacommunities.org/id/county-council/surrey,Surrey,http://id.esd.org.uk/service/1465,Council expenditure,06/01/2017,ESTATES DELIVERY MANAGER,WWW.RICHMONDS G,68.16,EQUIPMENT,HARDWARE STORES
04/05/2017,http://opendatacommunities.org/id/county-council/surrey,Surrey,http://id.esd.org.uk/service/1465,Council expenditure,06/01/2017,TARGETED INTERVENTION,WOKING BOROUGH COUNCIL,3.9,EDUC VISITS/HOLS/CAMPS/TOYS,AUTOMOBILE PARKING LOTS AND GARAGES
04/05/2017,http://opendatacommunities.org/id/county-council/surrey,Surrey,http://id.esd.org.uk/service/1465,Council expenditure,06/01/2017,SOLD DAY TO DAY OPERATIONS,AMAZON UK MARKETPLACE,7.9,EQUIPMENT,BOOK STORES
04/05/2017,http://opendatacommunities.org/id/county-council/surrey,Surrey,http://id.esd.org.uk/service/1465,Council expenditure,06/01/2017,MAYFORD CENTRE - BUSINESS,MACHINE MART WEB,55.76,EQUIPMENT,"EQUIPMENT RENTAL&LEASING SVS, FURNTURE/TOOL RENTAL"
04/05/2017,http://opendatacommunities.org/id/county-council/surrey,Surrey,http://id.esd.org.uk/service/1465,Council expenditure,06/01/2017,SOLD DAY TO DAY OPERATIONS,AMAZON UK MARKETPLACE,6.99,EQUIPMENT,BOOK STORES
04/05/2017,http://opendatacommunities.org/id/county-council/surrey,Surrey,http://id.esd.org.uk/service/1465,Council expenditure,06/01/2017,SOLD DAY TO DAY OPERATIONS,AMAZON UK MARKETPLACE,34.95,EQUIPMENT,BOOK STORES
04/05/2017,http://opendatacommunities.org/id/county-council/surrey,Surrey,http://id.esd.org.uk/service/1465,Council expenditure,06/01/2017,TARGETED INTERVENTION,LOVE COFFEE CAMBERLEY,13.6,EDUC VISITS/HOLS/CAMPS/TOYS,"EATING PLACES, RESTAURANTS"
04/05/2017,http://opendatacommunities.org/id/county-council/surrey,Surrey,http://id.esd.org.uk/service/1465,Council expenditure,06/01/2017,PARK HALL RESIDENTIAL CARE,AMAZON UK RETAIL AMAZO,20.97,EQUIPMENT,MISCELLANEOUS AND SPECIALTY RETAIL STORES
04/05/2017,http://opendatacommunities.org/id/county-council/surrey,Surrey,http://id.esd.org.uk/service/1465,Council expenditure,06/01/2017,TARGETED INTERVENTION,WOKING SNOOKER CENTRE,5.63,EDUC VISITS/HOLS/CAMPS/TOYS,RECREATIONAL AND SPORTING CAMPS
04/05/2017,http://opendatacommunities.org/id/county-council/surrey,Surrey,http://id.esd.org.uk/service/1465,Council expenditure,06/01/2017,READY FOR WORK YSS,VUE NCS CITB HS&E TEST,19.5,EDUC VISITS/HOLS/CAMPS/TOYS,SCHOOLS & EDUCATIONAL SVC-NOT ELSEWHERE CLASSIFIED
04/05/2017,http://opendatacommunities.org/id/county-council/surrey,Surrey,http://id.esd.org.uk/service/1465,Council expenditure,06/01/2017,ROW VOLUNTEERS EAST                     ,AMAZON UK MARKETPLACE,13.6,EQUIPMENT,BOOK STORES
04/05/2017,http://opendatacommunities.org/id/county-council/surrey,Surrey,http://id.esd.org.uk/service/1465,Council expenditure,06/01/2017,PE/CDT MAINTENANCE OVERHEADS,UNIVERSAL SERVICES (SP,483.08,ITEMS PURCHASED FOR RE-SALE,"ATHLTIC FIELDS,COMMRCL SPRT,SPRT CLBS,SPRT PROMOTR"
04/05/2017,http://opendatacommunities.org/id/county-council/surrey,Surrey,http://id.esd.org.uk/service/1465,Council expenditure,06/01/2017,NW CARE - LAC,PREMIER INN,61,CHILDREN ACT SEC 17 PAYMENTS,PREMIER INN
04/05/2017,http://opendatacommunities.org/id/county-council/surrey,Surrey,http://id.esd.org.uk/service/1465,Council expenditure,06/01/2017,CSF COMMUNICATIONS TEAM,HOOTSUITE MEDIA INC.,9.59,SUBSCRIPTIONS,BUSINESS SERVICES-NOT ELSEWHERE CLASSIFIED
04/05/2017,http://opendatacommunities.org/id/county-council/surrey,Surrey,http://id.esd.org.uk/service/1465,Council expenditure,06/01/2017,TRANSPORT,SURPLUS & OUTDOORS,69.99,OPERATIONAL FIRE EQUIPMENT,"SPORTS APPAREL, RIDING APPAREL STORES"
04/05/2017,http://opendatacommunities.org/id/county-council/surrey,Surrey,http://id.esd.org.uk/service/1465,Council expenditure,06/01/2017,TARGETED INTERVENTION,ATG TICKETS,19.5,EDUC VISITS/HOLS/CAMPS/TOYS,"THEATRICAL PRODUCERS(EXCL MOTION PIX),TICKET AGNCY"
04/05/2017,http://opendatacommunities.org/id/county-council/surrey,Surrey,http://id.esd.org.uk/service/1465,Council expenditure,06/01/2017,TARGETED INTERVENTION,ODEON,6.45,EDUC VISITS/HOLS/CAMPS/TOYS,MOTION PICTURE THEATERS
04/05/2017,http://opendatacommunities.org/id/county-council/surrey,Surrey,http://id.esd.org.uk/service/1465,Council expenditure,06/01/2017,TARGETED INTERVENTION,ODEON,8.5,EDUC VISITS/HOLS/CAMPS/TOYS,MOTION PICTURE THEATERS
04/05/2017,http://opendatacommunities.org/id/county-council/surrey,Surrey,http://id.esd.org.uk/service/1465,Council expenditure,06/01/2017,TARGETED INTERVENTION,TENPIN,40.99,EDUC VISITS/HOLS/CAMPS/TOYS,"CLUBS-CNTRY,MBRSHIP(ATHLET,REC,SPRTS,PRIVATE GOLF"
04/05/2017,http://opendatacommunities.org/id/county-council/surrey,Surrey,http://id.esd.org.uk/service/1465,Council expenditure,06/01/2017,TARGETED INTERVENTION,ODEON,34.75,EDUC VISITS/HOLS/CAMPS/TOYS,MOTION PICTURE THEATERS
04/05/2017,http://opendatacommunities.org/id/county-council/surrey,Surrey,http://id.esd.org.uk/service/1465,Council expenditure,06/01/2017,HOPE SERVICE - WEST,HARRIS & HOOLE,14.55,REFRESHMENT COSTS,"EATING PLACES, RESTAURANTS"
04/05/2017,http://opendatacommunities.org/id/county-council/surrey,Surrey,http://id.esd.org.uk/service/1465,Council expenditure,06/01/2017,TRANSPORT,WATLING TYRE SERVICE L,15,VEHICLE REPAIRS AND MAINTENANCE,AUTOMOTIVE SERVICE SHOPS
04/05/2017,http://opendatacommunities.org/id/county-council/surrey,Surrey,http://id.esd.org.uk/service/1465,Council expenditure,06/01/2017,TARGETED INTERVENTION,ATG TICKETS,19.5,EDUC VISITS/HOLS/CAMPS/TOYS,"THEATRICAL PRODUCERS(EXCL MOTION PIX),TICKET AGNCY"
04/05/2017,http://opendatacommunities.org/id/county-council/surrey,Surrey,http://id.esd.org.uk/service/1465,Council expenditure,06/01/2017,TARGETED INTERVENTION,STARBUCKS,8.75,EDUC VISITS/HOLS/CAMPS/TOYS,FAST FOOD RESTAURANTS
04/05/2017,http://opendatacommunities.org/id/county-council/surrey,Surrey,http://id.esd.org.uk/service/1465,Council expenditure,06/01/2017,TARGETED INTERVENTION,STARBUCKS,5.15,EDUC VISITS/HOLS/CAMPS/TOYS,FAST FOOD RESTAURANTS
04/05/2017,http://opendatacommunities.org/id/county-council/surrey,Surrey,http://id.esd.org.uk/service/1465,Council expenditure,06/01/2017,TARGETED INTERVENTION,COSTA COFFEE 43037185,2.95,EDUC VISITS/HOLS/CAMPS/TOYS,FAST FOOD RESTAURANTS
04/05/2017,http://opendatacommunities.org/id/county-council/surrey,Surrey,http://id.esd.org.uk/service/1465,Council expenditure,06/01/2017,TARGETED INTERVENTION,THE BEAN SHACK,10,EDUC VISITS/HOLS/CAMPS/TOYS,FAST FOOD RESTAURANTS
04/05/2017,http://opendatacommunities.org/id/county-council/surrey,Surrey,http://id.esd.org.uk/service/1465,Council expenditure,06/01/2017,TARGETED INTERVENTION,GODALMING LEISURE CENT,4.2,EDUC VISITS/HOLS/CAMPS/TOYS,"CLUBS-CNTRY,MBRSHIP(ATHLET,REC,SPRTS,PRIVATE GOLF"
04/05/2017,http://opendatacommunities.org/id/county-council/surrey,Surrey,http://id.esd.org.uk/service/1465,Council expenditure,06/01/2017,STRATEGIC TREE MAINTENANCE - NPR,AMAZON UK MARKETPLACE,46.95,EQUIPMENT,BOOK STORES
04/05/2017,http://opendatacommunities.org/id/county-council/surrey,Surrey,http://id.esd.org.uk/service/1465,Council expenditure,06/01/2017,MOLE VALLEY LOCALITY TEAM,UKBA5175344750,199,FEES,GOVERNMENT SERVICES-NOT ELSEWHERE CLASSIFIED
04/05/2017,http://opendatacommunities.org/id/county-council/surrey,Surrey,http://id.esd.org.uk/service/1465,Council expenditure,06/01/2017,TARGETED INTERVENTION,COSTA COFFEE 43037185,7.7,EDUC VISITS/HOLS/CAMPS/TOYS,FAST FOOD RESTAURANTS
04/05/2017,http://opendatacommunities.org/id/county-council/surrey,Surrey,http://id.esd.org.uk/service/1465,Council expenditure,06/01/2017,HOPE SERVICE - WEST,MB WORLD,60,EDUC VISITS/HOLS/CAMPS/TOYS,AUTOMOTIVE SERVICE SHOPS
04/05/2017,http://opendatacommunities.org/id/county-council/surrey,Surrey,http://id.esd.org.uk/service/1465,Council expenditure,06/01/2017,LEAVING CARE PACKAGES,ARGOS RETAIL GROUP,183.94,EQUIPMENT,DISCOUNT STORES
04/05/2017,http://opendatacommunities.org/id/county-council/surrey,Surrey,http://id.esd.org.uk/service/1465,Council expenditure,06/01/2017,NE CARE - LAC,TRAINLINE,96.39,NON-STAFF RELATED TRANSPORT COSTS,PASSENGER RAILWAYS
04/05/2017,http://opendatacommunities.org/id/county-council/surrey,Surrey,http://id.esd.org.uk/service/1465,Council expenditure,06/01/2017,DEPUTYSHIP TEAM,SAFESTORE,286.12,3RD PARTY PAYMENTS PRIVATE INDIV,"PUBLIC WAREHOUSING-FARM, REFRIG GOODS, HHG STORAGE"
04/05/2017,http://opendatacommunities.org/id/county-council/surrey,Surrey,http://id.esd.org.uk/service/1465,Council expenditure,06/01/2017,HR - SURREY ACADEMY,WWW.DISCOUNTDISPLAYS.C,80.34,EQUIPMENT,MISCELLANEOUS AND SPECIALTY RETAIL STORES
04/05/2017,http://opendatacommunities.org/id/county-council/surrey,Surrey,http://id.esd.org.uk/service/1465,Council expenditure,06/01/2017,LIBERTAS COMMUNITY HOME,SAINSBURYS 0652,17.35,PURCHASE OF FOOD (RAW MATERIALS),"GROCERY STORES, SUPERMARKETS"
04/05/2017,http://opendatacommunities.org/id/county-council/surrey,Surrey,http://id.esd.org.uk/service/1465,Council expenditure,06/01/2017,LIBERTAS COMMUNITY HOME,SAINSBURYS 0652,126.47,PURCHASE OF FOOD (RAW MATERIALS),"GROCERY STORES, SUPERMARKETS"
04/05/2017,http://opendatacommunities.org/id/county-council/surrey,Surrey,http://id.esd.org.uk/service/1465,Council expenditure,06/01/2017,TARGETED INTERVENTION,TESCO STORES-2047,4.5,EDUC VISITS/HOLS/CAMPS/TOYS,"GROCERY STORES, SUPERMARKETS"
04/05/2017,http://opendatacommunities.org/id/county-council/surrey,Surrey,http://id.esd.org.uk/service/1465,Council expenditure,06/01/2017,CEO - PUBLIC HEALTH CAMPAIGNS           ,GOOGLE  ADWS2060179426,500,PUBLICITY,DIRECT MARKETING-CONTINUITY/SUBSCRIPTION MERCHANTS
04/05/2017,http://opendatacommunities.org/id/county-council/surrey,Surrey,http://id.esd.org.uk/service/1465,Council expenditure,06/01/2017,RUTH HOUSE,SAINSBURYS TO YOU 0686,21,PURCHASE OF FOOD (RAW MATERIALS),"GROCERY STORES, SUPERMARKETS"
04/05/2017,http://opendatacommunities.org/id/county-council/surrey,Surrey,http://id.esd.org.uk/service/1465,Council expenditure,06/01/2017,RUTH HOUSE,SAINSBURYS TO YOU 0686,147.8,PURCHASE OF FOOD (RAW MATERIALS),"GROCERY STORES, SUPERMARKETS"
04/05/2017,http://opendatacommunities.org/id/county-council/surrey,Surrey,http://id.esd.org.uk/service/1465,Council expenditure,06/01/2017,COMMUNICATIONS TEAM,FINANCIAL TIMES LT,278.2,SUBSCRIPTIONS,DIRECT MARKETING-COMBINATION CATALOG/RETAIL MERCH.
04/05/2017,http://opendatacommunities.org/id/county-council/surrey,Surrey,http://id.esd.org.uk/service/1465,Council expenditure,06/01/2017,ACL CENTRAL EXPENDITURE,TESCO DELIVERY SAVER2,6,REFRESHMENT COSTS,DIRECT MARKETING-CONTINUITY/SUBSCRIPTION MERCHANTS
04/05/2017,http://opendatacommunities.org/id/county-council/surrey,Surrey,http://id.esd.org.uk/service/1465,Council expenditure,06/01/2017,SOLD DAY TO DAY OPERATIONS,AMAZON UK MARKETPLACE,13.84,EQUIPMENT,BOOK STORES
04/05/2017,http://opendatacommunities.org/id/county-council/surrey,Surrey,http://id.esd.org.uk/service/1465,Council expenditure,07/01/2017,FAIRCROFT COMMUNITY HOME,BAKED AND BATTERED,35,REFRESHMENT COSTS,FAST FOOD RESTAURANTS
04/05/2017,http://opendatacommunities.org/id/county-council/surrey,Surrey,http://id.esd.org.uk/service/1465,Council expenditure,07/01/2017,HOLLAND CLOSE RESIDENTIAL HOME,AMAZON UK MARKETPLACE,2.92,EDUC VISITS/HOLS/CAMPS/TOYS,BOOK STORES
04/05/2017,http://opendatacommunities.org/id/county-council/surrey,Surrey,http://id.esd.org.uk/service/1465,Council expenditure,07/01/2017,ACL CENTRAL EXPENDITURE,W M MORRISONS,20.56,REFRESHMENT COSTS,"GROCERY STORES, SUPERMARKETS"
04/05/2017,http://opendatacommunities.org/id/county-council/surrey,Surrey,http://id.esd.org.uk/service/1465,Council expenditure,07/01/2017,LIBERTAS COMMUNITY HOME,SELFSERVE TICKET,19.1,NON-STAFF RELATED TRANSPORT COSTS,PASSENGER RAILWAYS
04/05/2017,http://opendatacommunities.org/id/county-council/surrey,Surrey,http://id.esd.org.uk/service/1465,Council expenditure,07/01/2017,HOLLAND CLOSE RESIDENTIAL HOME,TESCO-STORES 6647,157.82,PURCHASE OF FOOD (RAW MATERIALS),"GROCERY STORES, SUPERMARKETS"
04/05/2017,http://opendatacommunities.org/id/county-council/surrey,Surrey,http://id.esd.org.uk/service/1465,Council expenditure,07/01/2017,HOPE SERVICE - WEST,AMAZON UK MARKETPLACE,13.98,CURRICULUM CONSUMABLES,BOOK STORES
04/05/2017,http://opendatacommunities.org/id/county-council/surrey,Surrey,http://id.esd.org.uk/service/1465,Council expenditure,07/01/2017,HILLSIDE,TESCO STORE 3149,16.5,PURCHASE OF FOOD (RAW MATERIALS),"GROCERY STORES, SUPERMARKETS"
04/05/2017,http://opendatacommunities.org/id/county-council/surrey,Surrey,http://id.esd.org.uk/service/1465,Council expenditure,07/01/2017,HILLSIDE,TESCO STORE 3149,175.58,PURCHASE OF FOOD (RAW MATERIALS),"GROCERY STORES, SUPERMARKETS"
04/05/2017,http://opendatacommunities.org/id/county-council/surrey,Surrey,http://id.esd.org.uk/service/1465,Council expenditure,08/01/2017,HILLSIDE,WOKING BOROUGH COUNCIL,3,EDUC VISITS/HOLS/CAMPS/TOYS,AUTOMOBILE PARKING LOTS AND GARAGES
04/05/2017,http://opendatacommunities.org/id/county-council/surrey,Surrey,http://id.esd.org.uk/service/1465,Council expenditure,08/01/2017,HILLSIDE,WOKING BOROUGH COUNCIL,3,EDUC VISITS/HOLS/CAMPS/TOYS,AUTOMOBILE PARKING LOTS AND GARAGES
04/05/2017,http://opendatacommunities.org/id/county-council/surrey,Surrey,http://id.esd.org.uk/service/1465,Council expenditure,08/01/2017,CHEYNE WALK COMMUNITY HOME,JRC GLOBAL BUFFET CROY,159.92,PURCHASE OF FOOD (RAW MATERIALS),"EATING PLACES, RESTAURANTS"
04/05/2017,http://opendatacommunities.org/id/county-council/surrey,Surrey,http://id.esd.org.uk/service/1465,Council expenditure,08/01/2017,QUADRANT COURT WOKING,AMAZON UK MARKETPLACE,3.38,STATIONERY,BOOK STORES
04/05/2017,http://opendatacommunities.org/id/county-council/surrey,Surrey,http://id.esd.org.uk/service/1465,Council expenditure,08/01/2017,QUADRANT COURT WOKING,AMAZON UK MARKETPLACE,9.91,EQUIPMENT,BOOK STORES
04/05/2017,http://opendatacommunities.org/id/county-council/surrey,Surrey,http://id.esd.org.uk/service/1465,Council expenditure,08/01/2017,CEO - PUBLIC HEALTH CAMPAIGNS           ,GOOGLE  ADWS2060179426,500,PUBLICITY,DIRECT MARKETING-CONTINUITY/SUBSCRIPTION MERCHANTS
04/05/2017,http://opendatacommunities.org/id/county-council/surrey,Surrey,http://id.esd.org.uk/service/1465,Council expenditure,08/01/2017,NE CARE - LAC,TRAVELODGE,56.45,OTHER COMMUNITY CARE PRIV,TRAVELODGE
04/05/2017,http://opendatacommunities.org/id/county-council/surrey,Surrey,http://id.esd.org.uk/service/1465,Council expenditure,08/01/2017,DOWNLANDS COUNTRYSIDE PROJECT,HALFORDS 0763,10,EQUIPMENT,BICYCLE SHOPS-SALES AND SERVICE
04/05/2017,http://opendatacommunities.org/id/county-council/surrey,Surrey,http://id.esd.org.uk/service/1465,Council expenditure,08/01/2017,NW EDUCATION PSYCHOLOGISTS,AMAZON EU,94.15,EQUIPMENT,DIRECT MARKETING-OTHER DIRECT MARKETERS/NOT ELSEW.
04/05/2017,http://opendatacommunities.org/id/county-council/surrey,Surrey,http://id.esd.org.uk/service/1465,Council expenditure,08/01/2017,HOPE SERVICE - WEST,AMAZON UK MARKETPLACE,4.6,CURRICULUM CONSUMABLES,BOOK STORES
04/05/2017,http://opendatacommunities.org/id/county-council/surrey,Surrey,http://id.esd.org.uk/service/1465,Council expenditure,09/01/2017,NE CARE - CP & COURT LAC,MOTHERCARE DIRECT-E-CO,33.94,CHILDREN ACT SEC 17 PAYMENTS,DEPARTMENT STORES
04/05/2017,http://opendatacommunities.org/id/county-council/surrey,Surrey,http://id.esd.org.uk/service/1465,Council expenditure,09/01/2017,SE CARE - LAC,LB CROYDON,12.2,CHILDREN ACT SEC 17 PAYMENTS,GOVERNMENT SERVICES-NOT ELSEWHERE CLASSIFIED
04/05/2017,http://opendatacommunities.org/id/county-council/surrey,Surrey,http://id.esd.org.uk/service/1465,Council expenditure,09/01/2017,STUDENT FARECARD,SURREY CC CARD PAY,-25,STUDENT FARE CARD (STUDENTFARECARDRAIL),COMPUTER NETWORK/INFORMATION SERVICES
04/05/2017,http://opendatacommunities.org/id/county-council/surrey,Surrey,http://id.esd.org.uk/service/1465,Council expenditure,09/01/2017,WOODLANDS COMMUNITY HOME,AMAZON EU,23.49,BOOKS,DIRECT MARKETING-OTHER DIRECT MARKETERS/NOT ELSEW.
04/05/2017,http://opendatacommunities.org/id/county-council/surrey,Surrey,http://id.esd.org.uk/service/1465,Council expenditure,09/01/2017,ADDLESTONE YC,AMAZON UK MARKETPLACE,13.99,CURRICULUM CONSUMABLES,BOOK STORES
04/05/2017,http://opendatacommunities.org/id/county-council/surrey,Surrey,http://id.esd.org.uk/service/1465,Council expenditure,09/01/2017,ADDLESTONE YC,AMAZON UK MARKETPLACE,46.28,CURRICULUM CONSUMABLES,BOOK STORES
04/05/2017,http://opendatacommunities.org/id/county-council/surrey,Surrey,http://id.esd.org.uk/service/1465,Council expenditure,09/01/2017,MULBERRY YC,LIDL UK,9.77,REFRESHMENT COSTS,"GROCERY STORES, SUPERMARKETS"
04/05/2017,http://opendatacommunities.org/id/county-council/surrey,Surrey,http://id.esd.org.uk/service/1465,Council expenditure,09/01/2017,QUADRANT COURT WOKING,AMAZON UK MARKETPLACE,3.49,DAY TO DAY MAINTENANCE,BOOK STORES
04/05/2017,http://opendatacommunities.org/id/county-council/surrey,Surrey,http://id.esd.org.uk/service/1465,Council expenditure,09/01/2017,LIBERTAS COMMUNITY HOME,STARBUCKS,9.53,REFRESHMENT COSTS,FAST FOOD RESTAURANTS
04/05/2017,http://opendatacommunities.org/id/county-council/surrey,Surrey,http://id.esd.org.uk/service/1465,Council expenditure,09/01/2017,HERITAGE PUBLIC SERVICE,BOOKER LIMITED ALDERSH,31.17,REFRESHMENT COSTS,CATERERS
04/05/2017,http://opendatacommunities.org/id/county-council/surrey,Surrey,http://id.esd.org.uk/service/1465,Council expenditure,09/01/2017,THE STREET YC,WH SMITH,5.98,FIXTURES AND FITTINGS,NEWS DEALERS AND NEWSSTANDS
04/05/2017,http://opendatacommunities.org/id/county-council/surrey,Surrey,http://id.esd.org.uk/service/1465,Council expenditure,09/01/2017,LOWER MOLE COUNTRYSIDE PROJECT,SAINSBURYS 0683,20.05,REFRESHMENT COSTS,"GROCERY STORES, SUPERMARKETS"
04/05/2017,http://opendatacommunities.org/id/county-council/surrey,Surrey,http://id.esd.org.uk/service/1465,Council expenditure,09/01/2017,ENSEMBLES & TOURS,SCAN COMPUTERS INT LTD,149,EQUIPMENT,ELECTRONIC SALES
04/05/2017,http://opendatacommunities.org/id/county-council/surrey,Surrey,http://id.esd.org.uk/service/1465,Council expenditure,09/01/2017,HARRY'S YC,WM MORRISONS,12.67,REFRESHMENT COSTS,"GROCERY STORES, SUPERMARKETS"
04/05/2017,http://opendatacommunities.org/id/county-council/surrey,Surrey,http://id.esd.org.uk/service/1465,Council expenditure,09/01/2017,THE STREET YC,WM MORRISONS,12.69,REFRESHMENT COSTS,"GROCERY STORES, SUPERMARKETS"
04/05/2017,http://opendatacommunities.org/id/county-council/surrey,Surrey,http://id.esd.org.uk/service/1465,Council expenditure,09/01/2017,WOODLANDS COMMUNITY HOME,SAINSBURYS SACAT 0686,13.8,PURCHASE OF FOOD (RAW MATERIALS),"GROCERY STORES, SUPERMARKETS"
04/05/2017,http://opendatacommunities.org/id/county-council/surrey,Surrey,http://id.esd.org.uk/service/1465,Council expenditure,09/01/2017,BURBANK COMMUNITY HOME,WWW.PLASTICSHEETS.COM,124.5,DAY TO DAY MAINTENANCE,INDUSTRIAL SUPPLIES NOT ELSEWHERE CLASSIFIED
04/05/2017,http://opendatacommunities.org/id/county-council/surrey,Surrey,http://id.esd.org.uk/service/1465,Council expenditure,09/01/2017,STANWELL YOUTH CLUB,SAINSBURYS SACAT (4117,7.45,REFRESHMENT COSTS,"GROCERY STORES, SUPERMARKETS"
04/05/2017,http://opendatacommunities.org/id/county-council/surrey,Surrey,http://id.esd.org.uk/service/1465,Council expenditure,09/01/2017,STUDENT FARECARD,SURREY CC CARD PAY,25,STUDENT FARE CARD (STUDENTFARECARDRAIL),COMPUTER NETWORK/INFORMATION SERVICES
04/05/2017,http://opendatacommunities.org/id/county-council/surrey,Surrey,http://id.esd.org.uk/service/1465,Council expenditure,09/01/2017,HILLSIDE,ATG TICKETS,89.85,EDUC VISITS/HOLS/CAMPS/TOYS,"THEATRICAL PRODUCERS(EXCL MOTION PIX),TICKET AGNCY"
04/05/2017,http://opendatacommunities.org/id/county-council/surrey,Surrey,http://id.esd.org.uk/service/1465,Council expenditure,09/01/2017,LOWER MOLE COUNTRYSIDE PROJECT,WILKO RETAIL LIMIT,12,EQUIPMENT,HOUSEHOLD APPLIANCE STORES
04/05/2017,http://opendatacommunities.org/id/county-council/surrey,Surrey,http://id.esd.org.uk/service/1465,Council expenditure,09/01/2017,CAMHS SOCIAL WORKERS,LOVE2SHOP.CO.UK,53.5,EDUC VISITS/HOLS/CAMPS/TOYS,"ASSOCIATIONS-CIVIC, SOCIAL, AND FRATERNAL"
04/05/2017,http://opendatacommunities.org/id/county-council/surrey,Surrey,http://id.esd.org.uk/service/1465,Council expenditure,09/01/2017,SOLD DAY TO DAY OPERATIONS,AMAZON UK MARKETPLACE,5,EQUIPMENT,BOOK STORES
04/05/2017,http://opendatacommunities.org/id/county-council/surrey,Surrey,http://id.esd.org.uk/service/1465,Council expenditure,09/01/2017,TARGETED INTERVENTION,DVLA - ENF,87,VEHICLE REPAIRS AND MAINTENANCE,GOVERNMENT SERVICES-NOT ELSEWHERE CLASSIFIED
04/05/2017,http://opendatacommunities.org/id/county-council/surrey,Surrey,http://id.esd.org.uk/service/1465,Council expenditure,09/01/2017,BURBANK COMMUNITY HOME,ARGOS RETAIL GROUP,113.94,EQUIPMENT,DISCOUNT STORES
04/05/2017,http://opendatacommunities.org/id/county-council/surrey,Surrey,http://id.esd.org.uk/service/1465,Council expenditure,09/01/2017,ROW VOLUNTEERS EAST                     ,FIXINGS & POWERTOOL CE,120,EQUIPMENT,ELECTRICAL PARTS AND EQUIPMENT
04/05/2017,http://opendatacommunities.org/id/county-council/surrey,Surrey,http://id.esd.org.uk/service/1465,Council expenditure,09/01/2017,TARGETED INTERVENTION,WAITROSE 514,7.39,EDUC VISITS/HOLS/CAMPS/TOYS,"GROCERY STORES, SUPERMARKETS"
04/05/2017,http://opendatacommunities.org/id/county-council/surrey,Surrey,http://id.esd.org.uk/service/1465,Council expenditure,09/01/2017,TARGETED INTERVENTION,STARBUCKS,5.45,EDUC VISITS/HOLS/CAMPS/TOYS,"EATING PLACES, RESTAURANTS"
04/05/2017,http://opendatacommunities.org/id/county-council/surrey,Surrey,http://id.esd.org.uk/service/1465,Council expenditure,09/01/2017,TARGETED INTERVENTION,BURGER KING GUILDFORD,3.68,EDUC VISITS/HOLS/CAMPS/TOYS,FAST FOOD RESTAURANTS
04/05/2017,http://opendatacommunities.org/id/county-council/surrey,Surrey,http://id.esd.org.uk/service/1465,Council expenditure,09/01/2017,TARGETED INTERVENTION,WAITROSE 216,4.25,EDUC VISITS/HOLS/CAMPS/TOYS,"GROCERY STORES, SUPERMARKETS"
04/05/2017,http://opendatacommunities.org/id/county-council/surrey,Surrey,http://id.esd.org.uk/service/1465,Council expenditure,09/01/2017,TARGETED INTERVENTION,SAINSBURYS 0686,5.55,EDUC VISITS/HOLS/CAMPS/TOYS,"GROCERY STORES, SUPERMARKETS"
04/05/2017,http://opendatacommunities.org/id/county-council/surrey,Surrey,http://id.esd.org.uk/service/1465,Council expenditure,09/01/2017,COMMUNICATIONS TEAM,GUARDIAN NEWS  MEDIA,51.96,SUBSCRIPTIONS,"BOOKS,PERIODICALS AND NEWSPAPERS"
04/05/2017,http://opendatacommunities.org/id/county-council/surrey,Surrey,http://id.esd.org.uk/service/1465,Council expenditure,09/01/2017,HILLSIDE,MATALAN,12,"CLOTHING, UNIFORM AND LAUNDRY",MEN'S AND WOMEN'S CLOTHING STORES
04/05/2017,http://opendatacommunities.org/id/county-council/surrey,Surrey,http://id.esd.org.uk/service/1465,Council expenditure,09/01/2017,TRANSPORT,MICHAEL'S WORKWEAR LTD,50.4,OPERATIONAL FIRE EQUIPMENT,MISCELLANEOUS AND SPECIALTY RETAIL STORES
04/05/2017,http://opendatacommunities.org/id/county-council/surrey,Surrey,http://id.esd.org.uk/service/1465,Council expenditure,09/01/2017,TRANSPORT,KAISER+KRAFT LTD.,90.72,OPERATIONAL FIRE EQUIPMENT,"COMMERCIAL EQUIPMENT, NOT ELSEWHERE CLASSIFIED"
04/05/2017,http://opendatacommunities.org/id/county-council/surrey,Surrey,http://id.esd.org.uk/service/1465,Council expenditure,09/01/2017,MALLOW CRESCENT,AMAZON UK MARKETPLACE,26.99,EQUIPMENT,BOOK STORES
04/05/2017,http://opendatacommunities.org/id/county-council/surrey,Surrey,http://id.esd.org.uk/service/1465,Council expenditure,09/01/2017,TRANSPORT,MICHAEL'S WORKWEAR LTD,139.2,OPERATIONAL FIRE EQUIPMENT,MISCELLANEOUS AND SPECIALTY RETAIL STORES
04/05/2017,http://opendatacommunities.org/id/county-council/surrey,Surrey,http://id.esd.org.uk/service/1465,Council expenditure,09/01/2017,OTHER NON CWD HOME COSTS,AO RETAIL LIMITED,"1,623.97",EQUIPMENT,HOUSEHOLD APPLIANCE STORES
04/05/2017,http://opendatacommunities.org/id/county-council/surrey,Surrey,http://id.esd.org.uk/service/1465,Council expenditure,09/01/2017,ESTATES DELIVERY MANAGER,ARBORICULTURAL ASSOCIA,310,SUBSCRIPTIONS,"ORGANIZATIONS, CHARITABLE AND SOCIAL SERVICES"
04/05/2017,http://opendatacommunities.org/id/county-council/surrey,Surrey,http://id.esd.org.uk/service/1465,Council expenditure,09/01/2017,LIBERTAS COMMUNITY HOME,SAINSBURYS 0652,24.4,PURCHASE OF FOOD (RAW MATERIALS),"GROCERY STORES, SUPERMARKETS"
04/05/2017,http://opendatacommunities.org/id/county-council/surrey,Surrey,http://id.esd.org.uk/service/1465,Council expenditure,09/01/2017,LIBERTAS COMMUNITY HOME,SAINSBURYS 0652,12,EQUIPMENT,"GROCERY STORES, SUPERMARKETS"
04/05/2017,http://opendatacommunities.org/id/county-council/surrey,Surrey,http://id.esd.org.uk/service/1465,Council expenditure,09/01/2017,LIBERTAS COMMUNITY HOME,SAINSBURYS 0652,142.74,PURCHASE OF FOOD (RAW MATERIALS),"GROCERY STORES, SUPERMARKETS"
04/05/2017,http://opendatacommunities.org/id/county-council/surrey,Surrey,http://id.esd.org.uk/service/1465,Council expenditure,09/01/2017,HILLSIDE,SAINSBURYS 0784,31.75,PURCHASE OF FOOD (RAW MATERIALS),"GROCERY STORES, SUPERMARKETS"
04/05/2017,http://opendatacommunities.org/id/county-council/surrey,Surrey,http://id.esd.org.uk/service/1465,Council expenditure,09/01/2017,NW SECTION 17 CARE,TRAVELODGE,61,CHILDREN ACT SEC 17 PAYMENTS,TRAVELODGE
04/05/2017,http://opendatacommunities.org/id/county-council/surrey,Surrey,http://id.esd.org.uk/service/1465,Council expenditure,09/01/2017,LIBERTAS COMMUNITY HOME,COSTA EXPRESS  UK,2.05,REFRESHMENT COSTS,"MISC FOOD STORE-CONVENIENCE,MRKT,SPLTY,VENDNG MACS"
04/05/2017,http://opendatacommunities.org/id/county-council/surrey,Surrey,http://id.esd.org.uk/service/1465,Council expenditure,09/01/2017,THE EDGE YC,POST OFFICE COUNTER,6.45,POSTAGE AND COURIER CHARGES,POSTAL SERVICES-GOVERNMENT ONLY
04/05/2017,http://opendatacommunities.org/id/county-council/surrey,Surrey,http://id.esd.org.uk/service/1465,Council expenditure,09/01/2017,LIBERTAS COMMUNITY HOME,COSTA EXPRESS  UK,2.35,REFRESHMENT COSTS,"MISC FOOD STORE-CONVENIENCE,MRKT,SPLTY,VENDNG MACS"
04/05/2017,http://opendatacommunities.org/id/county-council/surrey,Surrey,http://id.esd.org.uk/service/1465,Council expenditure,09/01/2017,NW SECTION 17 CARE,TRAVELODGE,61,CHILDREN ACT SEC 17 PAYMENTS,TRAVELODGE
04/05/2017,http://opendatacommunities.org/id/county-council/surrey,Surrey,http://id.esd.org.uk/service/1465,Council expenditure,09/01/2017,HOPE SERVICE - WEST,SAINSBURYS 0683,2.3,REFRESHMENT COSTS,"GROCERY STORES, SUPERMARKETS"
04/05/2017,http://opendatacommunities.org/id/county-council/surrey,Surrey,http://id.esd.org.uk/service/1465,Council expenditure,09/01/2017,HOPE SERVICE - WEST,SAINSBURYS 0683,103.01,PURCHASE OF FOOD (RAW MATERIALS),"GROCERY STORES, SUPERMARKETS"
04/05/2017,http://opendatacommunities.org/id/county-council/surrey,Surrey,http://id.esd.org.uk/service/1465,Council expenditure,09/01/2017,TRANSPORT,AMAZON EU,23.8,CLEANING MATERIALS,DIRECT MARKETING-OTHER DIRECT MARKETERS/NOT ELSEW.
04/05/2017,http://opendatacommunities.org/id/county-council/surrey,Surrey,http://id.esd.org.uk/service/1465,Council expenditure,09/01/2017,READY FOR WORK YSS,VUE NCS CITB HS&E TEST,19.5,EDUC VISITS/HOLS/CAMPS/TOYS,SCHOOLS & EDUCATIONAL SVC-NOT ELSEWHERE CLASSIFIED
04/05/2017,http://opendatacommunities.org/id/county-council/surrey,Surrey,http://id.esd.org.uk/service/1465,Council expenditure,09/01/2017,ROW VOLUNTEERS EAST                     ,AMAZON UK MARKETPLACE,5.99,EQUIPMENT,BOOK STORES
04/05/2017,http://opendatacommunities.org/id/county-council/surrey,Surrey,http://id.esd.org.uk/service/1465,Council expenditure,09/01/2017,PE/CDT MAINTENANCE OVERHEADS,WICKES,10,DAY TO DAY MAINTENANCE,"BUILDING MATERIALS, LUMBER STORES"
04/05/2017,http://opendatacommunities.org/id/county-council/surrey,Surrey,http://id.esd.org.uk/service/1465,Council expenditure,09/01/2017,BURBANK COMMUNITY HOME,HALFORDS 0421,16.48,VEHICLE REPAIRS AND MAINTENANCE,BICYCLE SHOPS-SALES AND SERVICE
04/05/2017,http://opendatacommunities.org/id/county-council/surrey,Surrey,http://id.esd.org.uk/service/1465,Council expenditure,09/01/2017,BURBANK COMMUNITY HOME,CURRYS SUPERSTORE 2324,19.99,EQUIPMENT,ELECTRONIC SALES
04/05/2017,http://opendatacommunities.org/id/county-council/surrey,Surrey,http://id.esd.org.uk/service/1465,Council expenditure,09/01/2017,ROW VOLUNTEERS EAST                     ,AMAZON UK MARKETPLACE,21.9,EQUIPMENT,BOOK STORES
04/05/2017,http://opendatacommunities.org/id/county-council/surrey,Surrey,http://id.esd.org.uk/service/1465,Council expenditure,09/01/2017,HOPE SERVICE - WEST,SAINSBURYS SACAT(4409),2.35,NEWSPAPER AND PERIODICALS,"GROCERY STORES, SUPERMARKETS"
04/05/2017,http://opendatacommunities.org/id/county-council/surrey,Surrey,http://id.esd.org.uk/service/1465,Council expenditure,09/01/2017,DOFE AND BEL EXPEDITIONS,MOUNTAIN TRAINING,140,FEES,COMPUTER SOFTWARE STORES
04/05/2017,http://opendatacommunities.org/id/county-council/surrey,Surrey,http://id.esd.org.uk/service/1465,Council expenditure,09/01/2017,HOPE SERVICE - WEST,AMAZON UK MARKETPLACE,2.98,CURRICULUM CONSUMABLES,BOOK STORES
04/05/2017,http://opendatacommunities.org/id/county-council/surrey,Surrey,http://id.esd.org.uk/service/1465,Council expenditure,09/01/2017,HOPE SERVICE - WEST,AMAZON UK MARKETPLACE,9.64,CURRICULUM CONSUMABLES,BOOK STORES
04/05/2017,http://opendatacommunities.org/id/county-council/surrey,Surrey,http://id.esd.org.uk/service/1465,Council expenditure,09/01/2017,HOPE SERVICE - WEST,AMAZON UK MARKETPLACE,10.98,CURRICULUM CONSUMABLES,BOOK STORES
04/05/2017,http://opendatacommunities.org/id/county-council/surrey,Surrey,http://id.esd.org.uk/service/1465,Council expenditure,09/01/2017,PE/CDT MAINTENANCE OVERHEADS,AMER SPORTS UK LTD,205.68,ITEMS PURCHASED FOR RE-SALE,SPORTING GOODS STORES
04/05/2017,http://opendatacommunities.org/id/county-council/surrey,Surrey,http://id.esd.org.uk/service/1465,Council expenditure,09/01/2017,COVEHAM,SAINSBURYS TO YOU 0687,6.9,REFRESHMENT COSTS,"GROCERY STORES, SUPERMARKETS"
04/05/2017,http://opendatacommunities.org/id/county-council/surrey,Surrey,http://id.esd.org.uk/service/1465,Council expenditure,09/01/2017,COVEHAM,SAINSBURYS TO YOU 0687,137.87,REFRESHMENT COSTS,"GROCERY STORES, SUPERMARKETS"
04/05/2017,http://opendatacommunities.org/id/county-council/surrey,Surrey,http://id.esd.org.uk/service/1465,Council expenditure,09/01/2017,FAIRCROFT COMMUNITY HOME,TESCO STORE 2160,132.68,PURCHASE OF FOOD (RAW MATERIALS),"GROCERY STORES, SUPERMARKETS"
04/05/2017,http://opendatacommunities.org/id/county-council/surrey,Surrey,http://id.esd.org.uk/service/1465,Council expenditure,09/01/2017,ACL CENTRAL EXPENDITURE,TESCO STORE 3220,140.07,REFRESHMENT COSTS,"GROCERY STORES, SUPERMARKETS"
04/05/2017,http://opendatacommunities.org/id/county-council/surrey,Surrey,http://id.esd.org.uk/service/1465,Council expenditure,09/01/2017,MALLOW CRESCENT,SAINSBURYS TO YOU 0652,6.5,PURCHASE OF FOOD (RAW MATERIALS),"GROCERY STORES, SUPERMARKETS"
04/05/2017,http://opendatacommunities.org/id/county-council/surrey,Surrey,http://id.esd.org.uk/service/1465,Council expenditure,09/01/2017,MALLOW CRESCENT,SAINSBURYS TO YOU 0652,127.9,PURCHASE OF FOOD (RAW MATERIALS),"GROCERY STORES, SUPERMARKETS"
04/05/2017,http://opendatacommunities.org/id/county-council/surrey,Surrey,http://id.esd.org.uk/service/1465,Council expenditure,09/01/2017,CORPORATE GROUP - LEGAL SERVICES,LEWES PARKING,5.2,EXPENSES,SCHOOLS & EDUCATIONAL SVC-NOT ELSEWHERE CLASSIFIED
04/05/2017,http://opendatacommunities.org/id/county-council/surrey,Surrey,http://id.esd.org.uk/service/1465,Council expenditure,09/01/2017,ACL CENTRAL EXPENDITURE,TESCO STORE 2160,112.85,EQUIPMENT,"GROCERY STORES, SUPERMARKETS"
04/05/2017,http://opendatacommunities.org/id/county-council/surrey,Surrey,http://id.esd.org.uk/service/1465,Council expenditure,09/01/2017,ACL CENTRAL EXPENDITURE,TESCO STORE 3149,90.94,REFRESHMENT COSTS,"GROCERY STORES, SUPERMARKETS"
04/05/2017,http://opendatacommunities.org/id/county-council/surrey,Surrey,http://id.esd.org.uk/service/1465,Council expenditure,09/01/2017,HOPE SERVICE - WEST,SAINSBURYS TO YOU 0686,130.27,PURCHASE OF FOOD (RAW MATERIALS),"GROCERY STORES, SUPERMARKETS"
04/05/2017,http://opendatacommunities.org/id/county-council/surrey,Surrey,http://id.esd.org.uk/service/1465,Council expenditure,09/01/2017,CORONER,SAINSBURYS TO YOU 0686,40.3,REFRESHMENT COSTS,"GROCERY STORES, SUPERMARKETS"
04/05/2017,http://opendatacommunities.org/id/county-council/surrey,Surrey,http://id.esd.org.uk/service/1465,Council expenditure,09/01/2017,MALLOW CRESCENT,SAINSBURYS TO YOU 0652,10.3,PURCHASE OF FOOD (RAW MATERIALS),"GROCERY STORES, SUPERMARKETS"
04/05/2017,http://opendatacommunities.org/id/county-council/surrey,Surrey,http://id.esd.org.uk/service/1465,Council expenditure,09/01/2017,MALLOW CRESCENT,SAINSBURYS TO YOU 0652,87.21,PURCHASE OF FOOD (RAW MATERIALS),"GROCERY STORES, SUPERMARKETS"
04/05/2017,http://opendatacommunities.org/id/county-council/surrey,Surrey,http://id.esd.org.uk/service/1465,Council expenditure,09/01/2017,APPLEWOOD,ASDA HOME SHOPPING,192.49,PURCHASE OF FOOD (RAW MATERIALS),"GROCERY STORES, SUPERMARKETS"
04/05/2017,http://opendatacommunities.org/id/county-council/surrey,Surrey,http://id.esd.org.uk/service/1465,Council expenditure,09/01/2017,WOODLANDS COMMUNITY HOME,NETFLIX.COM,7.49,EDUC VISITS/HOLS/CAMPS/TOYS,"CABLE, SATELLITE, OTHER PAY TELEVISION, RADIO SVCS"
04/05/2017,http://opendatacommunities.org/id/county-council/surrey,Surrey,http://id.esd.org.uk/service/1465,Council expenditure,09/01/2017,WOODLANDS COMMUNITY HOME,SAINSBURYS 0686,-60,EQUIPMENT,"GROCERY STORES, SUPERMARKETS"
04/05/2017,http://opendatacommunities.org/id/county-council/surrey,Surrey,http://id.esd.org.uk/service/1465,Council expenditure,09/01/2017,APPLEWOOD,ASDA HOME SHOPPING,-2.77,PURCHASE OF FOOD (RAW MATERIALS),"GROCERY STORES, SUPERMARKETS"
04/05/2017,http://opendatacommunities.org/id/county-council/surrey,Surrey,http://id.esd.org.uk/service/1465,Council expenditure,10/01/2017,SOLD ESTATES MANAGEMENT,C BREWER & SONS,94.13,DAY TO DAY MAINTENANCE,"BUILDING MATERIALS, LUMBER STORES"
04/05/2017,http://opendatacommunities.org/id/county-council/surrey,Surrey,http://id.esd.org.uk/service/1465,Council expenditure,10/01/2017,WOODLANDS COMMUNITY HOME,PAYPAL  KITCHENDIRE,170,EQUIPMENT,"ANTIQUE SHOPS-SALES,REPAIRS,RESTORATION SERVICES"
04/05/2017,http://opendatacommunities.org/id/county-council/surrey,Surrey,http://id.esd.org.uk/service/1465,Council expenditure,10/01/2017,HOPE SERVICE - WEST,BAUER MEDIA,43,SUBSCRIPTIONS,MISCELLANEOUS PUBLISHING AND PRINTING
04/05/2017,http://opendatacommunities.org/id/county-council/surrey,Surrey,http://id.esd.org.uk/service/1465,Council expenditure,10/01/2017,CSF COMMUNICATIONS TEAM,SURVEYMONKEY.COM,299,SUBSCRIPTIONS,DIRECT MARKETING-CONTINUITY/SUBSCRIPTION MERCHANTS
04/05/2017,http://opendatacommunities.org/id/county-council/surrey,Surrey,http://id.esd.org.uk/service/1465,Council expenditure,10/01/2017,FAIRCROFT COMMUNITY HOME,SAINSBURYS 0687,6,PURCHASE OF FOOD (RAW MATERIALS),"GROCERY STORES, SUPERMARKETS"
04/05/2017,http://opendatacommunities.org/id/county-council/surrey,Surrey,http://id.esd.org.uk/service/1465,Council expenditure,10/01/2017,HILLSIDE,TESCO STORE 3149,53.99,PURCHASE OF FOOD (RAW MATERIALS),"GROCERY STORES, SUPERMARKETS"
04/05/2017,http://opendatacommunities.org/id/county-council/surrey,Surrey,http://id.esd.org.uk/service/1465,Council expenditure,10/01/2017,WOODLANDS COMMUNITY HOME,SAINSBURYS SACAT 0686,21.99,EQUIPMENT,"GROCERY STORES, SUPERMARKETS"
04/05/2017,http://opendatacommunities.org/id/county-council/surrey,Surrey,http://id.esd.org.uk/service/1465,Council expenditure,10/01/2017,CEO - PUBLIC HEALTH CAMPAIGNS           ,GOOGLE  ADWS2060179426,500,PUBLICITY,DIRECT MARKETING-CONTINUITY/SUBSCRIPTION MERCHANTS
04/05/2017,http://opendatacommunities.org/id/county-council/surrey,Surrey,http://id.esd.org.uk/service/1465,Council expenditure,10/01/2017,ARUNDEL,AMAZON UK RETAIL AMAZO,96,EQUIPMENT,MISCELLANEOUS AND SPECIALTY RETAIL STORES
04/05/2017,http://opendatacommunities.org/id/county-council/surrey,Surrey,http://id.esd.org.uk/service/1465,Council expenditure,10/01/2017,THE BRIDGE YC,TESCO STORES 2812,17.02,PURCHASE OF FOOD (RAW MATERIALS),"GROCERY STORES, SUPERMARKETS"
04/05/2017,http://opendatacommunities.org/id/county-council/surrey,Surrey,http://id.esd.org.uk/service/1465,Council expenditure,10/01/2017,YSS YOUTH CENTRE IMPROVEMENTS,AMAZON EU,17.58,EQUIPMENT,DIRECT MARKETING-OTHER DIRECT MARKETERS/NOT ELSEW.
04/05/2017,http://opendatacommunities.org/id/county-council/surrey,Surrey,http://id.esd.org.uk/service/1465,Council expenditure,10/01/2017,FARNHAM YC,LIDL UK,8.69,PURCHASE OF FOOD (RAW MATERIALS),"GROCERY STORES, SUPERMARKETS"
04/05/2017,http://opendatacommunities.org/id/county-council/surrey,Surrey,http://id.esd.org.uk/service/1465,Council expenditure,10/01/2017,FRIMLEY YC,TESCO STORES 2334,9.83,PURCHASE OF FOOD (RAW MATERIALS),"GROCERY STORES, SUPERMARKETS"
04/05/2017,http://opendatacommunities.org/id/county-council/surrey,Surrey,http://id.esd.org.uk/service/1465,Council expenditure,10/01/2017,LAC INITIATIVES,CURRYS S/S,999.99,CURRICULUM EQUIPMENT AND FURNITURE,HOUSEHOLD APPLIANCE STORES
04/05/2017,http://opendatacommunities.org/id/county-council/surrey,Surrey,http://id.esd.org.uk/service/1465,Council expenditure,10/01/2017,LAC INITIATIVES,CURRYS S/S,999.99,CURRICULUM EQUIPMENT AND FURNITURE,HOUSEHOLD APPLIANCE STORES
04/05/2017,http://opendatacommunities.org/id/county-council/surrey,Surrey,http://id.esd.org.uk/service/1465,Council expenditure,10/01/2017,TRAINING F&R SER,PORTABLE APPLIANCE,234,TRAINING EXPENSES EXTERNAL GENERAL,ELECTRICAL PARTS AND EQUIPMENT
04/05/2017,http://opendatacommunities.org/id/county-council/surrey,Surrey,http://id.esd.org.uk/service/1465,Council expenditure,10/01/2017,HILLSIDE,WWW.HARTMANN.CO.UK,9.8,MEDICAL EXPENSES,"HEALTH PRACTITIONERS, MEDICAL SRVCS-NOT ELSEWHERE"
04/05/2017,http://opendatacommunities.org/id/county-council/surrey,Surrey,http://id.esd.org.uk/service/1465,Council expenditure,10/01/2017,HILLSIDE,WWW.HARTMANN.CO.UK,163.1,MEDICAL EXPENSES,"HEALTH PRACTITIONERS, MEDICAL SRVCS-NOT ELSEWHERE"
04/05/2017,http://opendatacommunities.org/id/county-council/surrey,Surrey,http://id.esd.org.uk/service/1465,Council expenditure,10/01/2017,HILLSIDE,WWW.HARTMANN.CO.UK,114.17,MEDICAL EXPENSES,"HEALTH PRACTITIONERS, MEDICAL SRVCS-NOT ELSEWHERE"
04/05/2017,http://opendatacommunities.org/id/county-council/surrey,Surrey,http://id.esd.org.uk/service/1465,Council expenditure,10/01/2017,HILLSIDE,WWW.HARTMANN.CO.UK,91.64,MEDICAL EXPENSES,"HEALTH PRACTITIONERS, MEDICAL SRVCS-NOT ELSEWHERE"
04/05/2017,http://opendatacommunities.org/id/county-council/surrey,Surrey,http://id.esd.org.uk/service/1465,Council expenditure,10/01/2017,TRANSPORT,WWW.MORLEYS.CO.UK,311.27,OPERATIONAL FIRE EQUIPMENT,"OFFICE, SCHOOL SUPPLY, AND STATIONERY STORES"
04/05/2017,http://opendatacommunities.org/id/county-council/surrey,Surrey,http://id.esd.org.uk/service/1465,Council expenditure,10/01/2017,YSS YOUTH CENTRE IMPROVEMENTS,WWW.KINGFISHERDIRECT.C,149.96,EQUIPMENT,PROFESSIONAL SERVICES-NOT ELSEWHERE CLASSIFIED
04/05/2017,http://opendatacommunities.org/id/county-council/surrey,Surrey,http://id.esd.org.uk/service/1465,Council expenditure,10/01/2017,YSS YOUTH CENTRE IMPROVEMENTS,ARGOS RETAIL GROUP,49.99,EQUIPMENT,DISCOUNT STORES
04/05/2017,http://opendatacommunities.org/id/county-council/surrey,Surrey,http://id.esd.org.uk/service/1465,Council expenditure,10/01/2017,STANWELL YOUTH CLUB,SAINSBURYS SACAT 4981,8.25,REFRESHMENT COSTS,"GROCERY STORES, SUPERMARKETS"
04/05/2017,http://opendatacommunities.org/id/county-council/surrey,Surrey,http://id.esd.org.uk/service/1465,Council expenditure,10/01/2017,ORBIS HR BUSINESS SERVICES & TRAINING,AMAZON UK MARKETPLACE,20.88,EQUIPMENT,BOOK STORES
04/05/2017,http://opendatacommunities.org/id/county-council/surrey,Surrey,http://id.esd.org.uk/service/1465,Council expenditure,10/01/2017,TARGETED INTERVENTION,WAITROSE 514,3.5,EDUC VISITS/HOLS/CAMPS/TOYS,"GROCERY STORES, SUPERMARKETS"
04/05/2017,http://opendatacommunities.org/id/county-council/surrey,Surrey,http://id.esd.org.uk/service/1465,Council expenditure,10/01/2017,COUNTY HALL,WWW.FINERFILTERS.CO.UK,159.96,DAY TO DAY MAINTENANCE,AIR CONDITIONING AND REFRIGERATION REPAIR SHOPS
04/05/2017,http://opendatacommunities.org/id/county-council/surrey,Surrey,http://id.esd.org.uk/service/1465,Council expenditure,10/01/2017,READY FOR WORK YSS,VUE NCS CITB HS&E TEST,19.5,EDUC VISITS/HOLS/CAMPS/TOYS,SCHOOLS & EDUCATIONAL SVC-NOT ELSEWHERE CLASSIFIED
04/05/2017,http://opendatacommunities.org/id/county-council/surrey,Surrey,http://id.esd.org.uk/service/1465,Council expenditure,10/01/2017,SE EDUCATION PSYCHOLOGISTS,FOCUS EDUCATION UK LTD,9.6,BOOKS,BOOK STORES
04/05/2017,http://opendatacommunities.org/id/county-council/surrey,Surrey,http://id.esd.org.uk/service/1465,Council expenditure,10/01/2017,TS SERVICE MANAGEMENT,PAYPAL  GROUNDFORCE,3.99,FEES,LAWN AND GARDEN SUPPLY STORES
04/05/2017,http://opendatacommunities.org/id/county-council/surrey,Surrey,http://id.esd.org.uk/service/1465,Council expenditure,10/01/2017,NE CARE - NON-LAC CP & COURT,GRO HM PASSPORT OFFICE,23.4,CHILDREN ACT SEC 17 PAYMENTS,GOVERNMENT SERVICES-NOT ELSEWHERE CLASSIFIED
04/05/2017,http://opendatacommunities.org/id/county-council/surrey,Surrey,http://id.esd.org.uk/service/1465,Council expenditure,10/01/2017,SURREY HEATH BOROUGH TEAM               ,WWW.CARPHONEWAREHO,24.99,EDUC VISITS/HOLS/CAMPS/TOYS,TELECOMMUNICATION EQUIPMENT INCL TELEPHONE SALES
04/05/2017,http://opendatacommunities.org/id/county-council/surrey,Surrey,http://id.esd.org.uk/service/1465,Council expenditure,10/01/2017,YSS YOUTH CENTRE IMPROVEMENTS,ROBERT DYAS HOLDNG LTD,29.99,EQUIPMENT,HARDWARE STORES
04/05/2017,http://opendatacommunities.org/id/county-council/surrey,Surrey,http://id.esd.org.uk/service/1465,Council expenditure,10/01/2017,TARGETED INTERVENTION,COSTA COFFEE,3.5,EDUC VISITS/HOLS/CAMPS/TOYS,FAST FOOD RESTAURANTS
04/05/2017,http://opendatacommunities.org/id/county-council/surrey,Surrey,http://id.esd.org.uk/service/1465,Council expenditure,10/01/2017,MAINTENANCE SURVEYING TEAM,PAYPAL  ABBTRADINGL,38.84,EQUIPMENT,NONDURABLE GOODS (NOT ELSEWHERE CLASSIFIED)
04/05/2017,http://opendatacommunities.org/id/county-council/surrey,Surrey,http://id.esd.org.uk/service/1465,Council expenditure,10/01/2017,TARGETED INTERVENTION,FREEDOM LEISURE,15.5,EDUC VISITS/HOLS/CAMPS/TOYS,GOVERNMENT SERVICES-NOT ELSEWHERE CLASSIFIED
04/05/2017,http://opendatacommunities.org/id/county-council/surrey,Surrey,http://id.esd.org.uk/service/1465,Council expenditure,10/01/2017,TARGETED INTERVENTION,FREEDOM LEISURE,15.5,EDUC VISITS/HOLS/CAMPS/TOYS,GOVERNMENT SERVICES-NOT ELSEWHERE CLASSIFIED
04/05/2017,http://opendatacommunities.org/id/county-council/surrey,Surrey,http://id.esd.org.uk/service/1465,Council expenditure,10/01/2017,SE TEACHERS,WILKO RETAIL LIMIT,12,SPECIALIST EDUCATIONAL STATIONERY,HOUSEHOLD APPLIANCE STORES
04/05/2017,http://opendatacommunities.org/id/county-council/surrey,Surrey,http://id.esd.org.uk/service/1465,Council expenditure,10/01/2017,SOLD ESTATES MANAGEMENT,FARNCOMBE BOAT HOUSE,168,DAY TO DAY MAINTENANCE,BOAT LEASES AND BOAT RENTALS
04/05/2017,http://opendatacommunities.org/id/county-council/surrey,Surrey,http://id.esd.org.uk/service/1465,Council expenditure,10/01/2017,WALTON YC,SAINSBURYS 0687,14.25,REFRESHMENT COSTS,"GROCERY STORES, SUPERMARKETS"
04/05/2017,http://opendatacommunities.org/id/county-council/surrey,Surrey,http://id.esd.org.uk/service/1465,Council expenditure,10/01/2017,GYC WORKSHOPS                           ,COSTA COFFEE,4.3,REFRESHMENT COSTS,"EATING PLACES, RESTAURANTS"
04/05/2017,http://opendatacommunities.org/id/county-council/surrey,Surrey,http://id.esd.org.uk/service/1465,Council expenditure,10/01/2017,PE/CDT MAINTENANCE OVERHEADS,AUTOGLASS,486.05,VEHICLE RUNNING COSTS,"AUTOMOTIVE PARTS, ACCESSORIES STORES"
04/05/2017,http://opendatacommunities.org/id/county-council/surrey,Surrey,http://id.esd.org.uk/service/1465,Council expenditure,10/01/2017,ASSET DELIVERY,RADAR COMMUNICATIONS L,150,TRAINING EXPENSES EXTERNAL GENERAL,"CONSULTING, MANAGEMENT, AND PUBLIC RELATIONS SVCS"
04/05/2017,http://opendatacommunities.org/id/county-council/surrey,Surrey,http://id.esd.org.uk/service/1465,Council expenditure,10/01/2017,HILLSIDE,NEXT RETAIL LTD,92.05,EQUIPMENT,FAMILY CLOTHING STORES
04/05/2017,http://opendatacommunities.org/id/county-council/surrey,Surrey,http://id.esd.org.uk/service/1465,Council expenditure,10/01/2017,HOPE SERVICE - WEST,ROKERS GOLF CLUB,20,CURRICULUM CONSUMABLES,GOLF COURSES-PUBLIC
04/05/2017,http://opendatacommunities.org/id/county-council/surrey,Surrey,http://id.esd.org.uk/service/1465,Council expenditure,10/01/2017,HOPE SERVICE - WEST,ROKERS GOLF CLUB,30,EDUC VISITS/HOLS/CAMPS/TOYS,GOLF COURSES-PUBLIC
04/05/2017,http://opendatacommunities.org/id/county-council/surrey,Surrey,http://id.esd.org.uk/service/1465,Council expenditure,10/01/2017,TARGETED INTERVENTION,SAINSBURYS 0686,4.75,EDUC VISITS/HOLS/CAMPS/TOYS,"GROCERY STORES, SUPERMARKETS"
04/05/2017,http://opendatacommunities.org/id/county-council/surrey,Surrey,http://id.esd.org.uk/service/1465,Council expenditure,10/01/2017,TARGETED INTERVENTION,STARBUCKS,4.75,EDUC VISITS/HOLS/CAMPS/TOYS,FAST FOOD RESTAURANTS
04/05/2017,http://opendatacommunities.org/id/county-council/surrey,Surrey,http://id.esd.org.uk/service/1465,Council expenditure,10/01/2017,PE/CDT MAINTENANCE OVERHEADS,BEARINGS AND BELTS,83.08,EQUIPMENT,"ARCHITECTURAL, ENGINEERING, AND SURVEYING SERVICES"
04/05/2017,http://opendatacommunities.org/id/county-council/surrey,Surrey,http://id.esd.org.uk/service/1465,Council expenditure,10/01/2017,PE/CDT MAINTENANCE OVERHEADS,HARROD UK SPORT,151.47,ITEMS PURCHASED FOR RE-SALE,"SPORTS APPAREL, RIDING APPAREL STORES"
04/05/2017,http://opendatacommunities.org/id/county-council/surrey,Surrey,http://id.esd.org.uk/service/1465,Council expenditure,10/01/2017,ENSEMBLES & TOURS,MAECENAS MUSIC LTD,25.9,EQUIPMENT,SCHOOLS & EDUCATIONAL SVC-NOT ELSEWHERE CLASSIFIED
04/05/2017,http://opendatacommunities.org/id/county-council/surrey,Surrey,http://id.esd.org.uk/service/1465,Council expenditure,10/01/2017,MALLOW CRESCENT,FAST KEY SERVICES LIMI,16.19,EQUIPMENT,BUSINESS SERVICES-NOT ELSEWHERE CLASSIFIED
04/05/2017,http://opendatacommunities.org/id/county-council/surrey,Surrey,http://id.esd.org.uk/service/1465,Council expenditure,10/01/2017,PROPERTY OPERATIONS TEAM,B & Q 1266,6,PURCHASE OF BUILDING MATERIALS,"BUILDING MATERIALS, LUMBER STORES"
04/05/2017,http://opendatacommunities.org/id/county-council/surrey,Surrey,http://id.esd.org.uk/service/1465,Council expenditure,10/01/2017,PROPERTY OPERATIONS TEAM,B & Q 1266,90.66,PURCHASE OF BUILDING MATERIALS,"BUILDING MATERIALS, LUMBER STORES"
04/05/2017,http://opendatacommunities.org/id/county-council/surrey,Surrey,http://id.esd.org.uk/service/1465,Council expenditure,10/01/2017,FOSTERING SERVICE CENTRAL COSTS,PARTRIDGE & PRINT,510,BOOKS,SCHOOLS & EDUCATIONAL SVC-NOT ELSEWHERE CLASSIFIED
04/05/2017,http://opendatacommunities.org/id/county-council/surrey,Surrey,http://id.esd.org.uk/service/1465,Council expenditure,10/01/2017,FOSTERING SERVICE CENTRAL COSTS,PARTRIDGE & PRINT,18,BOOKS,SCHOOLS & EDUCATIONAL SVC-NOT ELSEWHERE CLASSIFIED
04/05/2017,http://opendatacommunities.org/id/county-council/surrey,Surrey,http://id.esd.org.uk/service/1465,Council expenditure,10/01/2017,PROPERTY OPERATIONS TEAM,FARNBORO INVINCIBL,73.64,PURCHASE OF BUILDING MATERIALS,"BUILDING MATERIALS, LUMBER STORES"
04/05/2017,http://opendatacommunities.org/id/county-council/surrey,Surrey,http://id.esd.org.uk/service/1465,Council expenditure,10/01/2017,TRANSPORT,AMAZON UK MARKETPLACE,15.96,DAY TO DAY MAINTENANCE,BOOK STORES
04/05/2017,http://opendatacommunities.org/id/county-council/surrey,Surrey,http://id.esd.org.uk/service/1465,Council expenditure,10/01/2017,PRISON CAPITATION                       ,AMAZON UK MARKETPLACE,1.41,LIBRARY RESOURCES,BOOK STORES
04/05/2017,http://opendatacommunities.org/id/county-council/surrey,Surrey,http://id.esd.org.uk/service/1465,Council expenditure,10/01/2017,ACL CENTRAL EXPENDITURE,LAKELAND.LIMITED,146.85,EQUIPMENT,MISCELLANEOUS GENERAL MERCHANDISE
04/05/2017,http://opendatacommunities.org/id/county-council/surrey,Surrey,http://id.esd.org.uk/service/1465,Council expenditure,10/01/2017,EXTENDED HOPE,TESCO STORE 2590,35.75,PURCHASE OF FOOD (RAW MATERIALS),"GROCERY STORES, SUPERMARKETS"
04/05/2017,http://opendatacommunities.org/id/county-council/surrey,Surrey,http://id.esd.org.uk/service/1465,Council expenditure,10/01/2017,EXTENDED HOPE,TESCO STORE 2590,10.46,PURCHASE OF FOOD (RAW MATERIALS),"GROCERY STORES, SUPERMARKETS"
04/05/2017,http://opendatacommunities.org/id/county-council/surrey,Surrey,http://id.esd.org.uk/service/1465,Council expenditure,10/01/2017,SOLD DAY TO DAY OPERATIONS,UP AND UNDER/INET,103.06,EQUIPMENT,SPORTING GOODS STORES
04/05/2017,http://opendatacommunities.org/id/county-council/surrey,Surrey,http://id.esd.org.uk/service/1465,Council expenditure,10/01/2017,PROPERTY OPERATIONS TEAM,WICKES,28.93,PURCHASE OF BUILDING MATERIALS,"BUILDING MATERIALS, LUMBER STORES"
04/05/2017,http://opendatacommunities.org/id/county-council/surrey,Surrey,http://id.esd.org.uk/service/1465,Council expenditure,10/01/2017,PROPERTY OPERATIONS TEAM,TOOLSTATION LTD,13.9,PURCHASE OF BUILDING MATERIALS,HARDWARE STORES
04/05/2017,http://opendatacommunities.org/id/county-council/surrey,Surrey,http://id.esd.org.uk/service/1465,Council expenditure,10/01/2017,KARIBU COMMUNITY HOME,TESCO STORE 2812,505.37,PURCHASE OF FOOD (RAW MATERIALS),"GROCERY STORES, SUPERMARKETS"
04/05/2017,http://opendatacommunities.org/id/county-council/surrey,Surrey,http://id.esd.org.uk/service/1465,Council expenditure,10/01/2017,CHEYNE WALK COMMUNITY HOME,SAINSBURYS TO YOU 0026,212.62,PURCHASE OF FOOD (RAW MATERIALS),"GROCERY STORES, SUPERMARKETS"
04/05/2017,http://opendatacommunities.org/id/county-council/surrey,Surrey,http://id.esd.org.uk/service/1465,Council expenditure,10/01/2017,FAIRCROFT COMMUNITY HOME,TESCO STORE 2160,113.89,PURCHASE OF FOOD (RAW MATERIALS),"GROCERY STORES, SUPERMARKETS"
04/05/2017,http://opendatacommunities.org/id/county-council/surrey,Surrey,http://id.esd.org.uk/service/1465,Council expenditure,10/01/2017,ENSURING QUALITY - PLAY,AMAZON PRIME,-7.99,STATIONERY,DIRECT MARKETING-CONTINUITY/SUBSCRIPTION MERCHANTS
04/05/2017,http://opendatacommunities.org/id/county-council/surrey,Surrey,http://id.esd.org.uk/service/1465,Council expenditure,10/01/2017,ENSURING QUALITY - PLAY,AMAZON PRIME,-7.99,STATIONERY,DIRECT MARKETING-CONTINUITY/SUBSCRIPTION MERCHANTS
04/05/2017,http://opendatacommunities.org/id/county-council/surrey,Surrey,http://id.esd.org.uk/service/1465,Council expenditure,10/01/2017,SAP COMPETENCY CENTRE,AMAZON UK MARKETPLACE,-47.66,EQUIPMENT,MISCELLANEOUS AND SPECIALTY RETAIL STORES
04/05/2017,http://opendatacommunities.org/id/county-council/surrey,Surrey,http://id.esd.org.uk/service/1465,Council expenditure,10/01/2017,THE STREET YC,AMAZON UK MARKETPLACE,10.98,EQUIPMENT,BOOK STORES
04/05/2017,http://opendatacommunities.org/id/county-council/surrey,Surrey,http://id.esd.org.uk/service/1465,Council expenditure,10/01/2017,ADDLESTONE YC,AMAZON UK MARKETPLACE,7.28,CURRICULUM CONSUMABLES,BOOK STORES
04/05/2017,http://opendatacommunities.org/id/county-council/surrey,Surrey,http://id.esd.org.uk/service/1465,Council expenditure,10/01/2017,ENSEMBLES & TOURS,AMAZON UK MARKETPLACE,17,EQUIPMENT,BOOK STORES
04/05/2017,http://opendatacommunities.org/id/county-council/surrey,Surrey,http://id.esd.org.uk/service/1465,Council expenditure,11/01/2017,TARGETED INTERVENTION,PEARSON ED LTD,134.16,EDUC VISITS/HOLS/CAMPS/TOYS,SCHOOLS & EDUCATIONAL SVC-NOT ELSEWHERE CLASSIFIED
04/05/2017,http://opendatacommunities.org/id/county-council/surrey,Surrey,http://id.esd.org.uk/service/1465,Council expenditure,11/01/2017,SOLD DAY TO DAY OPERATIONS,AMAZON UK RETAIL AMAZO,19.95,EQUIPMENT,MISCELLANEOUS AND SPECIALTY RETAIL STORES
04/05/2017,http://opendatacommunities.org/id/county-council/surrey,Surrey,http://id.esd.org.uk/service/1465,Council expenditure,11/01/2017,TARGETED INTERVENTION,TWO RIVERS CAR PK,1.2,EDUC VISITS/HOLS/CAMPS/TOYS,AUTOMOBILE PARKING LOTS AND GARAGES
04/05/2017,http://opendatacommunities.org/id/county-council/surrey,Surrey,http://id.esd.org.uk/service/1465,Council expenditure,11/01/2017,TARGETED INTERVENTION,WOKING SNOOKER CENTRE,9.13,EDUC VISITS/HOLS/CAMPS/TOYS,RECREATIONAL AND SPORTING CAMPS
04/05/2017,http://opendatacommunities.org/id/county-council/surrey,Surrey,http://id.esd.org.uk/service/1465,Council expenditure,11/01/2017,TARGETED INTERVENTION,THE ATRIUM CAMBERLEY,3,EDUC VISITS/HOLS/CAMPS/TOYS,PROFESSIONAL SERVICES-NOT ELSEWHERE CLASSIFIED
04/05/2017,http://opendatacommunities.org/id/county-council/surrey,Surrey,http://id.esd.org.uk/service/1465,Council expenditure,11/01/2017,QUADRANT COURT WOKING,ELECTROLUX,18.99,EQUIPMENT,MISCELLANEOUS AND SPECIALTY RETAIL STORES
04/05/2017,http://opendatacommunities.org/id/county-council/surrey,Surrey,http://id.esd.org.uk/service/1465,Council expenditure,11/01/2017,TARGETED INTERVENTION,WOKING BOROUGH COUNCIL,2.6,MISCELLANEOUS STAFF TRAVEL,AUTOMOBILE PARKING LOTS AND GARAGES
04/05/2017,http://opendatacommunities.org/id/county-council/surrey,Surrey,http://id.esd.org.uk/service/1465,Council expenditure,11/01/2017,ASSET PLANNING - OPERATIONS,RS COMPONENTS,10.9,EQUIPMENT,ELECTRICAL PARTS AND EQUIPMENT
04/05/2017,http://opendatacommunities.org/id/county-council/surrey,Surrey,http://id.esd.org.uk/service/1465,Council expenditure,11/01/2017,ACL CENTRAL EXPENDITURE,AMAZON UK RETAIL AMAZO,12.98,EQUIPMENT,MISCELLANEOUS AND SPECIALTY RETAIL STORES
04/05/2017,http://opendatacommunities.org/id/county-council/surrey,Surrey,http://id.esd.org.uk/service/1465,Council expenditure,11/01/2017,ACL CENTRAL EXPENDITURE,THE COTTON PATCH,103.99,EQUIPMENT,"ARTIST SUPPLY STORES, CRAFT SHOPS"
04/05/2017,http://opendatacommunities.org/id/county-council/surrey,Surrey,http://id.esd.org.uk/service/1465,Council expenditure,11/01/2017,DEVELOPMENT TEAM,GITHUB.COM  6BH7W,21.31,SUBSCRIPTIONS,"COMPUTERS, COMPUTER PERIPHERAL EQUIPMENT, SOFTWARE"
04/05/2017,http://opendatacommunities.org/id/county-council/surrey,Surrey,http://id.esd.org.uk/service/1465,Council expenditure,11/01/2017,TRANSITION TEAM,PREMIER INN,394.5,VENUE COSTS (INCLUDING HIRE OF ROOMS),PREMIER INN
04/05/2017,http://opendatacommunities.org/id/county-council/surrey,Surrey,http://id.esd.org.uk/service/1465,Council expenditure,11/01/2017,THE STREET YC,AMAZON UK MARKETPLACE,15.94,EQUIPMENT,BOOK STORES
04/05/2017,http://opendatacommunities.org/id/county-council/surrey,Surrey,http://id.esd.org.uk/service/1465,Council expenditure,11/01/2017,STOUGHTON YC,SAINSBURYS LOC 4409,4.95,PURCHASE OF FOOD (RAW MATERIALS),"GROCERY STORES, SUPERMARKETS"
04/05/2017,http://opendatacommunities.org/id/county-council/surrey,Surrey,http://id.esd.org.uk/service/1465,Council expenditure,11/01/2017,ARUNDEL,TESCO STORES 5999,70.16,REFRESHMENT COSTS,"GROCERY STORES, SUPERMARKETS"
04/05/2017,http://opendatacommunities.org/id/county-council/surrey,Surrey,http://id.esd.org.uk/service/1465,Council expenditure,11/01/2017,PAMS IMPLEMENTATION COSTS,AMAZON UK MARKETPLACE,51.81,EQUIPMENT,BOOK STORES
04/05/2017,http://opendatacommunities.org/id/county-council/surrey,Surrey,http://id.esd.org.uk/service/1465,Council expenditure,11/01/2017,SURREY ARTS GENERAL,AMAZON UK MARKETPLACE,29.99,EQUIPMENT,BOOK STORES
04/05/2017,http://opendatacommunities.org/id/county-council/surrey,Surrey,http://id.esd.org.uk/service/1465,Council expenditure,11/01/2017,ADDLESTONE YC,AMAZON UK MARKETPLACE,7.49,CURRICULUM CONSUMABLES,BOOK STORES
04/05/2017,http://opendatacommunities.org/id/county-council/surrey,Surrey,http://id.esd.org.uk/service/1465,Council expenditure,11/01/2017,FIRE & RESCUE COMMUNITY SAFETY,WH SMITH,69.5,STATIONERY,NEWS DEALERS AND NEWSSTANDS
04/05/2017,http://opendatacommunities.org/id/county-council/surrey,Surrey,http://id.esd.org.uk/service/1465,Council expenditure,11/01/2017,SHEERWATER YC,ASDA STORES 4823,8.26,PURCHASE OF FOOD (RAW MATERIALS),"GROCERY STORES, SUPERMARKETS"
04/05/2017,http://opendatacommunities.org/id/county-council/surrey,Surrey,http://id.esd.org.uk/service/1465,Council expenditure,11/01/2017,CEO - PUBLIC HEALTH CAMPAIGNS           ,FACEBK V57MUBEAK2,308.25,PUBLICITY,ADVERTISING SERVICES
04/05/2017,http://opendatacommunities.org/id/county-council/surrey,Surrey,http://id.esd.org.uk/service/1465,Council expenditure,11/01/2017,CEO - PUBLIC HEALTH CAMPAIGNS           ,FACEBK Q57MUBEAK2,291.82,PUBLICITY,ADVERTISING SERVICES
04/05/2017,http://opendatacommunities.org/id/county-council/surrey,Surrey,http://id.esd.org.uk/service/1465,Council expenditure,11/01/2017,HI EQUIPMENT                            ,AMAZON UK MARKETPLACE,68.23,EQUIPMENT,BOOK STORES
04/05/2017,http://opendatacommunities.org/id/county-council/surrey,Surrey,http://id.esd.org.uk/service/1465,Council expenditure,11/01/2017,ASSET PLANNING - OPERATIONS,OFCOM,50,TELECOMMUNICATION CHARGES,PROFESSIONAL SERVICES-NOT ELSEWHERE CLASSIFIED
04/05/2017,http://opendatacommunities.org/id/county-council/surrey,Surrey,http://id.esd.org.uk/service/1465,Council expenditure,11/01/2017,ACL CENTRAL EXPENDITURE,SAINSBURYS LOC 4334,8.02,REFRESHMENT COSTS,"GROCERY STORES, SUPERMARKETS"
04/05/2017,http://opendatacommunities.org/id/county-council/surrey,Surrey,http://id.esd.org.uk/service/1465,Council expenditure,11/01/2017,MGMT - ORBIS (MANAGEMENT TEAM & SUPPORT),CUSTOMER THERMOMETER,101.26,FEES,COMPUTER SOFTWARE STORES
04/05/2017,http://opendatacommunities.org/id/county-council/surrey,Surrey,http://id.esd.org.uk/service/1465,Council expenditure,11/01/2017,HILLSIDE,TESCO STORE 3149,48.65,PURCHASE OF FOOD (RAW MATERIALS),"GROCERY STORES, SUPERMARKETS"
04/05/2017,http://opendatacommunities.org/id/county-council/surrey,Surrey,http://id.esd.org.uk/service/1465,Council expenditure,11/01/2017,MEMBERS EXPENSES (INCL ALLOWANCES),WWW.ICO.GOV.UK,35,SUBSCRIPTIONS,GOVERNMENT SERVICES-NOT ELSEWHERE CLASSIFIED
04/05/2017,http://opendatacommunities.org/id/county-council/surrey,Surrey,http://id.esd.org.uk/service/1465,Council expenditure,11/01/2017,ACL CENTRAL EXPENDITURE,NETGEAR,15,COMPUTER SERVICES,COMPUTER MAIN./REPAIR/SERVICES NOT ELSEWHERE CLASS
04/05/2017,http://opendatacommunities.org/id/county-council/surrey,Surrey,http://id.esd.org.uk/service/1465,Council expenditure,11/01/2017,INSURANCE CLAIMS TEAM,ALARM THE NATIONAL,799.2,SUBSCRIPTIONS,"ORGANIZATIONS, MEMBERSHIP-NOT ELSEWHERE CLASSIFIED"
04/05/2017,http://opendatacommunities.org/id/county-council/surrey,Surrey,http://id.esd.org.uk/service/1465,Council expenditure,11/01/2017,SE TEACHERS,AMAZON UK MARKETPLACE,6,EQUIPMENT,BOOK STORES
04/05/2017,http://opendatacommunities.org/id/county-council/surrey,Surrey,http://id.esd.org.uk/service/1465,Council expenditure,11/01/2017,PURCHASE TO PAY TEAM,RYMAN 1174,7.98,EQUIPMENT,"OFFICE, SCHOOL SUPPLY, AND STATIONERY STORES"
04/05/2017,http://opendatacommunities.org/id/county-council/surrey,Surrey,http://id.esd.org.uk/service/1465,Council expenditure,11/01/2017,HOLLAND CLOSE RESIDENTIAL HOME,WWW.AIRHOPTRAMPELINEOA,48,EDUC VISITS/HOLS/CAMPS/TOYS,RECREATIONAL AND SPORTING CAMPS
04/05/2017,http://opendatacommunities.org/id/county-council/surrey,Surrey,http://id.esd.org.uk/service/1465,Council expenditure,11/01/2017,NW CARE - NON-LAC CP & COURT,WWW.,474.69,CHILDREN ACT SEC 17 PAYMENTS,"LODGING-HOTELS,MOTELS,RESORTS-NOT CLASSIFIED"
04/05/2017,http://opendatacommunities.org/id/county-council/surrey,Surrey,http://id.esd.org.uk/service/1465,Council expenditure,11/01/2017,ADDLESTONE YC,AMAZON UK MARKETPLACE,1.99,CURRICULUM CONSUMABLES,BOOK STORES
04/05/2017,http://opendatacommunities.org/id/county-council/surrey,Surrey,http://id.esd.org.uk/service/1465,Council expenditure,11/01/2017,YSS YOUTH CENTRE IMPROVEMENTS,TESCO STORE 2560,9,CLEANING AND DOMESTIC SUPPLIES,"GROCERY STORES, SUPERMARKETS"
04/05/2017,http://opendatacommunities.org/id/county-council/surrey,Surrey,http://id.esd.org.uk/service/1465,Council expenditure,11/01/2017,COUNTY HALL,AMAZON EU,30.99,DAY TO DAY MAINTENANCE,DIRECT MARKETING-OTHER DIRECT MARKETERS/NOT ELSEW.
04/05/2017,http://opendatacommunities.org/id/county-council/surrey,Surrey,http://id.esd.org.uk/service/1465,Council expenditure,11/01/2017,PROPERTY OPERATIONS TEAM,TOOLSTATION LTD,21.6,PURCHASE OF BUILDING MATERIALS,HARDWARE STORES
04/05/2017,http://opendatacommunities.org/id/county-council/surrey,Surrey,http://id.esd.org.uk/service/1465,Council expenditure,11/01/2017,SPELTHORNE CMHRS CARE,EXPEDIA114015619111,315,RESIDENTIAL PRIV,TRAVEL AGENCIES AND TOUR OPERATORS
04/05/2017,http://opendatacommunities.org/id/county-council/surrey,Surrey,http://id.esd.org.uk/service/1465,Council expenditure,11/01/2017,TARGETED INTERVENTION,FREEDOM LEISURE,29.2,EDUC VISITS/HOLS/CAMPS/TOYS,GOVERNMENT SERVICES-NOT ELSEWHERE CLASSIFIED
04/05/2017,http://opendatacommunities.org/id/county-council/surrey,Surrey,http://id.esd.org.uk/service/1465,Council expenditure,11/01/2017,MISC EDCAT SUPPORT,TOTALJOBS GROUP LTD,268.8,PUBLICITY,MISCELLANEOUS PUBLISHING AND PRINTING
04/05/2017,http://opendatacommunities.org/id/county-council/surrey,Surrey,http://id.esd.org.uk/service/1465,Council expenditure,11/01/2017,RUTH HOUSE,TRAINLINE,52.48,EDUC VISITS/HOLS/CAMPS/TOYS,PASSENGER RAILWAYS
04/05/2017,http://opendatacommunities.org/id/county-council/surrey,Surrey,http://id.esd.org.uk/service/1465,Council expenditure,11/01/2017,SOLD ESTATES MANAGEMENT,AMAZON UK MARKETPLACE,453.8,EQUIPMENT,BOOK STORES
04/05/2017,http://opendatacommunities.org/id/county-council/surrey,Surrey,http://id.esd.org.uk/service/1465,Council expenditure,11/01/2017,SOLD ESTATES MANAGEMENT,AMAZON UK MARKETPLACE,2.24,DAY TO DAY MAINTENANCE,BOOK STORES
04/05/2017,http://opendatacommunities.org/id/county-council/surrey,Surrey,http://id.esd.org.uk/service/1465,Council expenditure,11/01/2017,HOPE SERVICE - WEST,SAINSBURYS SACAT 0687,6,CURRICULUM CONSUMABLES,"GROCERY STORES, SUPERMARKETS"
04/05/2017,http://opendatacommunities.org/id/county-council/surrey,Surrey,http://id.esd.org.uk/service/1465,Council expenditure,11/01/2017,SOLD DAY TO DAY OPERATIONS,AMAZON UK MARKETPLACE,17.74,EQUIPMENT,BOOK STORES
04/05/2017,http://opendatacommunities.org/id/county-council/surrey,Surrey,http://id.esd.org.uk/service/1465,Council expenditure,11/01/2017,BURBANK COMMUNITY HOME,WICKES,5.49,DAY TO DAY MAINTENANCE,"BUILDING MATERIALS, LUMBER STORES"
04/05/2017,http://opendatacommunities.org/id/county-council/surrey,Surrey,http://id.esd.org.uk/service/1465,Council expenditure,11/01/2017,TARGETED INTERVENTION,THE BIG APPLE,4.45,EDUC VISITS/HOLS/CAMPS/TOYS,BOWLING ALLEYS
04/05/2017,http://opendatacommunities.org/id/county-council/surrey,Surrey,http://id.esd.org.uk/service/1465,Council expenditure,11/01/2017,TARGETED INTERVENTION,SAINSBURYS 0670,2.75,EDUC VISITS/HOLS/CAMPS/TOYS,"GROCERY STORES, SUPERMARKETS"
04/05/2017,http://opendatacommunities.org/id/county-council/surrey,Surrey,http://id.esd.org.uk/service/1465,Council expenditure,11/01/2017,TARGETED INTERVENTION,TENPIN,61.5,EDUC VISITS/HOLS/CAMPS/TOYS,"CLUBS-CNTRY,MBRSHIP(ATHLET,REC,SPRTS,PRIVATE GOLF"
04/05/2017,http://opendatacommunities.org/id/county-council/surrey,Surrey,http://id.esd.org.uk/service/1465,Council expenditure,11/01/2017,BURBANK COMMUNITY HOME,B & Q 1029,3.58,DAY TO DAY MAINTENANCE,"BUILDING MATERIALS, LUMBER STORES"
04/05/2017,http://opendatacommunities.org/id/county-council/surrey,Surrey,http://id.esd.org.uk/service/1465,Council expenditure,11/01/2017,TARGETED INTERVENTION,THE SCULPTURE PARK,20,EDUC VISITS/HOLS/CAMPS/TOYS,TOURIST ATTRACTIONS AND EXHIBITS
04/05/2017,http://opendatacommunities.org/id/county-council/surrey,Surrey,http://id.esd.org.uk/service/1465,Council expenditure,11/01/2017,ACL CENTRAL EXPENDITURE,AMAZON UK MARKETPLACE,3.44,EQUIPMENT,BOOK STORES
04/05/2017,http://opendatacommunities.org/id/county-council/surrey,Surrey,http://id.esd.org.uk/service/1465,Council expenditure,11/01/2017,ASSISTED PURCHASE SCHEME,PHIL PARKER LIMITED,"2,450.00",EQUIPMENT,"MUSIC STORES-INSTRUMENTS, PIANOS, SHEET MUSIC"
04/05/2017,http://opendatacommunities.org/id/county-council/surrey,Surrey,http://id.esd.org.uk/service/1465,Council expenditure,11/01/2017,INSTRUMENT HIRE SHOP,KEMET INTERNATIONAL LT,"2,286.00",EQUIPMENT,DIRECT MARKETING-OTHER DIRECT MARKETERS/NOT ELSEW.
04/05/2017,http://opendatacommunities.org/id/county-council/surrey,Surrey,http://id.esd.org.uk/service/1465,Council expenditure,11/01/2017,ACL CENTRAL EXPENDITURE,AMAZON UK MARKETPLACE,8.98,EQUIPMENT,BOOK STORES
04/05/2017,http://opendatacommunities.org/id/county-council/surrey,Surrey,http://id.esd.org.uk/service/1465,Council expenditure,11/01/2017,IMT CRITICAL ENVIRONMENTS,AMAZON UK RETAIL AMAZO,30.72,COMPUTER HARDWARE,MISCELLANEOUS AND SPECIALTY RETAIL STORES
04/05/2017,http://opendatacommunities.org/id/county-council/surrey,Surrey,http://id.esd.org.uk/service/1465,Council expenditure,11/01/2017,SOLD DAY TO DAY OPERATIONS,AMAZON UK MARKETPLACE,19.15,EQUIPMENT,BOOK STORES
04/05/2017,http://opendatacommunities.org/id/county-council/surrey,Surrey,http://id.esd.org.uk/service/1465,Council expenditure,11/01/2017,DOWNLANDS COUNTRYSIDE PROJECT,TOOLSTATION LTD,20.75,EQUIPMENT,HARDWARE STORES
04/05/2017,http://opendatacommunities.org/id/county-council/surrey,Surrey,http://id.esd.org.uk/service/1465,Council expenditure,11/01/2017,TARGETED INTERVENTION,SAINSBURYS 0670,2.2,EDUC VISITS/HOLS/CAMPS/TOYS,"GROCERY STORES, SUPERMARKETS"
04/05/2017,http://opendatacommunities.org/id/county-council/surrey,Surrey,http://id.esd.org.uk/service/1465,Council expenditure,11/01/2017,LIBERTAS COMMUNITY HOME,DEBENHAMS,25.04,"CLOTHING, UNIFORM AND LAUNDRY",DEPARTMENT STORES
04/05/2017,http://opendatacommunities.org/id/county-council/surrey,Surrey,http://id.esd.org.uk/service/1465,Council expenditure,11/01/2017,TRANSPORT,AMAZON UK MARKETPLACE,33.43,STATIONERY,BOOK STORES
04/05/2017,http://opendatacommunities.org/id/county-council/surrey,Surrey,http://id.esd.org.uk/service/1465,Council expenditure,11/01/2017,DOWNLANDS COUNTRYSIDE PROJECT,SCREWFIX DIRECT LT,2.89,DAY TO DAY MAINTENANCE,"BUILDING MATERIALS, LUMBER STORES"
04/05/2017,http://opendatacommunities.org/id/county-council/surrey,Surrey,http://id.esd.org.uk/service/1465,Council expenditure,11/01/2017,TARGETED INTERVENTION,SAINSBURYS 0670,3.9,EDUC VISITS/HOLS/CAMPS/TOYS,"GROCERY STORES, SUPERMARKETS"
04/05/2017,http://opendatacommunities.org/id/county-council/surrey,Surrey,http://id.esd.org.uk/service/1465,Council expenditure,11/01/2017,LIBERTAS COMMUNITY HOME,SPORTSDIRECT 234,20.99,"CLOTHING, UNIFORM AND LAUNDRY",SPORTING GOODS STORES
04/05/2017,http://opendatacommunities.org/id/county-council/surrey,Surrey,http://id.esd.org.uk/service/1465,Council expenditure,11/01/2017,TARGETED INTERVENTION,STARBUCKS,7.8,EDUC VISITS/HOLS/CAMPS/TOYS,"EATING PLACES, RESTAURANTS"
04/05/2017,http://opendatacommunities.org/id/county-council/surrey,Surrey,http://id.esd.org.uk/service/1465,Council expenditure,11/01/2017,TARGETED INTERVENTION,STARBUCKS,12.85,EDUC VISITS/HOLS/CAMPS/TOYS,"EATING PLACES, RESTAURANTS"
04/05/2017,http://opendatacommunities.org/id/county-council/surrey,Surrey,http://id.esd.org.uk/service/1465,Council expenditure,11/01/2017,IMT CRITICAL ENVIRONMENTS,AMAZON UK MARKETPLACE,13.34,COMPUTER HARDWARE,BOOK STORES
04/05/2017,http://opendatacommunities.org/id/county-council/surrey,Surrey,http://id.esd.org.uk/service/1465,Council expenditure,11/01/2017,TRAINING AND DEVELOPMENT,WWWFLEECEWHITNEY.CO.UK,360,TRAINING EXPENSES EXTERNAL GENERAL,"BAR,LOUNGE,DISCO,NIGHTCLUB,TAVERN-ALCOHOLIC DRINKS"
04/05/2017,http://opendatacommunities.org/id/county-council/surrey,Surrey,http://id.esd.org.uk/service/1465,Council expenditure,11/01/2017,CORPORATE GROUP - LEGAL SERVICES,LEWES PARKING,5.2,EXPENSES,SCHOOLS & EDUCATIONAL SVC-NOT ELSEWHERE CLASSIFIED
04/05/2017,http://opendatacommunities.org/id/county-council/surrey,Surrey,http://id.esd.org.uk/service/1465,Council expenditure,11/01/2017,BURBANK COMMUNITY HOME,SAINSBURYS TO YOU 0686,276.84,PURCHASE OF FOOD (RAW MATERIALS),"GROCERY STORES, SUPERMARKETS"
04/05/2017,http://opendatacommunities.org/id/county-council/surrey,Surrey,http://id.esd.org.uk/service/1465,Council expenditure,11/01/2017,ACL CENTRAL EXPENDITURE,TESCO STORE 2160,65.59,REFRESHMENT COSTS,"GROCERY STORES, SUPERMARKETS"
04/05/2017,http://opendatacommunities.org/id/county-council/surrey,Surrey,http://id.esd.org.uk/service/1465,Council expenditure,11/01/2017,MALLOW CRESCENT,SAINSBURYS TO YOU 0652,22.65,PURCHASE OF FOOD (RAW MATERIALS),"GROCERY STORES, SUPERMARKETS"
04/05/2017,http://opendatacommunities.org/id/county-council/surrey,Surrey,http://id.esd.org.uk/service/1465,Council expenditure,11/01/2017,MALLOW CRESCENT,SAINSBURYS TO YOU 0652,82.28,PURCHASE OF FOOD (RAW MATERIALS),"GROCERY STORES, SUPERMARKETS"
04/05/2017,http://opendatacommunities.org/id/county-council/surrey,Surrey,http://id.esd.org.uk/service/1465,Council expenditure,11/01/2017,HILLSIDE,NEXT RETAIL LTD,-4,PURCHASE OF FOOD (RAW MATERIALS),FAMILY CLOTHING STORES
04/05/2017,http://opendatacommunities.org/id/county-council/surrey,Surrey,http://id.esd.org.uk/service/1465,Council expenditure,12/01/2017,COUNTYWIDE MANAGED PRINT SERVICE,AMAZON UK RETAIL AMAZO,19.31,PHOTOCOPIER MACHINES AND MATERIALS,MISCELLANEOUS AND SPECIALTY RETAIL STORES
04/05/2017,http://opendatacommunities.org/id/county-council/surrey,Surrey,http://id.esd.org.uk/service/1465,Council expenditure,12/01/2017,COUNTYWIDE MANAGED PRINT SERVICE,AMAZON UK RETAIL AMAZO,19.3,PHOTOCOPIER MACHINES AND MATERIALS,MISCELLANEOUS AND SPECIALTY RETAIL STORES
04/05/2017,http://opendatacommunities.org/id/county-council/surrey,Surrey,http://id.esd.org.uk/service/1465,Council expenditure,12/01/2017,COUNTYWIDE MANAGED PRINT SERVICE,AMAZON UK RETAIL AMAZO,19.3,PHOTOCOPIER MACHINES AND MATERIALS,MISCELLANEOUS AND SPECIALTY RETAIL STORES
04/05/2017,http://opendatacommunities.org/id/county-council/surrey,Surrey,http://id.esd.org.uk/service/1465,Council expenditure,12/01/2017,COUNTYWIDE MANAGED PRINT SERVICE,AMAZON UK RETAIL AMAZO,19.3,PHOTOCOPIER MACHINES AND MATERIALS,MISCELLANEOUS AND SPECIALTY RETAIL STORES
04/05/2017,http://opendatacommunities.org/id/county-council/surrey,Surrey,http://id.esd.org.uk/service/1465,Council expenditure,12/01/2017,ENGERY TEAM,HP INC UK LIMITED,30.36,EQUIPMENT,"COMPUTERS, COMPUTER PERIPHERAL EQUIPMENT, SOFTWARE"
04/05/2017,http://opendatacommunities.org/id/county-council/surrey,Surrey,http://id.esd.org.uk/service/1465,Council expenditure,12/01/2017,SOLD DAY TO DAY OPERATIONS,AMAZON UK RETAIL AMAZO,24.71,EQUIPMENT,MISCELLANEOUS AND SPECIALTY RETAIL STORES
04/05/2017,http://opendatacommunities.org/id/county-council/surrey,Surrey,http://id.esd.org.uk/service/1465,Council expenditure,12/01/2017,TARGETED INTERVENTION,WOKING SNOOKER CENTRE,7.63,EDUC VISITS/HOLS/CAMPS/TOYS,RECREATIONAL AND SPORTING CAMPS
04/05/2017,http://opendatacommunities.org/id/county-council/surrey,Surrey,http://id.esd.org.uk/service/1465,Council expenditure,12/01/2017,TARGETED INTERVENTION,THE ATRIUM CAMBERLEY,1.8,MISCELLANEOUS STAFF TRAVEL,PROFESSIONAL SERVICES-NOT ELSEWHERE CLASSIFIED
04/05/2017,http://opendatacommunities.org/id/county-council/surrey,Surrey,http://id.esd.org.uk/service/1465,Council expenditure,12/01/2017,YSS YOUTH CENTRE IMPROVEMENTS,CURRYS ONLINE,-344.99,EQUIPMENT,ELECTRONIC SALES
04/05/2017,http://opendatacommunities.org/id/county-council/surrey,Surrey,http://id.esd.org.uk/service/1465,Council expenditure,12/01/2017,CHEYNE WALK COMMUNITY HOME,CO-OP GROUP PETROL,6.73,PURCHASE OF FOOD (RAW MATERIALS),SERVICE STATIONS WITH OR WITHOUT ANCILLARY SERVICE
04/05/2017,http://opendatacommunities.org/id/county-council/surrey,Surrey,http://id.esd.org.uk/service/1465,Council expenditure,12/01/2017,ACL CENTRAL EXPENDITURE,NETGEAR,15,COMPUTER SERVICES,COMPUTER MAIN./REPAIR/SERVICES NOT ELSEWHERE CLASS
04/05/2017,http://opendatacommunities.org/id/county-council/surrey,Surrey,http://id.esd.org.uk/service/1465,Council expenditure,12/01/2017,COUNTYWIDE MANAGED PRINT SERVICE,AMAZON EU,19.3,PHOTOCOPIER MACHINES AND MATERIALS,DIRECT MARKETING-OTHER DIRECT MARKETERS/NOT ELSEW.
04/05/2017,http://opendatacommunities.org/id/county-council/surrey,Surrey,http://id.esd.org.uk/service/1465,Council expenditure,12/01/2017,COUNTYWIDE MANAGED PRINT SERVICE,AMAZON EU,19.3,PHOTOCOPIER MACHINES AND MATERIALS,DIRECT MARKETING-OTHER DIRECT MARKETERS/NOT ELSEW.
04/05/2017,http://opendatacommunities.org/id/county-council/surrey,Surrey,http://id.esd.org.uk/service/1465,Council expenditure,12/01/2017,ADDLESTONE YC,AMAZON UK MARKETPLACE,10.97,CURRICULUM CONSUMABLES,BOOK STORES
04/05/2017,http://opendatacommunities.org/id/county-council/surrey,Surrey,http://id.esd.org.uk/service/1465,Council expenditure,12/01/2017,ARUNDEL,TESCO STORES 5999,75.12,REFRESHMENT COSTS,"GROCERY STORES, SUPERMARKETS"
04/05/2017,http://opendatacommunities.org/id/county-council/surrey,Surrey,http://id.esd.org.uk/service/1465,Council expenditure,12/01/2017,HARRY'S YC,WAITROSE 838,3.32,PURCHASE OF FOOD (RAW MATERIALS),"GROCERY STORES, SUPERMARKETS"
04/05/2017,http://opendatacommunities.org/id/county-council/surrey,Surrey,http://id.esd.org.uk/service/1465,Council expenditure,12/01/2017,CAMHS SOCIAL WORKERS,MILANO PIZZA,55.96,REFRESHMENT COSTS,FAST FOOD RESTAURANTS
04/05/2017,http://opendatacommunities.org/id/county-council/surrey,Surrey,http://id.esd.org.uk/service/1465,Council expenditure,12/01/2017,CEO - PUBLIC HEALTH CAMPAIGNS           ,GOOGLE  ADWS2060179426,500,PUBLICITY,DIRECT MARKETING-CONTINUITY/SUBSCRIPTION MERCHANTS
04/05/2017,http://opendatacommunities.org/id/county-council/surrey,Surrey,http://id.esd.org.uk/service/1465,Council expenditure,12/01/2017,RUTH HOUSE,SCREWFIX DIRECT,285.14,EQUIPMENT,"BUILDING MATERIALS, LUMBER STORES"
04/05/2017,http://opendatacommunities.org/id/county-council/surrey,Surrey,http://id.esd.org.uk/service/1465,Council expenditure,12/01/2017,SOLD DAY TO DAY OPERATIONS,AMAZON UK MARKETPLACE,8.89,EQUIPMENT,BOOK STORES
04/05/2017,http://opendatacommunities.org/id/county-council/surrey,Surrey,http://id.esd.org.uk/service/1465,Council expenditure,12/01/2017,RUTH HOUSE,THE FARM SHOP-,365.08,PURCHASE OF FOOD (RAW MATERIALS),"CLOCK, JEWELRY, WATCH, AND SILVERWARE STORE"
04/05/2017,http://opendatacommunities.org/id/county-council/surrey,Surrey,http://id.esd.org.uk/service/1465,Council expenditure,12/01/2017,RUTH HOUSE,THE FARM SHOP-,301.69,PURCHASE OF FOOD (RAW MATERIALS),"CLOCK, JEWELRY, WATCH, AND SILVERWARE STORE"
04/05/2017,http://opendatacommunities.org/id/county-council/surrey,Surrey,http://id.esd.org.uk/service/1465,Council expenditure,12/01/2017,RUTH HOUSE,THE FARM SHOP-,255.82,PURCHASE OF FOOD (RAW MATERIALS),"CLOCK, JEWELRY, WATCH, AND SILVERWARE STORE"
04/05/2017,http://opendatacommunities.org/id/county-council/surrey,Surrey,http://id.esd.org.uk/service/1465,Council expenditure,12/01/2017,RUTH HOUSE,THE FARM SHOP-,292.77,PURCHASE OF FOOD (RAW MATERIALS),"CLOCK, JEWELRY, WATCH, AND SILVERWARE STORE"
04/05/2017,http://opendatacommunities.org/id/county-council/surrey,Surrey,http://id.esd.org.uk/service/1465,Council expenditure,12/01/2017,RUTH HOUSE,THE FARM SHOP-,444.43,PURCHASE OF FOOD (RAW MATERIALS),"CLOCK, JEWELRY, WATCH, AND SILVERWARE STORE"
04/05/2017,http://opendatacommunities.org/id/county-council/surrey,Surrey,http://id.esd.org.uk/service/1465,Council expenditure,12/01/2017,YSS YOUTH CENTRE IMPROVEMENTS,ARGOS RETAIL GROUP,37.96,EQUIPMENT,DISCOUNT STORES
04/05/2017,http://opendatacommunities.org/id/county-council/surrey,Surrey,http://id.esd.org.uk/service/1465,Council expenditure,12/01/2017,PE/CDT MAINTENANCE OVERHEADS,WWW.CHRONOS.LTD.UK,226.8,EQUIPMENT,HARDWARE STORES
04/05/2017,http://opendatacommunities.org/id/county-council/surrey,Surrey,http://id.esd.org.uk/service/1465,Council expenditure,12/01/2017,TARGETED INTERVENTION,STARBUCKS,9.58,EDUC VISITS/HOLS/CAMPS/TOYS,"EATING PLACES, RESTAURANTS"
04/05/2017,http://opendatacommunities.org/id/county-council/surrey,Surrey,http://id.esd.org.uk/service/1465,Council expenditure,12/01/2017,SOLD DAY TO DAY OPERATIONS,AMAZON UK MARKETPLACE,46.92,EQUIPMENT,BOOK STORES
04/05/2017,http://opendatacommunities.org/id/county-council/surrey,Surrey,http://id.esd.org.uk/service/1465,Council expenditure,12/01/2017,TARGETED INTERVENTION,FREEDOM LEISURE,3.3,EDUC VISITS/HOLS/CAMPS/TOYS,GOVERNMENT SERVICES-NOT ELSEWHERE CLASSIFIED
04/05/2017,http://opendatacommunities.org/id/county-council/surrey,Surrey,http://id.esd.org.uk/service/1465,Council expenditure,12/01/2017,PHOENIX YC,TESCO STORE 3235,8.6,PURCHASE OF FOOD (RAW MATERIALS),"GROCERY STORES, SUPERMARKETS"
04/05/2017,http://opendatacommunities.org/id/county-council/surrey,Surrey,http://id.esd.org.uk/service/1465,Council expenditure,12/01/2017,TARGETED INTERVENTION,GAME RETAIL LTD CAMBER,10,EDUC VISITS/HOLS/CAMPS/TOYS,"GAME, TOY, AND HOBBY SHOPS"
04/05/2017,http://opendatacommunities.org/id/county-council/surrey,Surrey,http://id.esd.org.uk/service/1465,Council expenditure,12/01/2017,MISC EDCAT SUPPORT,BPP/CIMA ON DEMAND,238.8,TRAINING EXPENSES EXTERNAL GENERAL,"COLLEGES, UNIV, PRO SCHOOLS, JUNIOR COLLEGES"
04/05/2017,http://opendatacommunities.org/id/county-council/surrey,Surrey,http://id.esd.org.uk/service/1465,Council expenditure,12/01/2017,YSS YOUTH CENTRE IMPROVEMENTS,CURRYS ONLINE,344.99,EQUIPMENT,ELECTRONIC SALES
04/05/2017,http://opendatacommunities.org/id/county-council/surrey,Surrey,http://id.esd.org.uk/service/1465,Council expenditure,12/01/2017,RUTH HOUSE,AMAZON UK MARKETPLACE,7.72,EDUC VISITS/HOLS/CAMPS/TOYS,BOOK STORES
04/05/2017,http://opendatacommunities.org/id/county-council/surrey,Surrey,http://id.esd.org.uk/service/1465,Council expenditure,12/01/2017,RUTH HOUSE,AMAZON UK MARKETPLACE,33.93,EDUC VISITS/HOLS/CAMPS/TOYS,BOOK STORES
04/05/2017,http://opendatacommunities.org/id/county-council/surrey,Surrey,http://id.esd.org.uk/service/1465,Council expenditure,12/01/2017,RUTH HOUSE,AMAZON UK MARKETPLACE,10.88,EDUC VISITS/HOLS/CAMPS/TOYS,BOOK STORES
04/05/2017,http://opendatacommunities.org/id/county-council/surrey,Surrey,http://id.esd.org.uk/service/1465,Council expenditure,12/01/2017,RUTH HOUSE,AMAZON UK MARKETPLACE,4.45,EDUC VISITS/HOLS/CAMPS/TOYS,BOOK STORES
04/05/2017,http://opendatacommunities.org/id/county-council/surrey,Surrey,http://id.esd.org.uk/service/1465,Council expenditure,12/01/2017,RUTH HOUSE,AMAZON UK MARKETPLACE,7.45,EDUC VISITS/HOLS/CAMPS/TOYS,BOOK STORES
04/05/2017,http://opendatacommunities.org/id/county-council/surrey,Surrey,http://id.esd.org.uk/service/1465,Council expenditure,12/01/2017,RUTH HOUSE,AMAZON UK MARKETPLACE,6.45,EDUC VISITS/HOLS/CAMPS/TOYS,BOOK STORES
04/05/2017,http://opendatacommunities.org/id/county-council/surrey,Surrey,http://id.esd.org.uk/service/1465,Council expenditure,12/01/2017,RUTH HOUSE,AMAZON UK MARKETPLACE,18.76,EDUC VISITS/HOLS/CAMPS/TOYS,BOOK STORES
04/05/2017,http://opendatacommunities.org/id/county-council/surrey,Surrey,http://id.esd.org.uk/service/1465,Council expenditure,12/01/2017,RUTH HOUSE,AMAZON UK MARKETPLACE,3.75,EDUC VISITS/HOLS/CAMPS/TOYS,BOOK STORES
04/05/2017,http://opendatacommunities.org/id/county-council/surrey,Surrey,http://id.esd.org.uk/service/1465,Council expenditure,12/01/2017,RUTH HOUSE,AMAZON UK MARKETPLACE,44.78,EDUC VISITS/HOLS/CAMPS/TOYS,BOOK STORES
04/05/2017,http://opendatacommunities.org/id/county-council/surrey,Surrey,http://id.esd.org.uk/service/1465,Council expenditure,12/01/2017,RUTH HOUSE,AMAZON UK MARKETPLACE,33.9,EDUC VISITS/HOLS/CAMPS/TOYS,BOOK STORES
04/05/2017,http://opendatacommunities.org/id/county-council/surrey,Surrey,http://id.esd.org.uk/service/1465,Council expenditure,12/01/2017,RUTH HOUSE,AMAZON UK MARKETPLACE,3.5,EDUC VISITS/HOLS/CAMPS/TOYS,BOOK STORES
04/05/2017,http://opendatacommunities.org/id/county-council/surrey,Surrey,http://id.esd.org.uk/service/1465,Council expenditure,12/01/2017,RUTH HOUSE,AMAZON UK RETAIL AMAZO,16.99,EDUC VISITS/HOLS/CAMPS/TOYS,MISCELLANEOUS AND SPECIALTY RETAIL STORES
04/05/2017,http://opendatacommunities.org/id/county-council/surrey,Surrey,http://id.esd.org.uk/service/1465,Council expenditure,12/01/2017,RUTH HOUSE,AMAZON UK MARKETPLACE,15.94,EDUC VISITS/HOLS/CAMPS/TOYS,BOOK STORES
04/05/2017,http://opendatacommunities.org/id/county-council/surrey,Surrey,http://id.esd.org.uk/service/1465,Council expenditure,12/01/2017,LIBERTAS COMMUNITY HOME,STEPPING STONES COOKIE,10.55,REFRESHMENT COSTS,FAST FOOD RESTAURANTS
04/05/2017,http://opendatacommunities.org/id/county-council/surrey,Surrey,http://id.esd.org.uk/service/1465,Council expenditure,12/01/2017,TARGETED INTERVENTION,FREEDOM LEISURE,15.5,EDUC VISITS/HOLS/CAMPS/TOYS,GOVERNMENT SERVICES-NOT ELSEWHERE CLASSIFIED
04/05/2017,http://opendatacommunities.org/id/county-council/surrey,Surrey,http://id.esd.org.uk/service/1465,Council expenditure,12/01/2017,HOPE SERVICE - EAST,AMAZON UK MARKETPLACE,27.96,CURRICULUM EQUIPMENT AND FURNITURE,BOOK STORES
04/05/2017,http://opendatacommunities.org/id/county-council/surrey,Surrey,http://id.esd.org.uk/service/1465,Council expenditure,12/01/2017,TARGETED INTERVENTION,TENPIN,40.99,EDUC VISITS/HOLS/CAMPS/TOYS,"CLUBS-CNTRY,MBRSHIP(ATHLET,REC,SPRTS,PRIVATE GOLF"
04/05/2017,http://opendatacommunities.org/id/county-council/surrey,Surrey,http://id.esd.org.uk/service/1465,Council expenditure,12/01/2017,TRANSPORT,AMAZON UK MARKETPLACE,40.75,STATIONERY,BOOK STORES
04/05/2017,http://opendatacommunities.org/id/county-council/surrey,Surrey,http://id.esd.org.uk/service/1465,Council expenditure,12/01/2017,TARGETED INTERVENTION,STARBUCKS,8.35,EDUC VISITS/HOLS/CAMPS/TOYS,FAST FOOD RESTAURANTS
04/05/2017,http://opendatacommunities.org/id/county-council/surrey,Surrey,http://id.esd.org.uk/service/1465,Council expenditure,12/01/2017,TARGETED INTERVENTION,STARBUCKS,6,EDUC VISITS/HOLS/CAMPS/TOYS,FAST FOOD RESTAURANTS
04/05/2017,http://opendatacommunities.org/id/county-council/surrey,Surrey,http://id.esd.org.uk/service/1465,Council expenditure,12/01/2017,TARGETED INTERVENTION,LOVE COFFEE CAMBERLEY,2.85,EDUC VISITS/HOLS/CAMPS/TOYS,"EATING PLACES, RESTAURANTS"
04/05/2017,http://opendatacommunities.org/id/county-council/surrey,Surrey,http://id.esd.org.uk/service/1465,Council expenditure,12/01/2017,TARGETED INTERVENTION,FREEDOM LEISURE,6.05,EDUC VISITS/HOLS/CAMPS/TOYS,GOVERNMENT SERVICES-NOT ELSEWHERE CLASSIFIED
04/05/2017,http://opendatacommunities.org/id/county-council/surrey,Surrey,http://id.esd.org.uk/service/1465,Council expenditure,12/01/2017,TARGETED INTERVENTION,LOVE COFFEE CAMBERLEY,13.6,EDUC VISITS/HOLS/CAMPS/TOYS,"EATING PLACES, RESTAURANTS"
04/05/2017,http://opendatacommunities.org/id/county-council/surrey,Surrey,http://id.esd.org.uk/service/1465,Council expenditure,12/01/2017,TARGETED INTERVENTION,STARBUCKS,7.95,EDUC VISITS/HOLS/CAMPS/TOYS,FAST FOOD RESTAURANTS
04/05/2017,http://opendatacommunities.org/id/county-council/surrey,Surrey,http://id.esd.org.uk/service/1465,Council expenditure,12/01/2017,OTHER NON CWD HOME COSTS,CURRYS ONLINE,707.98,EQUIPMENT,ELECTRONIC SALES
04/05/2017,http://opendatacommunities.org/id/county-council/surrey,Surrey,http://id.esd.org.uk/service/1465,Council expenditure,12/01/2017,ASHTEAD YC,ALLSAINTS,5.1,REFRESHMENT COSTS,"EATING PLACES, RESTAURANTS"
04/05/2017,http://opendatacommunities.org/id/county-council/surrey,Surrey,http://id.esd.org.uk/service/1465,Council expenditure,12/01/2017,HILLSIDE,SAINSBURYS 0675,3,PURCHASE OF FOOD (RAW MATERIALS),"GROCERY STORES, SUPERMARKETS"
04/05/2017,http://opendatacommunities.org/id/county-council/surrey,Surrey,http://id.esd.org.uk/service/1465,Council expenditure,12/01/2017,HILLSIDE,SAINSBURYS 0675,56.12,PURCHASE OF FOOD (RAW MATERIALS),"GROCERY STORES, SUPERMARKETS"
04/05/2017,http://opendatacommunities.org/id/county-council/surrey,Surrey,http://id.esd.org.uk/service/1465,Council expenditure,12/01/2017,CHEYNE WALK COMMUNITY HOME,SURREY CC CARD PAY,25,STUDENT FARE CARD (STUDENTFARECARDRAIL),COMPUTER NETWORK/INFORMATION SERVICES
04/05/2017,http://opendatacommunities.org/id/county-council/surrey,Surrey,http://id.esd.org.uk/service/1465,Council expenditure,12/01/2017,ASSET PLANNING GROUP,BSS CRAWLEY,121.44,EQUIPMENT,PLUMBING AND HEATING EQUIPMENT
04/05/2017,http://opendatacommunities.org/id/county-council/surrey,Surrey,http://id.esd.org.uk/service/1465,Council expenditure,12/01/2017,TS SERVICE MANAGEMENT,AMAZON UK MARKETPLACE,13.39,MEDICAL EXPENSES,BOOK STORES
04/05/2017,http://opendatacommunities.org/id/county-council/surrey,Surrey,http://id.esd.org.uk/service/1465,Council expenditure,12/01/2017,PLANNING POLICY TEAM,HAYMARKET PUBLISHING S,600,SUBSCRIPTIONS,"BOOKS,PERIODICALS AND NEWSPAPERS"
04/05/2017,http://opendatacommunities.org/id/county-council/surrey,Surrey,http://id.esd.org.uk/service/1465,Council expenditure,12/01/2017,BURBANK COMMUNITY HOME,W M MORRISONS,10.49,PURCHASE OF FOOD (RAW MATERIALS),"GROCERY STORES, SUPERMARKETS"
04/05/2017,http://opendatacommunities.org/id/county-council/surrey,Surrey,http://id.esd.org.uk/service/1465,Council expenditure,12/01/2017,ORBIS HR BUSINESS SERVICES & TRAINING,AMAZON EU,12.28,EQUIPMENT,DIRECT MARKETING-OTHER DIRECT MARKETERS/NOT ELSEW.
04/05/2017,http://opendatacommunities.org/id/county-council/surrey,Surrey,http://id.esd.org.uk/service/1465,Council expenditure,12/01/2017,SURREY ARTS GENERAL,AMAZON UK MARKETPLACE,11.98,EQUIPMENT,BOOK STORES
04/05/2017,http://opendatacommunities.org/id/county-council/surrey,Surrey,http://id.esd.org.uk/service/1465,Council expenditure,12/01/2017,ACL CENTRAL EXPENDITURE,AMAZON UK RETAIL AMAZO,19.75,EQUIPMENT,MISCELLANEOUS AND SPECIALTY RETAIL STORES
04/05/2017,http://opendatacommunities.org/id/county-council/surrey,Surrey,http://id.esd.org.uk/service/1465,Council expenditure,12/01/2017,PRISON CAPITATION                       ,AMAZON UK MARKETPLACE,62.37,LIBRARY RESOURCES,BOOK STORES
04/05/2017,http://opendatacommunities.org/id/county-council/surrey,Surrey,http://id.esd.org.uk/service/1465,Council expenditure,12/01/2017,IMPROVING OUTCOMES - ECAT,BLOOMSBURY PUBLISH,19.13,BOOKS,"BOOKS,PERIODICALS AND NEWSPAPERS"
04/05/2017,http://opendatacommunities.org/id/county-council/surrey,Surrey,http://id.esd.org.uk/service/1465,Council expenditure,12/01/2017,BURBANK COMMUNITY HOME,W M MORRISONS,1,E25 CATERING EQUIPMENT,"GROCERY STORES, SUPERMARKETS"
04/05/2017,http://opendatacommunities.org/id/county-council/surrey,Surrey,http://id.esd.org.uk/service/1465,Council expenditure,12/01/2017,RUTH HOUSE,THE FARM SHOP-,"-1,289.67",PURCHASE OF FOOD (RAW MATERIALS),"CLOCK, JEWELRY, WATCH, AND SILVERWARE STORE"
04/05/2017,http://opendatacommunities.org/id/county-council/surrey,Surrey,http://id.esd.org.uk/service/1465,Council expenditure,13/01/2017,SE CARE - CP & COURT LAC,GRO HM PASSPORT OFFICE,-18.5,CHILDREN ACT SEC 17 PAYMENTS,GOVERNMENT SERVICES-NOT ELSEWHERE CLASSIFIED
04/05/2017,http://opendatacommunities.org/id/county-council/surrey,Surrey,http://id.esd.org.uk/service/1465,Council expenditure,13/01/2017,SE CARE - CP & COURT LAC,GRO HM PASSPORT OFFICE,-18.5,CHILDREN ACT SEC 17 PAYMENTS,GOVERNMENT SERVICES-NOT ELSEWHERE CLASSIFIED
04/05/2017,http://opendatacommunities.org/id/county-council/surrey,Surrey,http://id.esd.org.uk/service/1465,Council expenditure,13/01/2017,SOLD ESTATES MANAGEMENT,C BREWER & SONS,100.46,DAY TO DAY MAINTENANCE,"BUILDING MATERIALS, LUMBER STORES"
04/05/2017,http://opendatacommunities.org/id/county-council/surrey,Surrey,http://id.esd.org.uk/service/1465,Council expenditure,13/01/2017,FOSTERING SERVICE CENTRAL COSTS,WWW.CORAM.ORG.UK,114.55,BOOKS,"ORGANIZATIONS, CHARITABLE AND SOCIAL SERVICES"
04/05/2017,http://opendatacommunities.org/id/county-council/surrey,Surrey,http://id.esd.org.uk/service/1465,Council expenditure,13/01/2017,WOODLANDS COMMUNITY HOME,GMS/GLORYDALE,16.8,REFRESHMENT COSTS,MISCELLANEOUS GENERAL MERCHANDISE
04/05/2017,http://opendatacommunities.org/id/county-council/surrey,Surrey,http://id.esd.org.uk/service/1465,Council expenditure,13/01/2017,WOODLANDS COMMUNITY HOME,TOYS R US,7.59,EQUIPMENT,MISCELLANEOUS AND SPECIALTY RETAIL STORES
04/05/2017,http://opendatacommunities.org/id/county-council/surrey,Surrey,http://id.esd.org.uk/service/1465,Council expenditure,13/01/2017,WOODLANDS COMMUNITY HOME,TOYS R US,76.81,EDUC VISITS/HOLS/CAMPS/TOYS,MISCELLANEOUS AND SPECIALTY RETAIL STORES
04/05/2017,http://opendatacommunities.org/id/county-council/surrey,Surrey,http://id.esd.org.uk/service/1465,Council expenditure,13/01/2017,ARUNDEL,TESCO STORES 5999,115.99,REFRESHMENT COSTS,"GROCERY STORES, SUPERMARKETS"
04/05/2017,http://opendatacommunities.org/id/county-council/surrey,Surrey,http://id.esd.org.uk/service/1465,Council expenditure,13/01/2017,FOSTERING SERVICE CENTRAL COSTS,AMAZON UK RETAIL AMAZO,62.77,BOOKS,MISCELLANEOUS AND SPECIALTY RETAIL STORES
04/05/2017,http://opendatacommunities.org/id/county-council/surrey,Surrey,http://id.esd.org.uk/service/1465,Council expenditure,13/01/2017,WOODLANDS COMMUNITY HOME,HOMEBASE LTD 084,13.29,DAY TO DAY MAINTENANCE,"BUILDING MATERIALS, LUMBER STORES"
04/05/2017,http://opendatacommunities.org/id/county-council/surrey,Surrey,http://id.esd.org.uk/service/1465,Council expenditure,13/01/2017,STANWELL YOUTH CLUB,THE WORKS,8,CURRICULUM CONSUMABLES,DISCOUNT STORES
04/05/2017,http://opendatacommunities.org/id/county-council/surrey,Surrey,http://id.esd.org.uk/service/1465,Council expenditure,13/01/2017,SOLD CURRICULUM PROGRAMME DELIVERY,MILLETS,4.25,EQUIPMENT,SPORTING GOODS STORES
04/05/2017,http://opendatacommunities.org/id/county-council/surrey,Surrey,http://id.esd.org.uk/service/1465,Council expenditure,13/01/2017,CHEYNE WALK COMMUNITY HOME,TESCO STORE 2560,95.88,PURCHASE OF FOOD (RAW MATERIALS),"GROCERY STORES, SUPERMARKETS"
04/05/2017,http://opendatacommunities.org/id/county-council/surrey,Surrey,http://id.esd.org.uk/service/1465,Council expenditure,13/01/2017,HILLSIDE,PRIMARK,7.5,EQUIPMENT,FAMILY CLOTHING STORES
04/05/2017,http://opendatacommunities.org/id/county-council/surrey,Surrey,http://id.esd.org.uk/service/1465,Council expenditure,13/01/2017,SE CARE - NON-LAC CP & COURT,ARGOS RETAIL GROUP,34.99,CHILDREN ACT SEC 17 PAYMENTS,DISCOUNT STORES
04/05/2017,http://opendatacommunities.org/id/county-council/surrey,Surrey,http://id.esd.org.uk/service/1465,Council expenditure,13/01/2017,S.D. EAST AREA MANAGEMENT TEAM,CROWN,58.3,REFRESHMENT COSTS,"BAR,LOUNGE,DISCO,NIGHTCLUB,TAVERN-ALCOHOLIC DRINKS"
04/05/2017,http://opendatacommunities.org/id/county-council/surrey,Surrey,http://id.esd.org.uk/service/1465,Council expenditure,13/01/2017,ACL CENTRAL EXPENDITURE,SOUTH WESTERN IND PLAS,237.25,EQUIPMENT,"INSULATION,MASONRY,PLSTER,STONEWRK,TILESET CNTRCTR"
04/05/2017,http://opendatacommunities.org/id/county-council/surrey,Surrey,http://id.esd.org.uk/service/1465,Council expenditure,13/01/2017,NW CARE - CP & COURT LAC,SURREY CC CARD PAY,11,FEES,COMPUTER NETWORK/INFORMATION SERVICES
04/05/2017,http://opendatacommunities.org/id/county-council/surrey,Surrey,http://id.esd.org.uk/service/1465,Council expenditure,13/01/2017,S.D. EAST AREA MANAGEMENT TEAM,TEXACO ARDLEIGH S,9.2,REFRESHMENT COSTS,SERVICE STATIONS WITH OR WITHOUT ANCILLARY SERVICE
04/05/2017,http://opendatacommunities.org/id/county-council/surrey,Surrey,http://id.esd.org.uk/service/1465,Council expenditure,13/01/2017,PROPERTY OPERATIONS TEAM,TOOLSTATION LTD,41,PURCHASE OF BUILDING MATERIALS,HARDWARE STORES
04/05/2017,http://opendatacommunities.org/id/county-council/surrey,Surrey,http://id.esd.org.uk/service/1465,Council expenditure,13/01/2017,TRAINING F&R SER,UNI KENT STORE,120,TRAINING EXPENSES EXTERNAL GENERAL,"COLLEGES, UNIV, PRO SCHOOLS, JUNIOR COLLEGES"
04/05/2017,http://opendatacommunities.org/id/county-council/surrey,Surrey,http://id.esd.org.uk/service/1465,Council expenditure,13/01/2017,GUILDFORD CMHRS CARE,HMCTS-SURREY125,75,FEES,FINES
04/05/2017,http://opendatacommunities.org/id/county-council/surrey,Surrey,http://id.esd.org.uk/service/1465,Council expenditure,13/01/2017,TRANSPORT,GEOGRAPHERS A-Z,21.35,OPERATIONAL FIRE EQUIPMENT,BOOK STORES
04/05/2017,http://opendatacommunities.org/id/county-council/surrey,Surrey,http://id.esd.org.uk/service/1465,Council expenditure,13/01/2017,HILLSIDE,HOME CURTAINS & BEDDIN,16,EQUIPMENT,"DRAPERY, UPOLSTERY, AND WINDOW COVERINGS STORES"
04/05/2017,http://opendatacommunities.org/id/county-council/surrey,Surrey,http://id.esd.org.uk/service/1465,Council expenditure,13/01/2017,CYWS COMMISSIONING,WATERSTONES,27.97,BOOKS,BOOK STORES
04/05/2017,http://opendatacommunities.org/id/county-council/surrey,Surrey,http://id.esd.org.uk/service/1465,Council expenditure,13/01/2017,HILLSIDE,BOOTS/0906,5.43,EQUIPMENT,"DRUG STORES, PHARMACIES"
04/05/2017,http://opendatacommunities.org/id/county-council/surrey,Surrey,http://id.esd.org.uk/service/1465,Council expenditure,13/01/2017,ROW MAINTENANCE,ARGOS LTD,14.99,EQUIPMENT,DISCOUNT STORES
04/05/2017,http://opendatacommunities.org/id/county-council/surrey,Surrey,http://id.esd.org.uk/service/1465,Council expenditure,13/01/2017,HILLSIDE,PRIMARK,6,"CLOTHING, UNIFORM AND LAUNDRY",FAMILY CLOTHING STORES
04/05/2017,http://opendatacommunities.org/id/county-council/surrey,Surrey,http://id.esd.org.uk/service/1465,Council expenditure,13/01/2017,NE CARE - CP & COURT LAC,SURREY CC CARD PAY,27,CHILDREN ACT SEC 17 PAYMENTS,COMPUTER NETWORK/INFORMATION SERVICES
04/05/2017,http://opendatacommunities.org/id/county-council/surrey,Surrey,http://id.esd.org.uk/service/1465,Council expenditure,13/01/2017,RUTH HOUSE,AMAZON UK MARKETPLACE,9.67,EDUC VISITS/HOLS/CAMPS/TOYS,BOOK STORES
04/05/2017,http://opendatacommunities.org/id/county-council/surrey,Surrey,http://id.esd.org.uk/service/1465,Council expenditure,13/01/2017,RUTH HOUSE,AMAZON UK MARKETPLACE,4.07,EDUC VISITS/HOLS/CAMPS/TOYS,BOOK STORES
04/05/2017,http://opendatacommunities.org/id/county-council/surrey,Surrey,http://id.esd.org.uk/service/1465,Council expenditure,13/01/2017,RUTH HOUSE,AMAZON UK MARKETPLACE,8.84,EDUC VISITS/HOLS/CAMPS/TOYS,BOOK STORES
04/05/2017,http://opendatacommunities.org/id/county-council/surrey,Surrey,http://id.esd.org.uk/service/1465,Council expenditure,13/01/2017,RUTH HOUSE,AMAZON UK MARKETPLACE,1.99,EDUC VISITS/HOLS/CAMPS/TOYS,BOOK STORES
04/05/2017,http://opendatacommunities.org/id/county-council/surrey,Surrey,http://id.esd.org.uk/service/1465,Council expenditure,13/01/2017,RUTH HOUSE,AMAZON UK MARKETPLACE,4.99,EDUC VISITS/HOLS/CAMPS/TOYS,BOOK STORES
04/05/2017,http://opendatacommunities.org/id/county-council/surrey,Surrey,http://id.esd.org.uk/service/1465,Council expenditure,13/01/2017,RUTH HOUSE,AMAZON UK MARKETPLACE,10.06,EDUC VISITS/HOLS/CAMPS/TOYS,BOOK STORES
04/05/2017,http://opendatacommunities.org/id/county-council/surrey,Surrey,http://id.esd.org.uk/service/1465,Council expenditure,13/01/2017,RUTH HOUSE,AMAZON UK MARKETPLACE,4.99,EDUC VISITS/HOLS/CAMPS/TOYS,BOOK STORES
04/05/2017,http://opendatacommunities.org/id/county-council/surrey,Surrey,http://id.esd.org.uk/service/1465,Council expenditure,13/01/2017,RUTH HOUSE,AMAZON UK MARKETPLACE,2.73,EDUC VISITS/HOLS/CAMPS/TOYS,BOOK STORES
04/05/2017,http://opendatacommunities.org/id/county-council/surrey,Surrey,http://id.esd.org.uk/service/1465,Council expenditure,13/01/2017,RUTH HOUSE,AMAZON UK MARKETPLACE,32.77,EDUC VISITS/HOLS/CAMPS/TOYS,BOOK STORES
04/05/2017,http://opendatacommunities.org/id/county-council/surrey,Surrey,http://id.esd.org.uk/service/1465,Council expenditure,13/01/2017,RUTH HOUSE,AMAZON UK MARKETPLACE,24.9,EDUC VISITS/HOLS/CAMPS/TOYS,BOOK STORES
04/05/2017,http://opendatacommunities.org/id/county-council/surrey,Surrey,http://id.esd.org.uk/service/1465,Council expenditure,13/01/2017,TARGETED INTERVENTION,SAINSBURYS SACAT 0679,18.3,EDUC VISITS/HOLS/CAMPS/TOYS,"GROCERY STORES, SUPERMARKETS"
04/05/2017,http://opendatacommunities.org/id/county-council/surrey,Surrey,http://id.esd.org.uk/service/1465,Council expenditure,13/01/2017,ACCOMMODATION CLEANING AND REFURBISHMENT,"AMAZON SVCS EUROPE,SAR",78.6,CLEANING AND DOMESTIC SUPPLIES,BOOK STORES
04/05/2017,http://opendatacommunities.org/id/county-council/surrey,Surrey,http://id.esd.org.uk/service/1465,Council expenditure,13/01/2017,TRANSPORT,AMAZON UK MARKETPLACE,48,FURNITURE,BOOK STORES
04/05/2017,http://opendatacommunities.org/id/county-council/surrey,Surrey,http://id.esd.org.uk/service/1465,Council expenditure,13/01/2017,TRANSPORT,AMAZON UK MARKETPLACE,38.4,FURNITURE,BOOK STORES
04/05/2017,http://opendatacommunities.org/id/county-council/surrey,Surrey,http://id.esd.org.uk/service/1465,Council expenditure,13/01/2017,WOODLANDS COMMUNITY HOME,PHOTOBOX LIMITED,14.34,EQUIPMENT,MISCELLANEOUS PUBLISHING AND PRINTING
04/05/2017,http://opendatacommunities.org/id/county-council/surrey,Surrey,http://id.esd.org.uk/service/1465,Council expenditure,13/01/2017,CHAIRMAN,ELSA BROWN FLOWER STYL,28,EQUIPMENT,FLORISTS
04/05/2017,http://opendatacommunities.org/id/county-council/surrey,Surrey,http://id.esd.org.uk/service/1465,Council expenditure,13/01/2017,SE CARE - CP & COURT LAC,GRO HM PASSPORT OFFICE,92.5,CHILDREN ACT SEC 17 PAYMENTS,GOVERNMENT SERVICES-NOT ELSEWHERE CLASSIFIED
04/05/2017,http://opendatacommunities.org/id/county-council/surrey,Surrey,http://id.esd.org.uk/service/1465,Council expenditure,13/01/2017,VIRTUAL SERVICE MANAGER,AMAZON UK MARKETPLACE,14.95,EQUIPMENT,BOOK STORES
04/05/2017,http://opendatacommunities.org/id/county-council/surrey,Surrey,http://id.esd.org.uk/service/1465,Council expenditure,13/01/2017,GYC WORKSHOPS                           ,COACHWISE LTD,12.99,FEES,"CLUBS-CNTRY,MBRSHIP(ATHLET,REC,SPRTS,PRIVATE GOLF"
04/05/2017,http://opendatacommunities.org/id/county-council/surrey,Surrey,http://id.esd.org.uk/service/1465,Council expenditure,13/01/2017,TRAINING ENVIRONMENT SERVICES,EB  SURREY COUNTRYSIDE,130,TRAINING EXPENSES EXTERNAL GENERAL,BUSINESS SERVICES-NOT ELSEWHERE CLASSIFIED
04/05/2017,http://opendatacommunities.org/id/county-council/surrey,Surrey,http://id.esd.org.uk/service/1465,Council expenditure,13/01/2017,HOPE SERVICE - WEST,HOLLYWOOD BOWL,9,EDUC VISITS/HOLS/CAMPS/TOYS,"CLUBS-CNTRY,MBRSHIP(ATHLET,REC,SPRTS,PRIVATE GOLF"
04/05/2017,http://opendatacommunities.org/id/county-council/surrey,Surrey,http://id.esd.org.uk/service/1465,Council expenditure,13/01/2017,LOWER MOLE COUNTRYSIDE PROJECT,RADIODETECTION LTD,97.18,EQUIPMENT,ELECTRICAL PARTS AND EQUIPMENT
04/05/2017,http://opendatacommunities.org/id/county-council/surrey,Surrey,http://id.esd.org.uk/service/1465,Council expenditure,13/01/2017,HOPE SERVICE - WEST,HOLLYWOOD BOWL,9,EDUC VISITS/HOLS/CAMPS/TOYS,"CLUBS-CNTRY,MBRSHIP(ATHLET,REC,SPRTS,PRIVATE GOLF"
04/05/2017,http://opendatacommunities.org/id/county-council/surrey,Surrey,http://id.esd.org.uk/service/1465,Council expenditure,13/01/2017,HILLSIDE,SAINSBURYS SACAT 0784,38.75,PURCHASE OF FOOD (RAW MATERIALS),"GROCERY STORES, SUPERMARKETS"
04/05/2017,http://opendatacommunities.org/id/county-council/surrey,Surrey,http://id.esd.org.uk/service/1465,Council expenditure,13/01/2017,LIBERTAS COMMUNITY HOME,PANTILES SERVICE STATI,5.2,REFRESHMENT COSTS,SERVICE STATIONS WITH OR WITHOUT ANCILLARY SERVICE
04/05/2017,http://opendatacommunities.org/id/county-council/surrey,Surrey,http://id.esd.org.uk/service/1465,Council expenditure,13/01/2017,LOWER MOLE COUNTRYSIDE PROJECT,DVLA VEHICLE TAX,232.5,VEHICLE RUNNING COSTS,GOVERNMENT SERVICES-NOT ELSEWHERE CLASSIFIED
04/05/2017,http://opendatacommunities.org/id/county-council/surrey,Surrey,http://id.esd.org.uk/service/1465,Council expenditure,13/01/2017,HILLSIDE,BOOTS/0906,35,EQUIPMENT,"DRUG STORES, PHARMACIES"
04/05/2017,http://opendatacommunities.org/id/county-council/surrey,Surrey,http://id.esd.org.uk/service/1465,Council expenditure,13/01/2017,HOPE SERVICE - WEST,MARSDEN NURSERIES LTD,7.15,REFRESHMENT COSTS,LAWN AND GARDEN SUPPLY STORES
04/05/2017,http://opendatacommunities.org/id/county-council/surrey,Surrey,http://id.esd.org.uk/service/1465,Council expenditure,13/01/2017,LIBERTAS COMMUNITY HOME,SAINSBURYS 0652,21.65,PURCHASE OF FOOD (RAW MATERIALS),"GROCERY STORES, SUPERMARKETS"
04/05/2017,http://opendatacommunities.org/id/county-council/surrey,Surrey,http://id.esd.org.uk/service/1465,Council expenditure,13/01/2017,LIBERTAS COMMUNITY HOME,SAINSBURYS 0652,150.71,PURCHASE OF FOOD (RAW MATERIALS),"GROCERY STORES, SUPERMARKETS"
04/05/2017,http://opendatacommunities.org/id/county-council/surrey,Surrey,http://id.esd.org.uk/service/1465,Council expenditure,13/01/2017,LIBERTAS COMMUNITY HOME,SAINSBURYS 0652,9.7,EQUIPMENT,"GROCERY STORES, SUPERMARKETS"
04/05/2017,http://opendatacommunities.org/id/county-council/surrey,Surrey,http://id.esd.org.uk/service/1465,Council expenditure,13/01/2017,PROPERTY OPERATIONS TEAM,SCREWFIX GUILDFORD,34.28,PURCHASE OF BUILDING MATERIALS,"BUILDING MATERIALS, LUMBER STORES"
04/05/2017,http://opendatacommunities.org/id/county-council/surrey,Surrey,http://id.esd.org.uk/service/1465,Council expenditure,13/01/2017,PROPERTY OPERATIONS TEAM,B & Q 1029,4.18,PURCHASE OF BUILDING MATERIALS,"BUILDING MATERIALS, LUMBER STORES"
04/05/2017,http://opendatacommunities.org/id/county-council/surrey,Surrey,http://id.esd.org.uk/service/1465,Council expenditure,13/01/2017,THE EDGE YC,MARTIN MCCOLL,3.7,REFRESHMENT COSTS,"MISC FOOD STORE-CONVENIENCE,MRKT,SPLTY,VENDNG MACS"
04/05/2017,http://opendatacommunities.org/id/county-council/surrey,Surrey,http://id.esd.org.uk/service/1465,Council expenditure,13/01/2017,ORBIS TRAINING PROPERTY,INSTIT OF OCCPTNL SAFE,385,TRAINING EXPENSES EXTERNAL GENERAL,"ORGANIZATIONS, MEMBERSHIP-NOT ELSEWHERE CLASSIFIED"
04/05/2017,http://opendatacommunities.org/id/county-council/surrey,Surrey,http://id.esd.org.uk/service/1465,Council expenditure,13/01/2017,NW CARE - LAC,PREMIER INN,61,CHILDREN ACT SEC 17 PAYMENTS,PREMIER INN
04/05/2017,http://opendatacommunities.org/id/county-council/surrey,Surrey,http://id.esd.org.uk/service/1465,Council expenditure,13/01/2017,NW CARE - LAC,PREMIER INN,78,CHILDREN ACT SEC 17 PAYMENTS,PREMIER INN
04/05/2017,http://opendatacommunities.org/id/county-council/surrey,Surrey,http://id.esd.org.uk/service/1465,Council expenditure,13/01/2017,COVEHAM,SAINSBURYS TO YOU 0687,90.9,CLEANING MATERIALS,"GROCERY STORES, SUPERMARKETS"
04/05/2017,http://opendatacommunities.org/id/county-council/surrey,Surrey,http://id.esd.org.uk/service/1465,Council expenditure,13/01/2017,RUTH HOUSE,SAINSBURYS TO YOU 0686,20.89,PURCHASE OF FOOD (RAW MATERIALS),"GROCERY STORES, SUPERMARKETS"
04/05/2017,http://opendatacommunities.org/id/county-council/surrey,Surrey,http://id.esd.org.uk/service/1465,Council expenditure,13/01/2017,RUTH HOUSE,SAINSBURYS TO YOU 0686,183.26,PURCHASE OF FOOD (RAW MATERIALS),"GROCERY STORES, SUPERMARKETS"
04/05/2017,http://opendatacommunities.org/id/county-council/surrey,Surrey,http://id.esd.org.uk/service/1465,Council expenditure,13/01/2017,ACL CENTRAL EXPENDITURE,TESCO STORE 3220,182.09,REFRESHMENT COSTS,"GROCERY STORES, SUPERMARKETS"
04/05/2017,http://opendatacommunities.org/id/county-council/surrey,Surrey,http://id.esd.org.uk/service/1465,Council expenditure,13/01/2017,TS SERVICE MANAGEMENT,PREMIER INN,-204.98,SUBSISTENCE AND CONFERENCE EXPENSES,PREMIER INN
04/05/2017,http://opendatacommunities.org/id/county-council/surrey,Surrey,http://id.esd.org.uk/service/1465,Council expenditure,13/01/2017,ROW MAINTENANCE,ARGOS LTD,-9.99,EQUIPMENT,DISCOUNT STORES
04/05/2017,http://opendatacommunities.org/id/county-council/surrey,Surrey,http://id.esd.org.uk/service/1465,Council expenditure,14/01/2017,CEO - PUBLIC HEALTH CAMPAIGNS           ,GOOGLE  ADWS2060179426,500,PUBLICITY,DIRECT MARKETING-CONTINUITY/SUBSCRIPTION MERCHANTS
04/05/2017,http://opendatacommunities.org/id/county-council/surrey,Surrey,http://id.esd.org.uk/service/1465,Council expenditure,14/01/2017,FAIRCROFT COMMUNITY HOME,PANAHAR,65.1,REFRESHMENT COSTS,"EATING PLACES, RESTAURANTS"
04/05/2017,http://opendatacommunities.org/id/county-council/surrey,Surrey,http://id.esd.org.uk/service/1465,Council expenditure,14/01/2017,HOPE SERVICE - WEST,TESCO STORE 2160,14.43,PURCHASE OF FOOD (RAW MATERIALS),"GROCERY STORES, SUPERMARKETS"
04/05/2017,http://opendatacommunities.org/id/county-council/surrey,Surrey,http://id.esd.org.uk/service/1465,Council expenditure,14/01/2017,FAIRCROFT COMMUNITY HOME,MARKS&SPENCER PLC,24,"CLOTHING, UNIFORM AND LAUNDRY","GROCERY STORES, SUPERMARKETS"
04/05/2017,http://opendatacommunities.org/id/county-council/surrey,Surrey,http://id.esd.org.uk/service/1465,Council expenditure,14/01/2017,FAIRCROFT COMMUNITY HOME,THE CLARKS SHOP,38.05,"CLOTHING, UNIFORM AND LAUNDRY",SHOE STORES
04/05/2017,http://opendatacommunities.org/id/county-council/surrey,Surrey,http://id.esd.org.uk/service/1465,Council expenditure,14/01/2017,HILLSIDE,SAINSBURYS SACAT 0675,2.33,PURCHASE OF FOOD (RAW MATERIALS),"GROCERY STORES, SUPERMARKETS"
04/05/2017,http://opendatacommunities.org/id/county-council/surrey,Surrey,http://id.esd.org.uk/service/1465,Council expenditure,14/01/2017,HILLSIDE,SAINSBURYS SACAT 0675,5.3,PURCHASE OF FOOD (RAW MATERIALS),"GROCERY STORES, SUPERMARKETS"
04/05/2017,http://opendatacommunities.org/id/county-council/surrey,Surrey,http://id.esd.org.uk/service/1465,Council expenditure,14/01/2017,ACL CENTRAL EXPENDITURE,CCP CLEANING SUPPLIES,12.4,REFRESHMENT COSTS,PROFESSIONAL SERVICES-NOT ELSEWHERE CLASSIFIED
04/05/2017,http://opendatacommunities.org/id/county-council/surrey,Surrey,http://id.esd.org.uk/service/1465,Council expenditure,14/01/2017,CS BUSINESS SUPPORT EAST,AMAZON EU,49.92,COMPUTER CONSUMABLES,DIRECT MARKETING-OTHER DIRECT MARKETERS/NOT ELSEW.
04/05/2017,http://opendatacommunities.org/id/county-council/surrey,Surrey,http://id.esd.org.uk/service/1465,Council expenditure,14/01/2017,HOLLAND CLOSE RESIDENTIAL HOME,TESCO-STORES 6647,183.44,PURCHASE OF FOOD (RAW MATERIALS),"GROCERY STORES, SUPERMARKETS"
04/05/2017,http://opendatacommunities.org/id/county-council/surrey,Surrey,http://id.esd.org.uk/service/1465,Council expenditure,14/01/2017,RUTH HOUSE,AMAZON UK MARKETPLACE,46.11,EDUC VISITS/HOLS/CAMPS/TOYS,BOOK STORES
04/05/2017,http://opendatacommunities.org/id/county-council/surrey,Surrey,http://id.esd.org.uk/service/1465,Council expenditure,14/01/2017,RUTH HOUSE,AMAZON UK MARKETPLACE,26,EDUC VISITS/HOLS/CAMPS/TOYS,BOOK STORES
04/05/2017,http://opendatacommunities.org/id/county-council/surrey,Surrey,http://id.esd.org.uk/service/1465,Council expenditure,14/01/2017,ACL CENTRAL EXPENDITURE,FACEBK XLHRMA2CB2,9.98,PUBLICITY,ADVERTISING SERVICES
04/05/2017,http://opendatacommunities.org/id/county-council/surrey,Surrey,http://id.esd.org.uk/service/1465,Council expenditure,14/01/2017,ACL CENTRAL EXPENDITURE,FACEBK ULHRMA2CB2,390.22,PUBLICITY,ADVERTISING SERVICES
04/05/2017,http://opendatacommunities.org/id/county-council/surrey,Surrey,http://id.esd.org.uk/service/1465,Council expenditure,14/01/2017,HILLSIDE,SAINSBURYS TO YOU 0673,17,PURCHASE OF FOOD (RAW MATERIALS),"GROCERY STORES, SUPERMARKETS"
04/05/2017,http://opendatacommunities.org/id/county-council/surrey,Surrey,http://id.esd.org.uk/service/1465,Council expenditure,14/01/2017,HILLSIDE,SAINSBURYS TO YOU 0673,189.76,PURCHASE OF FOOD (RAW MATERIALS),"GROCERY STORES, SUPERMARKETS"
04/05/2017,http://opendatacommunities.org/id/county-council/surrey,Surrey,http://id.esd.org.uk/service/1465,Council expenditure,15/01/2017,ASHTEAD YC,ASHTEAD PARK 350,63.01,PETROL/DIESEL ALL OFF BUSINESS,SERVICE STATIONS WITH OR WITHOUT ANCILLARY SERVICE
04/05/2017,http://opendatacommunities.org/id/county-council/surrey,Surrey,http://id.esd.org.uk/service/1465,Council expenditure,15/01/2017,FAIRCROFT COMMUNITY HOME,SAINSBURYS SACAT(4180),3,PURCHASE OF FOOD (RAW MATERIALS),"GROCERY STORES, SUPERMARKETS"
04/05/2017,http://opendatacommunities.org/id/county-council/surrey,Surrey,http://id.esd.org.uk/service/1465,Council expenditure,15/01/2017,ASHTEAD YC,MCDONALDS,32.91,REFRESHMENT COSTS,FAST FOOD RESTAURANTS
04/05/2017,http://opendatacommunities.org/id/county-council/surrey,Surrey,http://id.esd.org.uk/service/1465,Council expenditure,15/01/2017,HILLSIDE,WWW.RHS.ORG.UK,42,EDUC VISITS/HOLS/CAMPS/TOYS,"ORGANIZATIONS, MEMBERSHIP-NOT ELSEWHERE CLASSIFIED"
04/05/2017,http://opendatacommunities.org/id/county-council/surrey,Surrey,http://id.esd.org.uk/service/1465,Council expenditure,15/01/2017,LIBERTAS COMMUNITY HOME,IKEA LIMITED,10.2,REFRESHMENT COSTS,"EQUIP, FURNITURE, HOME FURNSHNGS STRS (EXCPT APPL)"
04/05/2017,http://opendatacommunities.org/id/county-council/surrey,Surrey,http://id.esd.org.uk/service/1465,Council expenditure,15/01/2017,OTHER NON CWD HOME COSTS,IKEA LIMITED,217,EQUIPMENT,"EQUIP, FURNITURE, HOME FURNSHNGS STRS (EXCPT APPL)"
04/05/2017,http://opendatacommunities.org/id/county-council/surrey,Surrey,http://id.esd.org.uk/service/1465,Council expenditure,15/01/2017,WOODLANDS COMMUNITY HOME,CEX (WOKING),32,EDUC VISITS/HOLS/CAMPS/TOYS,ELECTRONIC SALES
04/05/2017,http://opendatacommunities.org/id/county-council/surrey,Surrey,http://id.esd.org.uk/service/1465,Council expenditure,15/01/2017,WOODLANDS COMMUNITY HOME,WILKO WOKING,5.85,DAY TO DAY MAINTENANCE,HOUSEHOLD APPLIANCE STORES
04/05/2017,http://opendatacommunities.org/id/county-council/surrey,Surrey,http://id.esd.org.uk/service/1465,Council expenditure,15/01/2017,RUTH HOUSE,AMAZON UK MARKETPLACE,18.11,EDUC VISITS/HOLS/CAMPS/TOYS,BOOK STORES
04/05/2017,http://opendatacommunities.org/id/county-council/surrey,Surrey,http://id.esd.org.uk/service/1465,Council expenditure,15/01/2017,FAIRCROFT COMMUNITY HOME,SAINSBURYS SACAT 0652,7.3,PURCHASE OF FOOD (RAW MATERIALS),"GROCERY STORES, SUPERMARKETS"
04/05/2017,http://opendatacommunities.org/id/county-council/surrey,Surrey,http://id.esd.org.uk/service/1465,Council expenditure,15/01/2017,LIBERTAS COMMUNITY HOME,CLINTONS 1150,4.5,3RD PARTY PAYMENTS PRIVATE INDIV,"GIFT, CARD, NOVELTY AND SOUVENIR SHOPS"
04/05/2017,http://opendatacommunities.org/id/county-council/surrey,Surrey,http://id.esd.org.uk/service/1465,Council expenditure,15/01/2017,LIBERTAS COMMUNITY HOME,HMV RETAIL LTD,4.54,3RD PARTY PAYMENTS PRIVATE INDIV,RECORD SHOPS
04/05/2017,http://opendatacommunities.org/id/county-council/surrey,Surrey,http://id.esd.org.uk/service/1465,Council expenditure,15/01/2017,LIBERTAS COMMUNITY HOME,DUNELM LTD,27.99,EQUIPMENT,"DRAPERY, UPOLSTERY, AND WINDOW COVERINGS STORES"
04/05/2017,http://opendatacommunities.org/id/county-council/surrey,Surrey,http://id.esd.org.uk/service/1465,Council expenditure,15/01/2017,SOLD DAY TO DAY OPERATIONS,AMAZON UK MARKETPLACE,1.46,EQUIPMENT,BOOK STORES
04/05/2017,http://opendatacommunities.org/id/county-council/surrey,Surrey,http://id.esd.org.uk/service/1465,Council expenditure,15/01/2017,SURREY THE GREAT WAR,AMAZON EU,25.23,EQUIPMENT,DIRECT MARKETING-OTHER DIRECT MARKETERS/NOT ELSEW.
04/05/2017,http://opendatacommunities.org/id/county-council/surrey,Surrey,http://id.esd.org.uk/service/1465,Council expenditure,15/01/2017,NW CARE - CP & COURT LAC,ANGEL VIEW,315,CHILDREN ACT SEC 17 PAYMENTS,COMPUTER SOFTWARE STORES
04/05/2017,http://opendatacommunities.org/id/county-council/surrey,Surrey,http://id.esd.org.uk/service/1465,Council expenditure,15/01/2017,RUTH HOUSE,AMAZON UK MARKETPLACE,16.1,EDUC VISITS/HOLS/CAMPS/TOYS,BOOK STORES
04/05/2017,http://opendatacommunities.org/id/county-council/surrey,Surrey,http://id.esd.org.uk/service/1465,Council expenditure,15/01/2017,CHEYNE WALK COMMUNITY HOME,AMAZON UK MARKETPLACE,11.96,EQUIPMENT,BOOK STORES
04/05/2017,http://opendatacommunities.org/id/county-council/surrey,Surrey,http://id.esd.org.uk/service/1465,Council expenditure,15/01/2017,HILLSIDE,SAINSBURYS 0784,7.45,PURCHASE OF FOOD (RAW MATERIALS),"GROCERY STORES, SUPERMARKETS"
04/05/2017,http://opendatacommunities.org/id/county-council/surrey,Surrey,http://id.esd.org.uk/service/1465,Council expenditure,15/01/2017,CHEYNE WALK COMMUNITY HOME,AMAZON UK MARKETPLACE,19.97,EQUIPMENT,BOOK STORES
04/05/2017,http://opendatacommunities.org/id/county-council/surrey,Surrey,http://id.esd.org.uk/service/1465,Council expenditure,15/01/2017,CHEYNE WALK COMMUNITY HOME,DUNELM ONLINE ORDER,63.98,EQUIPMENT,"DRAPERY, UPOLSTERY, AND WINDOW COVERINGS STORES"
04/05/2017,http://opendatacommunities.org/id/county-council/surrey,Surrey,http://id.esd.org.uk/service/1465,Council expenditure,15/01/2017,HERITAGE PUBLIC SERVICE,WM MORRISONS STORE,38.52,REFRESHMENT COSTS,"GROCERY STORES, SUPERMARKETS"
04/05/2017,http://opendatacommunities.org/id/county-council/surrey,Surrey,http://id.esd.org.uk/service/1465,Council expenditure,15/01/2017,RUTH HOUSE,AMAZON UK MARKETPLACE,17.98,EDUC VISITS/HOLS/CAMPS/TOYS,BOOK STORES
04/05/2017,http://opendatacommunities.org/id/county-council/surrey,Surrey,http://id.esd.org.uk/service/1465,Council expenditure,15/01/2017,FOSTERING SERVICE CENTRAL COSTS,AMAZON EU,127.3,BOOKS,DIRECT MARKETING-OTHER DIRECT MARKETERS/NOT ELSEW.
04/05/2017,http://opendatacommunities.org/id/county-council/surrey,Surrey,http://id.esd.org.uk/service/1465,Council expenditure,16/01/2017,LINTONS YC,AMAZON UK RETAIL AMAZO,7.98,CURRICULUM CONSUMABLES,MISCELLANEOUS AND SPECIALTY RETAIL STORES
04/05/2017,http://opendatacommunities.org/id/county-council/surrey,Surrey,http://id.esd.org.uk/service/1465,Council expenditure,16/01/2017,CHILDREN'S RIGHTS TEAM,SUPERFISH WEST BYFLEET,79.5,REFRESHMENT COSTS,FAST FOOD RESTAURANTS
04/05/2017,http://opendatacommunities.org/id/county-council/surrey,Surrey,http://id.esd.org.uk/service/1465,Council expenditure,16/01/2017,OCCUPATIONAL HEALTH,AMAZON UK RETAIL AMAZO,35.26,EQUIPMENT,MISCELLANEOUS AND SPECIALTY RETAIL STORES
04/05/2017,http://opendatacommunities.org/id/county-council/surrey,Surrey,http://id.esd.org.uk/service/1465,Council expenditure,16/01/2017,SOLD DAY TO DAY OPERATIONS,ROCK ON GUILDFORD,125.82,EQUIPMENT,SPORTING GOODS STORES
04/05/2017,http://opendatacommunities.org/id/county-council/surrey,Surrey,http://id.esd.org.uk/service/1465,Council expenditure,16/01/2017,CHEYNE WALK COMMUNITY HOME,TESCO STORE 2560,339.89,PURCHASE OF FOOD (RAW MATERIALS),"GROCERY STORES, SUPERMARKETS"
04/05/2017,http://opendatacommunities.org/id/county-council/surrey,Surrey,http://id.esd.org.uk/service/1465,Council expenditure,16/01/2017,WOODLANDS COMMUNITY HOME,THREADNEEDLE COMPANY L,52.9,"CLOTHING, UNIFORM AND LAUNDRY",MEN'S AND WOMEN'S CLOTHING STORES
04/05/2017,http://opendatacommunities.org/id/county-council/surrey,Surrey,http://id.esd.org.uk/service/1465,Council expenditure,16/01/2017,WOODLANDS COMMUNITY HOME,SAINSBURYS PFS0487,51.6,PETROL/DIESEL ALL OFF BUSINESS,SERVICE STATIONS WITH OR WITHOUT ANCILLARY SERVICE
04/05/2017,http://opendatacommunities.org/id/county-council/surrey,Surrey,http://id.esd.org.uk/service/1465,Council expenditure,16/01/2017,CHEYNE WALK COMMUNITY HOME,DA PEPPINO RESTAURANT,45.65,EDUC VISITS/HOLS/CAMPS/TOYS,"EATING PLACES, RESTAURANTS"
04/05/2017,http://opendatacommunities.org/id/county-council/surrey,Surrey,http://id.esd.org.uk/service/1465,Council expenditure,16/01/2017,RUTH HOUSE,AMAZON UK MARKETPLACE,82.98,EDUC VISITS/HOLS/CAMPS/TOYS,BOOK STORES
04/05/2017,http://opendatacommunities.org/id/county-council/surrey,Surrey,http://id.esd.org.uk/service/1465,Council expenditure,16/01/2017,CHEYNE WALK COMMUNITY HOME,FORTUNE GARDEN,24,PURCHASE OF FOOD (RAW MATERIALS),FAST FOOD RESTAURANTS
04/05/2017,http://opendatacommunities.org/id/county-council/surrey,Surrey,http://id.esd.org.uk/service/1465,Council expenditure,16/01/2017,ADDLESTONE YC,EGHAM FOOD &WINE 64538,3.9,PURCHASE OF FOOD (RAW MATERIALS),"GROCERY STORES, SUPERMARKETS"
04/05/2017,http://opendatacommunities.org/id/county-council/surrey,Surrey,http://id.esd.org.uk/service/1465,Council expenditure,16/01/2017,WAVERLEY CMHRS CARE,BOWENHURST KENNELS,122.5,FEES,PET SHOPS - PET FOODS AND SUPPLIES
04/05/2017,http://opendatacommunities.org/id/county-council/surrey,Surrey,http://id.esd.org.uk/service/1465,Council expenditure,16/01/2017,SPELTHORNE CMHRS CARE,EXPEDIA7237411152453,470,FEES,TRAVEL AGENCIES AND TOUR OPERATORS
04/05/2017,http://opendatacommunities.org/id/county-council/surrey,Surrey,http://id.esd.org.uk/service/1465,Council expenditure,16/01/2017,SOLD DAY TO DAY OPERATIONS,LICENSINGAUTHORITY.HTM,724,FEES,GOVERNMENT SERVICES-NOT ELSEWHERE CLASSIFIED
04/05/2017,http://opendatacommunities.org/id/county-council/surrey,Surrey,http://id.esd.org.uk/service/1465,Council expenditure,16/01/2017,KARIBU COMMUNITY HOME,LANTERN&LARKS LTD,380,EDUC VISITS/HOLS/CAMPS/TOYS,TENT AND AWNING SHOPS
04/05/2017,http://opendatacommunities.org/id/county-council/surrey,Surrey,http://id.esd.org.uk/service/1465,Council expenditure,16/01/2017,RUTH HOUSE,AMAZON UK MARKETPLACE,7.75,EDUC VISITS/HOLS/CAMPS/TOYS,BOOK STORES
04/05/2017,http://opendatacommunities.org/id/county-council/surrey,Surrey,http://id.esd.org.uk/service/1465,Council expenditure,16/01/2017,RUTH HOUSE,AMAZON UK MARKETPLACE,10.94,EDUC VISITS/HOLS/CAMPS/TOYS,BOOK STORES
04/05/2017,http://opendatacommunities.org/id/county-council/surrey,Surrey,http://id.esd.org.uk/service/1465,Council expenditure,16/01/2017,ADDLESTONE YC,TESCO STORES-2017,16.76,PURCHASE OF FOOD (RAW MATERIALS),"GROCERY STORES, SUPERMARKETS"
04/05/2017,http://opendatacommunities.org/id/county-council/surrey,Surrey,http://id.esd.org.uk/service/1465,Council expenditure,16/01/2017,WOODLANDS COMMUNITY HOME,HOMEBASE LTD 084,72.69,DAY TO DAY MAINTENANCE,"BUILDING MATERIALS, LUMBER STORES"
04/05/2017,http://opendatacommunities.org/id/county-council/surrey,Surrey,http://id.esd.org.uk/service/1465,Council expenditure,16/01/2017,TRANSPORT,AMAZON UK MARKETPLACE,38.81,STATIONERY,BOOK STORES
04/05/2017,http://opendatacommunities.org/id/county-council/surrey,Surrey,http://id.esd.org.uk/service/1465,Council expenditure,16/01/2017,WALTON YC,SAINSBURYS 0687,8.2,PURCHASE OF FOOD (RAW MATERIALS),"GROCERY STORES, SUPERMARKETS"
04/05/2017,http://opendatacommunities.org/id/county-council/surrey,Surrey,http://id.esd.org.uk/service/1465,Council expenditure,16/01/2017,DRAMA WARDROBE,MORPLAN LTD,103.5,EQUIPMENT,"OFFICE, SCHOOL SUPPLY, AND STATIONERY STORES"
04/05/2017,http://opendatacommunities.org/id/county-council/surrey,Surrey,http://id.esd.org.uk/service/1465,Council expenditure,16/01/2017,HERITAGE PUBLIC SERVICE,THE SOUTHERN CO-OP,9.86,REFRESHMENT COSTS,DEPARTMENT STORES
04/05/2017,http://opendatacommunities.org/id/county-council/surrey,Surrey,http://id.esd.org.uk/service/1465,Council expenditure,16/01/2017,SOLD DAY TO DAY OPERATIONS,AMAZON UK MARKETPLACE,13.45,EQUIPMENT,BOOK STORES
04/05/2017,http://opendatacommunities.org/id/county-council/surrey,Surrey,http://id.esd.org.uk/service/1465,Council expenditure,16/01/2017,PROPERTY OPERATIONS TEAM,SCREWFIX DIRECT,52.78,PURCHASE OF BUILDING MATERIALS,"BUILDING MATERIALS, LUMBER STORES"
04/05/2017,http://opendatacommunities.org/id/county-council/surrey,Surrey,http://id.esd.org.uk/service/1465,Council expenditure,16/01/2017,TARGETED INTERVENTION,CLANDNPARKGARDNCNT,8.4,EDUC VISITS/HOLS/CAMPS/TOYS,LAWN AND GARDEN SUPPLY STORES
04/05/2017,http://opendatacommunities.org/id/county-council/surrey,Surrey,http://id.esd.org.uk/service/1465,Council expenditure,16/01/2017,TARGETED INTERVENTION,GODALMING LEISURE CENT,4.2,EDUC VISITS/HOLS/CAMPS/TOYS,"CLUBS-CNTRY,MBRSHIP(ATHLET,REC,SPRTS,PRIVATE GOLF"
04/05/2017,http://opendatacommunities.org/id/county-council/surrey,Surrey,http://id.esd.org.uk/service/1465,Council expenditure,16/01/2017,HORLEY YC,LIDL UK,8.7,PURCHASE OF FOOD (RAW MATERIALS),"GROCERY STORES, SUPERMARKETS"
04/05/2017,http://opendatacommunities.org/id/county-council/surrey,Surrey,http://id.esd.org.uk/service/1465,Council expenditure,16/01/2017,SOLD ESTATES MANAGEMENT,SQUAREDEAL UPVC & RENE,57.33,DAY TO DAY MAINTENANCE,"BUILDING MATERIALS, LUMBER STORES"
04/05/2017,http://opendatacommunities.org/id/county-council/surrey,Surrey,http://id.esd.org.uk/service/1465,Council expenditure,16/01/2017,ROW VOLUNTEERS EAST                     ,WILLIAM WAY (GODSTONE),52.8,EQUIPMENT,"BUILDING MATERIALS, LUMBER STORES"
04/05/2017,http://opendatacommunities.org/id/county-council/surrey,Surrey,http://id.esd.org.uk/service/1465,Council expenditure,16/01/2017,TARGETED INTERVENTION,STARBUCKS,6.25,EDUC VISITS/HOLS/CAMPS/TOYS,FAST FOOD RESTAURANTS
04/05/2017,http://opendatacommunities.org/id/county-council/surrey,Surrey,http://id.esd.org.uk/service/1465,Council expenditure,16/01/2017,TARGETED INTERVENTION,SAINSBURYS 0686,5.4,EDUC VISITS/HOLS/CAMPS/TOYS,"GROCERY STORES, SUPERMARKETS"
04/05/2017,http://opendatacommunities.org/id/county-council/surrey,Surrey,http://id.esd.org.uk/service/1465,Council expenditure,16/01/2017,REIGATE & BANSTEAD LOCAL CARE LD,DELLBRUCK PET LODGE,115.2,OTHER COMMUNITY CARE PRIV,PET SHOPS - PET FOODS AND SUPPLIES
04/05/2017,http://opendatacommunities.org/id/county-council/surrey,Surrey,http://id.esd.org.uk/service/1465,Council expenditure,16/01/2017,CSAF 50+,WWW.STREETBOOK.COM,1.21,PUBLICITY,ADVERTISING SERVICES
04/05/2017,http://opendatacommunities.org/id/county-council/surrey,Surrey,http://id.esd.org.uk/service/1465,Council expenditure,16/01/2017,STANWELL YOUTH CLUB,SAINSBURYS LOC4117,17.1,REFRESHMENT COSTS,"GROCERY STORES, SUPERMARKETS"
04/05/2017,http://opendatacommunities.org/id/county-council/surrey,Surrey,http://id.esd.org.uk/service/1465,Council expenditure,16/01/2017,CORPORATE GROUP - LEGAL SERVICES,LEWES PARKING,2.8,EXPENSES,SCHOOLS & EDUCATIONAL SVC-NOT ELSEWHERE CLASSIFIED
04/05/2017,http://opendatacommunities.org/id/county-council/surrey,Surrey,http://id.esd.org.uk/service/1465,Council expenditure,16/01/2017,SE CARE - NON-LAC CP & COURT,ARGOS RETAIL GROUP,230.94,CHILDREN ACT SEC 17 PAYMENTS,DISCOUNT STORES
04/05/2017,http://opendatacommunities.org/id/county-council/surrey,Surrey,http://id.esd.org.uk/service/1465,Council expenditure,16/01/2017,MALLOW CRESCENT,WWW.SJA.ORG.UK,354,TRAINING USING EXTERNAL PROVIDERS,"ORGANIZATIONS, CHARITABLE AND SOCIAL SERVICES"
04/05/2017,http://opendatacommunities.org/id/county-council/surrey,Surrey,http://id.esd.org.uk/service/1465,Council expenditure,16/01/2017,BURBANK COMMUNITY HOME,WWW.HORSELL-JUNIOR.SUR,18,EDUC VISITS/HOLS/CAMPS/TOYS,"SCHOOLS, ELEMENTARY AND SECONDARY"
04/05/2017,http://opendatacommunities.org/id/county-council/surrey,Surrey,http://id.esd.org.uk/service/1465,Council expenditure,16/01/2017,HILLSIDE,SAINSBURYS SACAT 0784,3.35,PURCHASE OF FOOD (RAW MATERIALS),"GROCERY STORES, SUPERMARKETS"
04/05/2017,http://opendatacommunities.org/id/county-council/surrey,Surrey,http://id.esd.org.uk/service/1465,Council expenditure,16/01/2017,LIBERTAS COMMUNITY HOME,SAINSBURYS 0652,27.3,PURCHASE OF FOOD (RAW MATERIALS),"GROCERY STORES, SUPERMARKETS"
04/05/2017,http://opendatacommunities.org/id/county-council/surrey,Surrey,http://id.esd.org.uk/service/1465,Council expenditure,16/01/2017,LIBERTAS COMMUNITY HOME,SAINSBURYS 0652,152.63,PURCHASE OF FOOD (RAW MATERIALS),"GROCERY STORES, SUPERMARKETS"
04/05/2017,http://opendatacommunities.org/id/county-council/surrey,Surrey,http://id.esd.org.uk/service/1465,Council expenditure,16/01/2017,LIBERTAS COMMUNITY HOME,SAINSBURYS 0652,1.75,EQUIPMENT,"GROCERY STORES, SUPERMARKETS"
04/05/2017,http://opendatacommunities.org/id/county-council/surrey,Surrey,http://id.esd.org.uk/service/1465,Council expenditure,16/01/2017,HILLSIDE,LIDL UK,0.99,PURCHASE OF FOOD (RAW MATERIALS),"GROCERY STORES, SUPERMARKETS"
04/05/2017,http://opendatacommunities.org/id/county-council/surrey,Surrey,http://id.esd.org.uk/service/1465,Council expenditure,16/01/2017,HILLSIDE,LIDL UK,20.03,PURCHASE OF FOOD (RAW MATERIALS),"GROCERY STORES, SUPERMARKETS"
04/05/2017,http://opendatacommunities.org/id/county-council/surrey,Surrey,http://id.esd.org.uk/service/1465,Council expenditure,16/01/2017,FAIRCROFT COMMUNITY HOME,SAINSBURYS 0687,82.32,PURCHASE OF FOOD (RAW MATERIALS),"GROCERY STORES, SUPERMARKETS"
04/05/2017,http://opendatacommunities.org/id/county-council/surrey,Surrey,http://id.esd.org.uk/service/1465,Council expenditure,16/01/2017,CHEYNE WALK COMMUNITY HOME,AMAZON UK MARKETPLACE,10.93,EQUIPMENT,BOOK STORES
04/05/2017,http://opendatacommunities.org/id/county-council/surrey,Surrey,http://id.esd.org.uk/service/1465,Council expenditure,16/01/2017,CHEYNE WALK COMMUNITY HOME,AMAZON UK MARKETPLACE,2.89,EQUIPMENT,BOOK STORES
04/05/2017,http://opendatacommunities.org/id/county-council/surrey,Surrey,http://id.esd.org.uk/service/1465,Council expenditure,16/01/2017,COVEHAM,SAINSBURYS TO YOU 0687,6.9,REFRESHMENT COSTS,"GROCERY STORES, SUPERMARKETS"
04/05/2017,http://opendatacommunities.org/id/county-council/surrey,Surrey,http://id.esd.org.uk/service/1465,Council expenditure,16/01/2017,COVEHAM,SAINSBURYS TO YOU 0687,98.1,REFRESHMENT COSTS,"GROCERY STORES, SUPERMARKETS"
